Workbook

Sheet MapPointConfig
B1: Id | C1: Style | D1: Desc | E1: Icon | F1: Refresh | G1: TriggerRules | H1: InitialEventId | I1: isHidden | J1: EventPointBg | K1: RandomProbability | L1: IsShowFightAbility
B2: int | C2: int | D2: string | E2: int | F2: int | G2: int | H2: int | I2: int | J2: string | K2: mut,int#int,2 | L2: mut,int#int,1
B3: 2 | C3: 2 | D3: 3 | E3: 3 | F3: 4 | G3: 2 | H3: 4 | I3: 3 | J3: 3 | K3: 4 | L3: 4
B4: 唯一id，id规则： 首位代表玩法内容：1探索 2副本 3爬塔 2,3位代表地图编号 最后两位代表事件点 | C4: 事件点类型 (1怪 2矿 3出生点 4传送门 5连续事件 6行脚商人 7宝箱 8阻挡点 9试炼buff 10门（桥)）11银英怪 12血战专用矿 | D4: 事件点描述 | E4: 事件点图标 | F4: 事件点的刷新规则 1每日刷新 2探索刷新 3一次性 4时间刷新 | G4: 事件点触发规则 1边缘触发 2覆盖触发 3点击触发 | H4: 初始关联事件id | I4: 初始关联图标状态 1、始终显示 2、触发显示 3、永不显示 | J4: 事件点背景图 | K4: 事件点出现概率 | L4: 需要显示的战力
A5: 默认值 | B5: 0 | C5: 0 | D5: ="" ->  | E5: ="" ->  | F5: 0 | G5: 0 | H5: 0 | I5: 1 | J5: ="" ->  | K5: null | L5: null
A6: 正确性校对
A7: 校对值
B8: 1 | C8: 5 | D8: 关卡显示用 | E8: 1
B9: 2 | C9: 5 | D9: 关卡显示用 | E9: 2
B10: 3 | C10: 5 | D10: 关卡显示用 | E10: 6
B11: 4 | C11: 5 | D11: 关卡显示用 | E11: 7
B12: 5 | C12: 5 | D12: 关卡显示用 | E12: 8
B13: 6 | C13: 5 | D13: 关卡显示用 | E13: 10
B14: 7 | C14: 5 | D14: 关卡显示用 | E14: 11
B15: 8 | C15: 5 | D15: 关卡显示用 | E15: 13
B16: 9 | C16: 5 | D16: 关卡显示用 | E16: 17
B17: 10 | C17: 5 | D17: 关卡显示用 | E17: 14
B18: 11 | C18: 5 | D18: 关卡显示用 | E18: 15
B19: 12 | C19: 5 | D19: 关卡显示用 | E19: 3
B21: 12001 | C21: 12 | D21: 大矿
B22: 12002 | C22: 12 | D22: 小矿
B24: 100001 | C24: 4 | D24: 战乱荒林 | E24: 5 | F24: 2 | G24: 2 | H24: 100001
B25: 100002 | C25: 5 | D25: 初遇 | E25: 7 | F25: 2 | G25: 2 | H25: 100002
B26: 100003 | C26: 5 | D26: 序章初入 | E26: 7 | F26: 3 | G26: 2 | H26: 100019
B27: 100004 | C27: 1 | D27: 序章怪物 | E27: 1 | F27: 2 | G27: 1 | H27: 100010
B28: 100005 | C28: 5 | D28: 测试用点1 | E28: 7 | F28: 3 | G28: 2 | H28: 100014
B29: 100006 | C29: 5 | D29: 测试用点2 | E29: 7 | F29: 3 | G29: 2 | H29: 100015
B30: 100007 | C30: 5 | D30: 剧情点 | E30: 7 | F30: 3 | G30: 2 | H30: 100040
B31: 100008 | C31: 5 | D31: 妖兽 | E31: 1 | F31: 2 | G31: 2 | H31: 100050
B33: 101001 | C33: 5 | D33: 受伤的冒险者 | E33: 7 | F33: 2 | G33: 2 | H33: 101001 | J33: bg_jq_nonwusenlin
B34: 101002 | C34: 5 | D34: 妖兽领地 | E34: 7 | F34: 2 | G34: 2 | H34: 101012 | J34: bg_jq_nonwusenlin | L34: 10101
B35: 101003 | C35: 5 | D35: 受伤的冉宜 | E35: 7 | F35: 2 | G35: 2 | H35: 101023 | J35: bg_jq_nonwusenlin
B36: 101004 | C36: 5 | D36: 逃跑的妖兽 | E36: 7 | F36: 2 | G36: 2 | H36: 101032 | J36: bg_jq_nonwusenlin | L36: 10102
B37: 101005 | C37: 5 | D37: 受伤的冉宜和薛苓 | E37: 7 | F37: 2 | G37: 2 | H37: 101039 | J37: bg_jq_nonwusenlin
B38: 101006 | C38: 5 | D38: 草药点 | E38: 7 | F38: 2 | G38: 2 | H38: 101047 | J38: bg_jq_nonwusenlin | L38: 10103
B39: 101007 | C39: 8 | D39: 阻挡点 | F39: 2
B40: 101008 | C40: 7 | D40: 宝箱1 | E40: 8 | F40: 2 | G40: 2 | H40: 101049 | J40: bg_jq_nonwusenlin
B41: 101009 | C41: 7 | D41: 宝箱2 | E41: 8 | F41: 2 | G41: 2 | H41: 101050 | J41: bg_jq_nonwusenlin
B42: 101010 | C42: 7 | D42: 宝箱3 | E42: 8 | F42: 2 | G42: 2 | H42: 101051 | J42: bg_jq_nonwusenlin
B43: 101011 | C43: 7 | D43: 宝箱4 | E43: 8 | F43: 2 | G43: 2 | H43: 101052 | J43: bg_jq_nonwusenlin
B44: 101012 | C44: 7 | D44: 宝箱5 | E44: 8 | F44: 2 | G44: 2 | H44: 101053 | J44: bg_jq_nonwusenlin
B45: 101013 | C45: 6 | D45: 云游商人 | E45: 12 | F45: 2 | G45: 2 | H45: 101054 | K45: 1#100|0#700
B46: 101014 | C46: 5 | D46: 冒险者尸体 | E46: 7 | F46: 2 | G46: 2 | H46: 101056
B47: 101015 | C47: 7 | D47: 大宝箱1 | E47: 8 | F47: 2 | G47: 2 | H47: 101060
B48: 101016 | C48: 1 | D48: 杂兵 | E48: 1 | F48: 2 | G48: 1 | H48: 101061 | L48: 10104
B49: 101017 | C49: 1 | D49: 精英杂兵 | E49: 2 | F49: 2 | G49: 1 | H49: 101062 | L49: 10105
B50: 101018 | C50: 7 | D50: 大宝箱2 | E50: 8 | F50: 2 | G50: 2 | H50: 101063
B51: 101019 | C51: 11 | D51: 银英怪 | E51: 17 | F51: 2 | G51: 2 | H51: 101064 | K51: 1#900|0#100
B52: 101020 | C52: 5 | D52: 测试试炼boss
B53: 101021 | C53: 5 | D53: 测试试炼福利怪
B54: 101022 | C54: 5 | D54: 测试试炼
B55: 101023 | C55: 6 | D55: 云游商人 | E55: 12 | F55: 2 | G55: 2 | H55: 101054
B57: 102001 | C57: 5 | D57: 平民群1 | E57: 7 | F57: 2 | G57: 2 | H57: 102001 | J57: bg_jq_senlin | L57: 10201
B58: 102002 | C58: 5 | D58: 南方塔楼 | E58: 7 | F58: 2 | G58: 2 | H58: 102016 | J58: bg_jq_talou | L58: 10202#10203#10204
B59: 102003 | C59: 5 | D59: 平民群2 | E59: 7 | F59: 2 | G59: 2 | H59: 102054 | J59: bg_jq_juluo
B60: 102004 | C60: 1 | D60: 杂兵妖兽 | E60: 1 | F60: 2 | G60: 1 | H60: 102081 | L60: 10206
B61: 102005 | C61: 2 | D61: 阵石 | E61: 11 | F61: 2 | G61: 2 | H61: 102077 | J61: bg_jq_senlin
B62: 102006 | C62: 1 | D62: 精英妖兽 | E62: 2 | F62: 2 | G62: 1 | H62: 102128 | J62: bg_jq_senlin | L62: 10210
B63: 102007 | C63: 5 | D63: 史诗妖兽 | E63: 10 | F63: 2 | G63: 2 | H63: 102133 | J63: bg_jq_senlin | L63: 10209
B64: 102008 | C64: 2 | D64: 任务矿点 | E64: 11 | F64: 2 | G64: 2 | H64: 102080 | J64: bg_jq_senlin
B65: 102009 | C65: 8 | D65: 阻挡点 | F65: 2
B66: 102010 | C66: 5 | D66: 平民群3 | E66: 7 | F66: 2 | G66: 2 | H66: 102105 | J66: bg_jq_juluo
B67: 102011 | C67: 5 | D67: 地图探索点 | E67: 7 | F67: 2 | G67: 2 | H67: 102116 | J67: bg_jq_senlin | L67: 10208
B68: 102012 | C68: 7 | D68: 宝箱1 | E68: 8 | F68: 2 | G68: 2 | H68: 102122 | J68: bg_jq_senlin
B69: 102013 | C69: 7 | D69: 宝箱2 | E69: 8 | F69: 2 | G69: 2 | H69: 102123 | J69: bg_jq_senlin
B70: 102014 | C70: 7 | D70: 宝箱3 | E70: 8 | F70: 2 | G70: 2 | H70: 102124 | J70: bg_jq_senlin
B71: 102015 | C71: 7 | D71: 宝箱4 | E71: 8 | F71: 2 | G71: 2 | H71: 102125 | J71: bg_jq_senlin
B72: 102016 | C72: 7 | D72: 宝箱5 | E72: 8 | F72: 2 | G72: 2 | H72: 102126 | J72: bg_jq_senlin
B73: 102017 | C73: 7 | D73: 宝箱6 | E73: 8 | F73: 2 | G73: 2 | H73: 102127 | J73: bg_jq_senlin
B75: 103001 | C75: 5 | D75: 遇难者 | E75: 7 | F75: 2 | G75: 2 | H75: 103001 | J75: bg_jq_posundemache | L75: 10301
B76: 103002 | C76: 5 | D76: 匪徒营寨 | E76: 7 | F76: 2 | G76: 2 | H76: 103016 | J76: bg_jq_yingzhai | L76: 10302#10303
B77: 103003 | C77: 5 | D77: 马贼头领 | E77: 7 | F77: 2 | G77: 2 | H77: 103024 | J77: bg_jq_yuanye | L77: 10304
B78: 103004 | C78: 5 | D78: 匪徒营寨2 | E78: 7 | F78: 2 | G78: 2 | H78: 103034 | J78: bg_jq_yingzhai | L78: 10305
B79: 103005 | C79: 5 | D79: 遇难者2 | E79: 7 | F79: 2 | G79: 2 | H79: 103047 | J79: bg_jq_posundemache
B80: 103006 | C80: 8 | D80: 阻挡点 | F80: 2
B81: 103007 | C81: 1 | D81: 杂兵 | E81: 1 | F81: 2 | G81: 1 | H81: 103069 | L81: 10306
B82: 103008 | C82: 7 | D82: 藏宝箱 | E82: 8 | F82: 2 | G82: 2 | H82: 103066 | J82: bg_jq_yuanye
B83: 103009 | C83: 7 | D83: 藏宝箱 | E83: 8 | F83: 2 | G83: 2 | H83: 103067 | J83: bg_jq_yuanye
B84: 103010 | C84: 7 | D84: 藏宝箱 | E84: 8 | F84: 2 | G84: 2 | H84: 103068 | J84: bg_jq_yuanye
B85: 103011 | C85: 5 | D85: 传送点1 | E85: 9 | F85: 2 | G85: 2 | H85: 103094 | J85: bg_jq_yingzhai
B86: 103012 | C86: 5 | D86: 传送点2 | E86: 9 | F86: 2 | G86: 2 | H86: 103096 | J86: bg_jq_yingzhai
B87: 103013 | C87: 5 | D87: 马贼头领2 | E87: 7 | F87: 2 | G87: 2 | H87: 103072 | J87: bg_jq_yuanye | L87: 10307
B88: 103014 | C88: 1 | D88: 精英怪 | E88: 2 | F88: 2 | G88: 1 | H88: 103098 | L88: 10309
B89: 103015 | C89: 5 | D89: buff-回血 | E89: 3 | F89: 2 | G89: 2 | H89: 103099
B90: 103016 | C90: 5 | D90: buff-加攻击 | E90: 14 | F90: 2 | G90: 2 | H90: 103101
B91: 103017 | C91: 5 | D91: buff-加双抗 | E91: 15 | F91: 2 | G91: 2 | H91: 103103
B93: 104001 | C93: 5 | D93: 河边停船 | E93: 7 | F93: 2 | G93: 2 | H93: 104001 | J93: bg_jq_hebian | L93: 10401
B94: 104002 | C94: 5 | D94: 北方墓碑 | E94: 7 | F94: 2 | G94: 2 | H94: 104011 | J94: bg_jq_mubei | L94: 10402
B95: 104003 | C95: 5 | D95: 南方营寨 | E95: 7 | F95: 2 | G95: 2 | H95: 104022 | J95: bg_jq_yingzhai | L95: 10403
B96: 104004 | C96: 8 | D96: 阻挡点 | F96: 2
B97: 104005 | C97: 5 | D97: 渔民 | E97: 7 | F97: 2 | G97: 2 | H97: 104038 | J97: bg_jq_yuanye
B98: 104006 | C98: 1 | D98: 杂兵 | E98: 1 | F98: 2 | G98: 1 | H98: 104043 | L98: 10404
B99: 104007 | C99: 7 | D99: 藏宝箱 | E99: 8 | F99: 2 | G99: 2 | H99: 104040 | J99: bg_jq_yuanye
B100: 104008 | C100: 7 | D100: 藏宝箱 | E100: 8 | F100: 2 | G100: 2 | H100: 104041 | J100: bg_jq_yuanye
B101: 104009 | C101: 7 | D101: 藏宝箱 | E101: 8 | F101: 2 | G101: 2 | H101: 104042 | J101: bg_jq_yuanye
B102: 104010 | C102: 10 | D102: 断桥 | E102: 7 | F102: 2 | G102: 1 | H102: 104044
B103: 104011 | C103: 5 | D103: 伐木点 | E103: 7 | F103: 2 | G103: 2 | H103: 104045 | L103: 10405
B104: 104012 | C104: 5 | D104: 宝藏2 | E104: 7 | F104: 2 | G104: 2 | H104: 104035 | L104: 10406
B105: 104013 | C105: 1 | D105: 精英怪 | E105: 2 | F105: 2 | G105: 1 | H105: 104056 | L105: 10407
B107: 105001 | C107: 5 | D107: 商人 | E107: 7 | F107: 2 | G107: 2 | H107: 105001 | J107: bg_jq_yuanye
B108: 105002 | C108: 10 | D108: 感到异常 | F108: 2 | G108: 1 | H108: 105005 | I108: 3 | J108: bg_jq_yuanye
B109: 105003 | C109: 10 | D109: 山洞附近 | E109: 7 | F109: 2 | G109: 1 | H109: 105008 | I109: 3 | J109: bg_jq_yuanye
B110: 105004 | C110: 5 | D110: 淡水 | E110: 7 | F110: 2 | G110: 2 | H110: 105060 | J110: bg_jq_yuanye | L110: 10505
B111: 105005 | C111: 8 | D111: 阻挡点 | F111: 2
B112: 105006 | C112: 10 | D112: 出山洞 | F112: 2 | G112: 1 | H112: 105055 | I112: 3 | J112: bg_jq_yuanye
B113: 105007 | C113: 1 | D113: 杂兵 | E113: 1 | F113: 2 | G113: 1 | H113: 105136 | L113: 10501
B114: 105008 | C114: 7 | D114: 藏宝箱 | E114: 8 | F114: 2 | G114: 2 | H114: 105132 | J114: bg_jq_yuanye
B115: 105009 | C115: 7 | D115: 藏宝箱 | E115: 8 | F115: 2 | G115: 2 | H115: 105133 | J115: bg_jq_yuanye
B116: 105010 | C116: 7 | D116: 藏宝箱 | E116: 8 | F116: 2 | G116: 2 | H116: 105134 | J116: bg_jq_yuanye
B117: 105011 | C117: 5 | D117: 兽肉 | E117: 7 | F117: 2 | G117: 2 | H117: 105063 | L117: 10502
B118: 105012 | C118: 5 | D118: 山洞 | E118: 7 | F118: 2 | G118: 2 | H118: 105023
B119: 105013 | C119: 5 | D119: 兽肉2 | E119: 7 | F119: 2 | G119: 2 | H119: 105102 | L119: 10502
B120: 105014 | C120: 5 | D120: 兽肉必给点 | E120: 7 | F120: 2 | G120: 2 | H120: 105109 | L120: 10502
B121: 105015 | C121: 5 | D121: 石像 | E121: 7 | F121: 2 | G121: 2 | H121: 105080 | L121: 10506#10507#10508
B122: 105016 | C122: 5 | D122: 机关1 | E122: 17 | F122: 2 | G122: 2 | H122: 105086
B123: 105017 | C123: 5 | D123: 机关2 | E123: 17 | F123: 2 | G123: 2 | H123: 105117
B124: 105018 | C124: 5 | D124: 机关3 | E124: 17 | F124: 2 | G124: 2 | H124: 105117
B125: 105019 | C125: 5 | D125: 机关4 | E125: 17 | F125: 2 | G125: 2 | H125: 105117
B126: 105020 | C126: 5 | D126: 石像2 | E126: 7 | F126: 2 | G126: 2 | H126: 105093
B127: 105021 | C127: 1 | D127: 精英怪 | E127: 2 | F127: 2 | G127: 1 | H127: 105135 | L127: 10504
B129: 106001 | C129: 5 | D129: 守备军士兵 | E129: 7 | F129: 2 | G129: 2 | H129: 106001
B130: 106002 | C130: 5 | D130: 平民 | E130: 7 | F130: 2 | G130: 2 | H130: 106005 | L130: 10601
B131: 106003 | C131: 5 | D131: 西边调查点 | E131: 7 | F131: 2 | G131: 2 | H131: 106023 | L131: 10602
B132: 106004 | C132: 5 | D132: 西边调查点2 | E132: 7 | F132: 2 | G132: 2 | H132: 106039 | L132: 10602
B133: 106005 | C133: 5 | D133: 守备军士兵2 | E133: 7 | F133: 2 | G133: 2 | H133: 106018
B134: 106006 | C134: 5 | D134: 守备军士兵3 | E134: 7 | F134: 2 | G134: 2 | H134: 106033
B135: 106007 | C135: 5 | D135: 守备军士兵4 | E135: 7 | F135: 2 | G135: 2 | H135: 106049
B136: 106008 | C136: 8 | D136: 阻挡点
B137: 106009 | C137: 7 | D137: 藏宝箱 | E137: 8 | F137: 2 | G137: 2 | H137: 106052
B138: 106010 | C138: 7 | D138: 藏宝箱 | E138: 8 | F138: 2 | G138: 2 | H138: 106053
B139: 106011 | C139: 7 | D139: 藏宝箱 | E139: 8 | F139: 2 | G139: 2 | H139: 106054
B140: 106012 | C140: 7 | D140: 藏宝箱 | E140: 8 | F140: 2 | G140: 2 | H140: 106055
B141: 106013 | C141: 7 | D141: 藏宝箱 | E141: 8 | F141: 2 | G141: 2 | H141: 106056
B142: 106014 | C142: 1 | D142: 精英杂兵 | E142: 2 | F142: 2 | G142: 1 | H142: 106072 | L142: 10604
B143: 106015 | C143: 1 | D143: 普通杂兵 | E143: 1 | F143: 2 | G143: 1 | H143: 106073 | L143: 10603
B144: 106016 | C144: 5 | D144: 隐身杂兵 | E144: 1 | F144: 2 | G144: 1 | H144: 106060 | I144: 3
B145: 106017 | C145: 5 | D145: 隐身遭遇战1 | E145: 1 | F145: 2 | G145: 1 | H145: 106057 | I145: 3
B146: 106018 | C146: 5 | D146: 隐身遭遇战2 | E146: 1 | F146: 2 | G146: 1 | H146: 106067 | I146: 3
B147: 106019 | C147: 5 | D147: 城南 | E147: 7 | F147: 2 | G147: 2 | H147: 106065
B148: 106020 | C148: 5 | D148: 大路 | E148: 7 | F148: 2 | G148: 2 | H148: 106069
B150: 107001 | C150: 5 | D150: 御水之都 | E150: 7 | F150: 2 | G150: 1 | H150: 107001 | I150: 3
B151: 107002 | C151: 5 | D151: 地痞 | E151: 7 | F151: 2 | G151: 2 | H151: 107007 | L151: 10701
B152: 107003 | C152: 5 | D152: 赌坊 | E152: 7 | F152: 2 | G152: 2 | H152: 107026 | L152: 10702#10708
B153: 107004 | C153: 5 | D153: 平民 | E153: 7 | F153: 2 | G153: 2 | H153: 107051
B154: 107005 | C154: 1 | D154: 杂兵小头领 | E154: 2 | F154: 2 | G154: 1 | H154: 107059 | L154: 10704
B155: 107006 | C155: 8 | D155: 阻挡点 | F155: 2
B156: 107007 | C156: 7 | D156: 藏宝箱 | E156: 8 | F156: 2 | G156: 2 | H156: 107060
B157: 107008 | C157: 7 | D157: 藏宝箱 | E157: 8 | F157: 2 | G157: 2 | H157: 107061
B158: 107009 | C158: 7 | D158: 藏宝箱 | E158: 8 | F158: 2 | G158: 2 | H158: 107062
B159: 107010 | C159: 5 | D159: 幻魂草1 | E159: 7 | F159: 2 | G159: 2 | H159: 107070 | L159: 10705
B160: 107011 | C160: 5 | D160: 幻魂草2 | E160: 7 | F160: 2 | G160: 2 | H160: 107073 | L160: 10706
B161: 107012 | C161: 5 | D161: 幻魂草3 | E161: 7 | F161: 2 | G161: 2 | H161: 107076 | L161: 10707
B162: 107013 | C162: 1 | D162: 普通杂兵 | E162: 1 | F162: 2 | G162: 1 | H162: 107090 | L162: 10709
B163: 107014 | C163: 5 | D163: 幻魂草回收点 | E163: 7 | F163: 2 | G163: 2 | H163: 107092
B164: 107015 | C164: 5 | D164: 押送点1 | E164: 7 | F164: 2 | G164: 2 | H164: 107104 | L164: 10710
B165: 107016 | C165: 5 | D165: 押送点2 | E165: 7 | F165: 2 | G165: 2 | H165: 107106 | L165: 10710
B166: 107017 | C166: 5 | D166: 押送点3 | E166: 7 | F166: 2 | G166: 2 | H166: 107108 | L166: 10710
B167: 107018 | C167: 5 | D167: 押送点4 | E167: 7 | F167: 2 | G167: 2 | H167: 107110 | L167: 10710
B168: 107019 | C168: 5 | D168: 楚恒 | E168: 7 | F168: 2 | G168: 2 | H168: 107112
B169: 107020 | C169: 5 | D169: 大长老位置 | E169: 7 | F169: 2 | G169: 2 | H169: 107116 | L169: 10712#10711
B170: 107021 | C170: 5 | D170: 平民2 | E170: 7 | F170: 2 | G170: 2 | H170: 107131
B172: 108001 | C172: 5 | D172: 出门 | E172: 7 | F172: 2 | G172: 2 | H172: 108001
B173: 108002 | C173: 5 | D173: 受伤的士兵 | E173: 7 | F173: 2 | G173: 2 | H173: 108009
B174: 108003 | C174: 5 | D174: 信徒 | E174: 7 | F174: 2 | G174: 2 | H174: 108018 | L174: 10801#10802
B175: 108004 | C175: 8 | D175: 阻挡点 | F175: 2
B176: 108005 | C176: 7 | D176: 藏宝箱 | E176: 8 | F176: 2 | G176: 2 | H176: 108038
B177: 108006 | C177: 7 | D177: 藏宝箱 | E177: 8 | F177: 2 | G177: 2 | H177: 108039
B178: 108007 | C178: 7 | D178: 藏宝箱 | E178: 8 | F178: 2 | G178: 2 | H178: 108040
B179: 108008 | C179: 5 | D179: 结界节点 | E179: 7 | F179: 2 | G179: 2 | H179: 108041 | L179: 10803
B180: 108009 | C180: 5 | D180: 好人1 | E180: 7 | F180: 2 | G180: 2 | H180: 108056
B181: 108010 | C181: 5 | D181: 好人2 | E181: 7 | F181: 2 | G181: 2 | H181: 108061
B182: 108011 | C182: 5 | D182: 好人3 | E182: 7 | F182: 2 | G182: 2 | H182: 108066
B183: 108012 | C183: 5 | D183: 坏人1 | E183: 7 | F183: 2 | G183: 2 | H183: 108071
B184: 108013 | C184: 5 | D184: 坏人2 | E184: 7 | F184: 2 | G184: 2 | H184: 108075
B185: 108014 | C185: 5 | D185: 坏人3 | E185: 7 | F185: 2 | G185: 2 | H185: 108079
B186: 108015 | C186: 1 | D186: 普通杂兵 | E186: 1 | F186: 2 | G186: 1 | H186: 108093 | L186: 10806
B187: 108016 | C187: 1 | D187: 精英杂兵 | E187: 2 | F187: 2 | G187: 1 | H187: 108094 | L187: 10807
B188: 108017 | C188: 5 | D188: 结界节点 | E188: 7 | F188: 2 | G188: 2 | H188: 108041 | L188: 10803
B189: 108018 | C189: 5 | D189: 结界节点 | E189: 7 | F189: 2 | G189: 2 | H189: 108041 | L189: 10803
B191: 109001 | C191: 5 | D191: 护卫长 | E191: 7 | F191: 2 | G191: 2 | H191: 109001
B192: 109002 | C192: 5 | D192: 妖兽 | E192: 7 | F192: 2 | G192: 2 | H192: 109003 | L192: 10901
B193: 109003 | C193: 5 | D193: 灵智妖兽 | E193: 10 | F193: 2 | G193: 2 | H193: 109009 | L193: 10902
B194: 109004 | C194: 5 | D194: 护卫长2 | E194: 7 | F194: 2 | G194: 2 | H194: 109031
B195: 109005 | C195: 5 | D195: 兜帽人 | E195: 2 | F195: 2 | G195: 2 | H195: 109033 | L195: 10903
B196: 109006 | C196: 1 | D196: 妖兽杂兵 | E196: 1 | F196: 2 | G196: 1 | H196: 109034 | L196: 10907
B197: 109007 | C197: 8 | D197: 阻挡点 | F197: 2
B198: 109008 | C198: 5 | D198: 兜帽人 | E198: 2 | F198: 2 | G198: 2 | H198: 109035 | L198: 10903
B199: 109009 | C199: 5 | D199: 兜帽人 | E199: 2 | F199: 2 | G199: 2 | H199: 109036 | L199: 10903
B200: 109010 | C200: 7 | D200: 藏宝箱 | E200: 8 | F200: 2 | G200: 2 | H200: 109037
B201: 109011 | C201: 7 | D201: 藏宝箱 | E201: 8 | F201: 2 | G201: 2 | H201: 109038
B202: 109012 | C202: 7 | D202: 藏宝箱 | E202: 8 | F202: 2 | G202: 2 | H202: 109039
B203: 109013 | C203: 1 | D203: 守护怪-弱 | E203: 1 | F203: 2 | G203: 1 | H203: 109041 | L203: 10904
B204: 109014 | C204: 1 | D204: 守护怪-中 | E204: 2 | F204: 2 | G204: 1 | H204: 109042 | L204: 10905
B205: 109015 | C205: 1 | D205: 守护怪-强 | E205: 10 | F205: 2 | G205: 1 | H205: 109043 | L205: 10906
B206: 109016 | C206: 5 | D206: 灵石 | E206: 11 | F206: 2 | G206: 2 | H206: 109040
B207: 109017 | C207: 5 | D207: 埋伏妖兽 | F207: 2 | G207: 2 | H207: 109047 | I207: 3
B208: 109018 | C208: 5 | D208: 埋伏妖兽 | F208: 2 | G208: 2 | H208: 109049 | I208: 3
B209: 109019 | C209: 5 | D209: 目标点 | E209: 7 | F209: 2 | G209: 2 | H209: 109051
B210: 109020 | C210: 5 | D210: 灵石 | E210: 11 | F210: 2 | G210: 2 | H210: 109056
B211: 109021 | C211: 5 | D211: 灵石 | E211: 11 | F211: 2 | G211: 2 | H211: 109057
... 2375 more rows

Sheet Sheet1
A1: 2001001#100 | B1: 2001002#100 | C1: 2001003#100 | D1: 2001004#100 | E1: 2001005#100 | F1: 2001006#100 | G1: 2001007#100 | H1: 2001008#100 | K1: =--LEFT(A1,FIND("#",A1,1)-1) -> 2001001 | L1: =--LEFT(B1,FIND("#",B1,1)-1) -> 2001002 | M1: 2001003 | N1: 2001004 | O1: 2001005 | P1: 2001006 | Q1: 2001007 | R1: 2001008 | T1: =VLOOKUP(K1,MapPointConfig!$B$833:$H$1732,7,FALSE) -> 2001001 | U1: =VLOOKUP(L1,MapPointConfig!$B$833:$H$1732,7,FALSE) -> 2001002 | V1: =VLOOKUP(M1,MapPointConfig!$B$833:$H$1732,7,FALSE) -> 2001003 | W1: =VLOOKUP(N1,MapPointConfig!$B$833:$H$1732,7,FALSE) -> 2001004 | X1: =VLOOKUP(O1,MapPointConfig!$B$833:$H$1732,7,FALSE) -> 2001005 | Y1: =VLOOKUP(P1,MapPointConfig!$B$833:$H$1732,7,FALSE) -> 2001006 | Z1: =VLOOKUP(Q1,MapPointConfig!$B$833:$H$1732,7,FALSE) -> 2001007 | AA1: =VLOOKUP(R1,MapPointConfig!$B$833:$H$1732,7,FALSE) -> 2001008
A2: 2002001#100 | B2: 2002002#100 | C2: 2002003#100 | D2: 2002004#100 | E2: 2002005#100 | F2: 2002006#100 | G2: 2002007#100 | H2: 2002008#100 | K2: =--LEFT(A2,FIND("#",A2,1)-1) -> 2002001 | L2: =--LEFT(B2,FIND("#",B2,1)-1) -> 2002002 | M2: =--LEFT(C2,FIND("#",C2,1)-1) -> 2002003 | N2: =--LEFT(D2,FIND("#",D2,1)-1) -> 2002004 | O2: =--LEFT(E2,FIND("#",E2,1)-1) -> 2002005 | P2: =--LEFT(F2,FIND("#",F2,1)-1) -> 2002006 | Q2: =--LEFT(G2,FIND("#",G2,1)-1) -> 2002007 | R2: =--LEFT(H2,FIND("#",H2,1)-1) -> 2002008 | T2: =VLOOKUP(K2,MapPointConfig!$B$833:$H$1732,7,FALSE) -> 2002001 | U2: =VLOOKUP(L2,MapPointConfig!$B$833:$H$1732,7,FALSE) -> 2002002 | V2: =VLOOKUP(M2,MapPointConfig!$B$833:$H$1732,7,FALSE) -> 2002003 | W2: =VLOOKUP(N2,MapPointConfig!$B$833:$H$1732,7,FALSE) -> 2002004 | X2: =VLOOKUP(O2,MapPointConfig!$B$833:$H$1732,7,FALSE) -> 2002005 | Y2: =VLOOKUP(P2,MapPointConfig!$B$833:$H$1732,7,FALSE) -> 2002006 | Z2: =VLOOKUP(Q2,MapPointConfig!$B$833:$H$1732,7,FALSE) -> 2002007 | AA2: =VLOOKUP(R2,MapPointConfig!$B$833:$H$1732,7,FALSE) -> 2002008
A3: 2003001#100 | B3: 2003002#100 | C3: 2003003#100 | D3: 2003004#100 | E3: 2003005#100 | F3: 2003006#100 | G3: 2003007#100 | H3: 2003008#100 | K3: 2003001 | L3: 2003002 | M3: 2003003 | N3: 2003004 | O3: 2003005 | P3: 2003006 | Q3: 2003007 | R3: 2003008 | T3: =VLOOKUP(K3,MapPointConfig!$B$833:$H$1732,7,FALSE) -> 2003001 | U3: =VLOOKUP(L3,MapPointConfig!$B$833:$H$1732,7,FALSE) -> 2003002 | V3: =VLOOKUP(M3,MapPointConfig!$B$833:$H$1732,7,FALSE) -> 2003003 | W3: =VLOOKUP(N3,MapPointConfig!$B$833:$H$1732,7,FALSE) -> 2003004 | X3: =VLOOKUP(O3,MapPointConfig!$B$833:$H$1732,7,FALSE) -> 2003005 | Y3: =VLOOKUP(P3,MapPointConfig!$B$833:$H$1732,7,FALSE) -> 2003006 | Z3: =VLOOKUP(Q3,MapPointConfig!$B$833:$H$1732,7,FALSE) -> 2003007 | AA3: =VLOOKUP(R3,MapPointConfig!$B$833:$H$1732,7,FALSE) -> 2003008
A4: 2004001#100 | B4: 2004002#100 | C4: 2004003#100 | D4: 2004004#100 | E4: 2004005#100 | F4: 2004006#100 | G4: 2004007#100 | H4: 2004008#100 | K4: 2004001 | L4: 2004002 | M4: 2004003 | N4: 2004004 | O4: 2004005 | P4: 2004006 | Q4: 2004007 | R4: 2004008 | T4: =VLOOKUP(K4,MapPointConfig!$B$833:$H$1732,7,FALSE) -> 2004001 | U4: =VLOOKUP(L4,MapPointConfig!$B$833:$H$1732,7,FALSE) -> 2004002 | V4: =VLOOKUP(M4,MapPointConfig!$B$833:$H$1732,7,FALSE) -> 2004003 | W4: =VLOOKUP(N4,MapPointConfig!$B$833:$H$1732,7,FALSE) -> 2004004 | X4: =VLOOKUP(O4,MapPointConfig!$B$833:$H$1732,7,FALSE) -> 2004005 | Y4: =VLOOKUP(P4,MapPointConfig!$B$833:$H$1732,7,FALSE) -> 2004006 | Z4: =VLOOKUP(Q4,MapPointConfig!$B$833:$H$1732,7,FALSE) -> 2004007 | AA4: =VLOOKUP(R4,MapPointConfig!$B$833:$H$1732,7,FALSE) -> 2004008
A5: 2005001#100 | B5: 2005002#100 | C5: 2005003#100 | D5: 2005004#100 | E5: 2005005#100 | F5: 2005006#100 | G5: 2005007#100 | H5: 2005008#100 | K5: 2005001 | L5: 2005002 | M5: 2005003 | N5: 2005004 | O5: 2005005 | P5: 2005006 | Q5: 2005007 | R5: 2005008 | T5: =VLOOKUP(K5,MapPointConfig!$B$833:$H$1732,7,FALSE) -> 2005001 | U5: =VLOOKUP(L5,MapPointConfig!$B$833:$H$1732,7,FALSE) -> 2005002 | V5: =VLOOKUP(M5,MapPointConfig!$B$833:$H$1732,7,FALSE) -> 2005003 | W5: =VLOOKUP(N5,MapPointConfig!$B$833:$H$1732,7,FALSE) -> 2005004 | X5: =VLOOKUP(O5,MapPointConfig!$B$833:$H$1732,7,FALSE) -> 2005005 | Y5: =VLOOKUP(P5,MapPointConfig!$B$833:$H$1732,7,FALSE) -> 2005006 | Z5: =VLOOKUP(Q5,MapPointConfig!$B$833:$H$1732,7,FALSE) -> 2005007 | AA5: =VLOOKUP(R5,MapPointConfig!$B$833:$H$1732,7,FALSE) -> 2005008
A6: 2006001#100 | B6: 2006002#100 | C6: 2006003#100 | D6: 2006004#100 | E6: 2006005#100 | F6: 2006006#100 | G6: 2006007#100 | H6: 2006008#100 | K6: 2006001 | L6: 2006002 | M6: 2006003 | N6: 2006004 | O6: 2006005 | P6: 2006006 | Q6: 2006007 | R6: 2006008 | T6: =VLOOKUP(K6,MapPointConfig!$B$833:$H$1732,7,FALSE) -> 2006001 | U6: =VLOOKUP(L6,MapPointConfig!$B$833:$H$1732,7,FALSE) -> 2006002 | V6: =VLOOKUP(M6,MapPointConfig!$B$833:$H$1732,7,FALSE) -> 2006003 | W6: =VLOOKUP(N6,MapPointConfig!$B$833:$H$1732,7,FALSE) -> 2006004 | X6: =VLOOKUP(O6,MapPointConfig!$B$833:$H$1732,7,FALSE) -> 2006005 | Y6: =VLOOKUP(P6,MapPointConfig!$B$833:$H$1732,7,FALSE) -> 2006006 | Z6: =VLOOKUP(Q6,MapPointConfig!$B$833:$H$1732,7,FALSE) -> 2006007 | AA6: =VLOOKUP(R6,MapPointConfig!$B$833:$H$1732,7,FALSE) -> 2006008
A7: 2007001#100 | B7: 2007002#100 | C7: 2007003#100 | D7: 2007004#100 | E7: 2007005#100 | F7: 2007006#100 | G7: 2007007#100 | H7: 2007008#100 | K7: 2007001 | L7: 2007002 | M7: 2007003 | N7: 2007004 | O7: 2007005 | P7: 2007006 | Q7: 2007007 | R7: 2007008 | T7: =VLOOKUP(K7,MapPointConfig!$B$833:$H$1732,7,FALSE) -> 2007001 | U7: =VLOOKUP(L7,MapPointConfig!$B$833:$H$1732,7,FALSE) -> 2007002 | V7: =VLOOKUP(M7,MapPointConfig!$B$833:$H$1732,7,FALSE) -> 2007003 | W7: =VLOOKUP(N7,MapPointConfig!$B$833:$H$1732,7,FALSE) -> 2007004 | X7: =VLOOKUP(O7,MapPointConfig!$B$833:$H$1732,7,FALSE) -> 2007005 | Y7: =VLOOKUP(P7,MapPointConfig!$B$833:$H$1732,7,FALSE) -> 2007006 | Z7: =VLOOKUP(Q7,MapPointConfig!$B$833:$H$1732,7,FALSE) -> 2007007 | AA7: =VLOOKUP(R7,MapPointConfig!$B$833:$H$1732,7,FALSE) -> 2007008
A8: 2008001#100 | B8: 2008002#100 | C8: 2008003#100 | D8: 2008004#100 | E8: 2008005#100 | F8: 2008006#100 | G8: 2008007#100 | H8: 2008008#100 | K8: 2008001 | L8: 2008002 | M8: 2008003 | N8: 2008004 | O8: 2008005 | P8: 2008006 | Q8: 2008007 | R8: 2008008 | T8: =VLOOKUP(K8,MapPointConfig!$B$833:$H$1732,7,FALSE) -> 2008001 | U8: =VLOOKUP(L8,MapPointConfig!$B$833:$H$1732,7,FALSE) -> 2008002 | V8: =VLOOKUP(M8,MapPointConfig!$B$833:$H$1732,7,FALSE) -> 2008003 | W8: =VLOOKUP(N8,MapPointConfig!$B$833:$H$1732,7,FALSE) -> 2008004 | X8: =VLOOKUP(O8,MapPointConfig!$B$833:$H$1732,7,FALSE) -> 2008005 | Y8: =VLOOKUP(P8,MapPointConfig!$B$833:$H$1732,7,FALSE) -> 2008006 | Z8: =VLOOKUP(Q8,MapPointConfig!$B$833:$H$1732,7,FALSE) -> 2008007 | AA8: =VLOOKUP(R8,MapPointConfig!$B$833:$H$1732,7,FALSE) -> 2008008
A9: 2009001#100 | B9: 2009002#100 | C9: 2009003#100 | D9: 2009004#100 | E9: 2009005#100 | F9: 2009006#100 | G9: 2009007#100 | H9: 2009008#100 | K9: 2009001 | L9: 2009002 | M9: 2009003 | N9: 2009004 | O9: 2009005 | P9: 2009006 | Q9: 2009007 | R9: 2009008 | T9: =VLOOKUP(K9,MapPointConfig!$B$833:$H$1732,7,FALSE) -> 2009001 | U9: =VLOOKUP(L9,MapPointConfig!$B$833:$H$1732,7,FALSE) -> 2009002 | V9: =VLOOKUP(M9,MapPointConfig!$B$833:$H$1732,7,FALSE) -> 2009003 | W9: =VLOOKUP(N9,MapPointConfig!$B$833:$H$1732,7,FALSE) -> 2009004 | X9: =VLOOKUP(O9,MapPointConfig!$B$833:$H$1732,7,FALSE) -> 2009005 | Y9: =VLOOKUP(P9,MapPointConfig!$B$833:$H$1732,7,FALSE) -> 2009006 | Z9: =VLOOKUP(Q9,MapPointConfig!$B$833:$H$1732,7,FALSE) -> 2009007 | AA9: =VLOOKUP(R9,MapPointConfig!$B$833:$H$1732,7,FALSE) -> 2009008
A10: 2010001#100 | B10: 2010002#100 | C10: 2010003#100 | D10: 2010004#100 | E10: 2010005#100 | F10: 2010006#100 | G10: 2010007#100 | H10: 2010008#100 | K10: 2010001 | L10: 2010002 | M10: 2010003 | N10: 2010004 | O10: 2010005 | P10: 2010006 | Q10: 2010007 | R10: 2010008 | T10: =VLOOKUP(K10,MapPointConfig!$B$833:$H$1732,7,FALSE) -> 2010001 | U10: =VLOOKUP(L10,MapPointConfig!$B$833:$H$1732,7,FALSE) -> 2010002 | V10: =VLOOKUP(M10,MapPointConfig!$B$833:$H$1732,7,FALSE) -> 2010003 | W10: =VLOOKUP(N10,MapPointConfig!$B$833:$H$1732,7,FALSE) -> 2010004 | X10: =VLOOKUP(O10,MapPointConfig!$B$833:$H$1732,7,FALSE) -> 2010005 | Y10: =VLOOKUP(P10,MapPointConfig!$B$833:$H$1732,7,FALSE) -> 2010006 | Z10: =VLOOKUP(Q10,MapPointConfig!$B$833:$H$1732,7,FALSE) -> 2010007 | AA10: =VLOOKUP(R10,MapPointConfig!$B$833:$H$1732,7,FALSE) -> 2010008
A11: 2011001#100 | B11: 2011002#100 | C11: 2011003#100 | D11: 2011004#100 | E11: 2011005#100 | F11: 2011006#100 | G11: 2011007#100 | H11: 2011008#100 | K11: 2011001 | L11: 2011002 | M11: 2011003 | N11: 2011004 | O11: 2011005 | P11: 2011006 | Q11: 2011007 | R11: 2011008 | T11: =VLOOKUP(K11,MapPointConfig!$B$833:$H$1732,7,FALSE) -> 2011001 | U11: =VLOOKUP(L11,MapPointConfig!$B$833:$H$1732,7,FALSE) -> 2011002 | V11: =VLOOKUP(M11,MapPointConfig!$B$833:$H$1732,7,FALSE) -> 2011003 | W11: =VLOOKUP(N11,MapPointConfig!$B$833:$H$1732,7,FALSE) -> 2011004 | X11: =VLOOKUP(O11,MapPointConfig!$B$833:$H$1732,7,FALSE) -> 2011005 | Y11: =VLOOKUP(P11,MapPointConfig!$B$833:$H$1732,7,FALSE) -> 2011006 | Z11: =VLOOKUP(Q11,MapPointConfig!$B$833:$H$1732,7,FALSE) -> 2011007 | AA11: =VLOOKUP(R11,MapPointConfig!$B$833:$H$1732,7,FALSE) -> 2011008
A12: 2012001#100 | B12: 2012002#100 | C12: 2012003#100 | D12: 2012004#100 | E12: 2012005#100 | F12: 2012006#100 | G12: 2012007#100 | H12: 2012008#100 | K12: 2012001 | L12: 2012002 | M12: 2012003 | N12: 2012004 | O12: 2012005 | P12: 2012006 | Q12: 2012007 | R12: 2012008 | T12: =VLOOKUP(K12,MapPointConfig!$B$833:$H$1732,7,FALSE) -> 2012001 | U12: =VLOOKUP(L12,MapPointConfig!$B$833:$H$1732,7,FALSE) -> 2012002 | V12: =VLOOKUP(M12,MapPointConfig!$B$833:$H$1732,7,FALSE) -> 2012003 | W12: =VLOOKUP(N12,MapPointConfig!$B$833:$H$1732,7,FALSE) -> 2012004 | X12: =VLOOKUP(O12,MapPointConfig!$B$833:$H$1732,7,FALSE) -> 2012005 | Y12: =VLOOKUP(P12,MapPointConfig!$B$833:$H$1732,7,FALSE) -> 2012006 | Z12: =VLOOKUP(Q12,MapPointConfig!$B$833:$H$1732,7,FALSE) -> 2012007 | AA12: =VLOOKUP(R12,MapPointConfig!$B$833:$H$1732,7,FALSE) -> 2012008
A13: 2013001#100 | B13: 2013002#100 | C13: 2013003#100 | D13: 2013004#100 | E13: 2013005#100 | F13: 2013006#100 | G13: 2013007#100 | H13: 2013008#100 | K13: 2013001 | L13: 2013002 | M13: 2013003 | N13: 2013004 | O13: 2013005 | P13: 2013006 | Q13: 2013007 | R13: 2013008 | T13: =VLOOKUP(K13,MapPointConfig!$B$833:$H$1732,7,FALSE) -> 2013001 | U13: =VLOOKUP(L13,MapPointConfig!$B$833:$H$1732,7,FALSE) -> 2013002 | V13: =VLOOKUP(M13,MapPointConfig!$B$833:$H$1732,7,FALSE) -> 2013003 | W13: =VLOOKUP(N13,MapPointConfig!$B$833:$H$1732,7,FALSE) -> 2013004 | X13: =VLOOKUP(O13,MapPointConfig!$B$833:$H$1732,7,FALSE) -> 2013005 | Y13: =VLOOKUP(P13,MapPointConfig!$B$833:$H$1732,7,FALSE) -> 2013006 | Z13: =VLOOKUP(Q13,MapPointConfig!$B$833:$H$1732,7,FALSE) -> 2013007 | AA13: =VLOOKUP(R13,MapPointConfig!$B$833:$H$1732,7,FALSE) -> 2013008
A14: 2014001#100 | B14: 2014002#100 | C14: 2014003#100 | D14: 2014004#100 | E14: 2014005#100 | F14: 2014006#100 | G14: 2014007#100 | H14: 2014008#100 | K14: 2014001 | L14: 2014002 | M14: 2014003 | N14: 2014004 | O14: 2014005 | P14: 2014006 | Q14: 2014007 | R14: 2014008 | T14: =VLOOKUP(K14,MapPointConfig!$B$833:$H$1732,7,FALSE) -> 2014001 | U14: =VLOOKUP(L14,MapPointConfig!$B$833:$H$1732,7,FALSE) -> 2014002 | V14: =VLOOKUP(M14,MapPointConfig!$B$833:$H$1732,7,FALSE) -> 2014003 | W14: =VLOOKUP(N14,MapPointConfig!$B$833:$H$1732,7,FALSE) -> 2014004 | X14: =VLOOKUP(O14,MapPointConfig!$B$833:$H$1732,7,FALSE) -> 2014005 | Y14: =VLOOKUP(P14,MapPointConfig!$B$833:$H$1732,7,FALSE) -> 2014006 | Z14: =VLOOKUP(Q14,MapPointConfig!$B$833:$H$1732,7,FALSE) -> 2014007 | AA14: =VLOOKUP(R14,MapPointConfig!$B$833:$H$1732,7,FALSE) -> 2014008
A15: 2015001#100 | B15: 2015002#100 | C15: 2015003#100 | D15: 2015004#100 | E15: 2015005#100 | F15: 2015006#100 | G15: 2015007#100 | H15: 2015008#100 | K15: 2015001 | L15: 2015002 | M15: 2015003 | N15: 2015004 | O15: 2015005 | P15: 2015006 | Q15: 2015007 | R15: 2015008 | T15: =VLOOKUP(K15,MapPointConfig!$B$833:$H$1732,7,FALSE) -> 2015001 | U15: =VLOOKUP(L15,MapPointConfig!$B$833:$H$1732,7,FALSE) -> 2015002 | V15: =VLOOKUP(M15,MapPointConfig!$B$833:$H$1732,7,FALSE) -> 2015003 | W15: =VLOOKUP(N15,MapPointConfig!$B$833:$H$1732,7,FALSE) -> 2015004 | X15: =VLOOKUP(O15,MapPointConfig!$B$833:$H$1732,7,FALSE) -> 2015005 | Y15: =VLOOKUP(P15,MapPointConfig!$B$833:$H$1732,7,FALSE) -> 2015006 | Z15: =VLOOKUP(Q15,MapPointConfig!$B$833:$H$1732,7,FALSE) -> 2015007 | AA15: =VLOOKUP(R15,MapPointConfig!$B$833:$H$1732,7,FALSE) -> 2015008
A16: 2016001#100 | B16: 2016002#100 | C16: 2016003#100 | D16: 2016004#100 | E16: 2016005#100 | F16: 2016006#100 | G16: 2016007#100 | H16: 2016008#100 | K16: 2016001 | L16: 2016002 | M16: 2016003 | N16: 2016004 | O16: 2016005 | P16: 2016006 | Q16: 2016007 | R16: 2016008 | T16: =VLOOKUP(K16,MapPointConfig!$B$833:$H$1732,7,FALSE) -> 2016001 | U16: =VLOOKUP(L16,MapPointConfig!$B$833:$H$1732,7,FALSE) -> 2016002 | V16: =VLOOKUP(M16,MapPointConfig!$B$833:$H$1732,7,FALSE) -> 2016003 | W16: =VLOOKUP(N16,MapPointConfig!$B$833:$H$1732,7,FALSE) -> 2016004 | X16: =VLOOKUP(O16,MapPointConfig!$B$833:$H$1732,7,FALSE) -> 2016005 | Y16: =VLOOKUP(P16,MapPointConfig!$B$833:$H$1732,7,FALSE) -> 2016006 | Z16: =VLOOKUP(Q16,MapPointConfig!$B$833:$H$1732,7,FALSE) -> 2016007 | AA16: =VLOOKUP(R16,MapPointConfig!$B$833:$H$1732,7,FALSE) -> 2016008
A17: 2017001#100 | B17: 2017002#100 | C17: 2017003#100 | D17: 2017004#100 | E17: 2017005#100 | F17: 2017006#100 | G17: 2017007#100 | H17: 2017008#100 | K17: 2017001 | L17: 2017002 | M17: 2017003 | N17: 2017004 | O17: 2017005 | P17: 2017006 | Q17: 2017007 | R17: 2017008 | T17: =VLOOKUP(K17,MapPointConfig!$B$833:$H$1732,7,FALSE) -> 2017001 | U17: =VLOOKUP(L17,MapPointConfig!$B$833:$H$1732,7,FALSE) -> 2017002 | V17: =VLOOKUP(M17,MapPointConfig!$B$833:$H$1732,7,FALSE) -> 2017003 | W17: =VLOOKUP(N17,MapPointConfig!$B$833:$H$1732,7,FALSE) -> 2017004 | X17: =VLOOKUP(O17,MapPointConfig!$B$833:$H$1732,7,FALSE) -> 2017005 | Y17: =VLOOKUP(P17,MapPointConfig!$B$833:$H$1732,7,FALSE) -> 2017006 | Z17: =VLOOKUP(Q17,MapPointConfig!$B$833:$H$1732,7,FALSE) -> 2017007 | AA17: =VLOOKUP(R17,MapPointConfig!$B$833:$H$1732,7,FALSE) -> 2017008
A18: 2018001#100 | B18: 2018002#100 | C18: 2018003#100 | D18: 2018004#100 | E18: 2018005#100 | F18: 2018006#100 | G18: 2018007#100 | H18: 2018008#100 | K18: 2018001 | L18: 2018002 | M18: 2018003 | N18: 2018004 | O18: 2018005 | P18: 2018006 | Q18: 2018007 | R18: 2018008 | T18: =VLOOKUP(K18,MapPointConfig!$B$833:$H$1732,7,FALSE) -> 2018001 | U18: =VLOOKUP(L18,MapPointConfig!$B$833:$H$1732,7,FALSE) -> 2018002 | V18: =VLOOKUP(M18,MapPointConfig!$B$833:$H$1732,7,FALSE) -> 2018003 | W18: =VLOOKUP(N18,MapPointConfig!$B$833:$H$1732,7,FALSE) -> 2018004 | X18: =VLOOKUP(O18,MapPointConfig!$B$833:$H$1732,7,FALSE) -> 2018005 | Y18: =VLOOKUP(P18,MapPointConfig!$B$833:$H$1732,7,FALSE) -> 2018006 | Z18: =VLOOKUP(Q18,MapPointConfig!$B$833:$H$1732,7,FALSE) -> 2018007 | AA18: =VLOOKUP(R18,MapPointConfig!$B$833:$H$1732,7,FALSE) -> 2018008
A19: 2019001#100 | B19: 2019002#100 | C19: 2019003#100 | D19: 2019004#100 | E19: 2019005#100 | F19: 2019006#100 | G19: 2019007#100 | H19: 2019008#100 | K19: 2019001 | L19: 2019002 | M19: 2019003 | N19: 2019004 | O19: 2019005 | P19: 2019006 | Q19: 2019007 | R19: 2019008 | T19: =VLOOKUP(K19,MapPointConfig!$B$833:$H$1732,7,FALSE) -> 2019001 | U19: =VLOOKUP(L19,MapPointConfig!$B$833:$H$1732,7,FALSE) -> 2019002 | V19: =VLOOKUP(M19,MapPointConfig!$B$833:$H$1732,7,FALSE) -> 2019003 | W19: =VLOOKUP(N19,MapPointConfig!$B$833:$H$1732,7,FALSE) -> 2019004 | X19: =VLOOKUP(O19,MapPointConfig!$B$833:$H$1732,7,FALSE) -> 2019005 | Y19: =VLOOKUP(P19,MapPointConfig!$B$833:$H$1732,7,FALSE) -> 2019006 | Z19: =VLOOKUP(Q19,MapPointConfig!$B$833:$H$1732,7,FALSE) -> 2019007 | AA19: =VLOOKUP(R19,MapPointConfig!$B$833:$H$1732,7,FALSE) -> 2019008
A20: 2020001#100 | B20: 2020002#100 | C20: 2020003#100 | D20: 2020004#100 | E20: 2020005#100 | F20: 2020006#100 | G20: 2020007#100 | H20: 2020008#100 | K20: 2020001 | L20: 2020002 | M20: 2020003 | N20: 2020004 | O20: 2020005 | P20: 2020006 | Q20: 2020007 | R20: 2020008 | T20: =VLOOKUP(K20,MapPointConfig!$B$833:$H$1732,7,FALSE) -> 2020001 | U20: =VLOOKUP(L20,MapPointConfig!$B$833:$H$1732,7,FALSE) -> 2020002 | V20: =VLOOKUP(M20,MapPointConfig!$B$833:$H$1732,7,FALSE) -> 2020003 | W20: =VLOOKUP(N20,MapPointConfig!$B$833:$H$1732,7,FALSE) -> 2020004 | X20: =VLOOKUP(O20,MapPointConfig!$B$833:$H$1732,7,FALSE) -> 2020005 | Y20: =VLOOKUP(P20,MapPointConfig!$B$833:$H$1732,7,FALSE) -> 2020006 | Z20: =VLOOKUP(Q20,MapPointConfig!$B$833:$H$1732,7,FALSE) -> 2020007 | AA20: =VLOOKUP(R20,MapPointConfig!$B$833:$H$1732,7,FALSE) -> 2020008
A21: 2021001#100 | B21: 2021002#100 | C21: 2021003#100 | D21: 2021004#100 | E21: 2021005#100 | F21: 2021006#100 | G21: 2021007#100 | H21: 2021008#100 | K21: 2021001 | L21: 2021002 | M21: 2021003 | N21: 2021004 | O21: 2021005 | P21: 2021006 | Q21: 2021007 | R21: 2021008 | T21: =VLOOKUP(K21,MapPointConfig!$B$833:$H$1732,7,FALSE) -> 2021001 | U21: =VLOOKUP(L21,MapPointConfig!$B$833:$H$1732,7,FALSE) -> 2021002 | V21: =VLOOKUP(M21,MapPointConfig!$B$833:$H$1732,7,FALSE) -> 2021003 | W21: =VLOOKUP(N21,MapPointConfig!$B$833:$H$1732,7,FALSE) -> 2021004 | X21: =VLOOKUP(O21,MapPointConfig!$B$833:$H$1732,7,FALSE) -> 2021005 | Y21: =VLOOKUP(P21,MapPointConfig!$B$833:$H$1732,7,FALSE) -> 2021006 | Z21: =VLOOKUP(Q21,MapPointConfig!$B$833:$H$1732,7,FALSE) -> 2021007 | AA21: =VLOOKUP(R21,MapPointConfig!$B$833:$H$1732,7,FALSE) -> 2021008
A22: 2022001#100 | B22: 2022002#100 | C22: 2022003#100 | D22: 2022004#100 | E22: 2022005#100 | F22: 2022006#100 | G22: 2022007#100 | H22: 2022008#100 | K22: 2022001 | L22: 2022002 | M22: 2022003 | N22: 2022004 | O22: 2022005 | P22: 2022006 | Q22: 2022007 | R22: 2022008 | T22: =VLOOKUP(K22,MapPointConfig!$B$833:$H$1732,7,FALSE) -> 2022001 | U22: =VLOOKUP(L22,MapPointConfig!$B$833:$H$1732,7,FALSE) -> 2022002 | V22: =VLOOKUP(M22,MapPointConfig!$B$833:$H$1732,7,FALSE) -> 2022003 | W22: =VLOOKUP(N22,MapPointConfig!$B$833:$H$1732,7,FALSE) -> 2022004 | X22: =VLOOKUP(O22,MapPointConfig!$B$833:$H$1732,7,FALSE) -> 2022005 | Y22: =VLOOKUP(P22,MapPointConfig!$B$833:$H$1732,7,FALSE) -> 2022006 | Z22: =VLOOKUP(Q22,MapPointConfig!$B$833:$H$1732,7,FALSE) -> 2022007 | AA22: =VLOOKUP(R22,MapPointConfig!$B$833:$H$1732,7,FALSE) -> 2022008
A23: 2023001#100 | B23: 2023002#100 | C23: 2023003#100 | D23: 2023004#100 | E23: 2023005#100 | F23: 2023006#100 | G23: 2023007#100 | H23: 2023008#100 | K23: 2023001 | L23: 2023002 | M23: 2023003 | N23: 2023004 | O23: 2023005 | P23: 2023006 | Q23: 2023007 | R23: 2023008 | T23: =VLOOKUP(K23,MapPointConfig!$B$833:$H$1732,7,FALSE) -> 2023001 | U23: =VLOOKUP(L23,MapPointConfig!$B$833:$H$1732,7,FALSE) -> 2023002 | V23: =VLOOKUP(M23,MapPointConfig!$B$833:$H$1732,7,FALSE) -> 2023003 | W23: =VLOOKUP(N23,MapPointConfig!$B$833:$H$1732,7,FALSE) -> 2023004 | X23: =VLOOKUP(O23,MapPointConfig!$B$833:$H$1732,7,FALSE) -> 2023005 | Y23: =VLOOKUP(P23,MapPointConfig!$B$833:$H$1732,7,FALSE) -> 2023006 | Z23: =VLOOKUP(Q23,MapPointConfig!$B$833:$H$1732,7,FALSE) -> 2023007 | AA23: =VLOOKUP(R23,MapPointConfig!$B$833:$H$1732,7,FALSE) -> 2023008
A24: 2024001#100 | B24: 2024002#100 | C24: 2024003#100 | D24: 2024004#100 | E24: 2024005#100 | F24: 2024006#100 | G24: 2024007#100 | H24: 2024008#100 | K24: 2024001 | L24: 2024002 | M24: 2024003 | N24: 2024004 | O24: 2024005 | P24: 2024006 | Q24: 2024007 | R24: 2024008 | T24: =VLOOKUP(K24,MapPointConfig!$B$833:$H$1732,7,FALSE) -> 2024001 | U24: =VLOOKUP(L24,MapPointConfig!$B$833:$H$1732,7,FALSE) -> 2024002 | V24: =VLOOKUP(M24,MapPointConfig!$B$833:$H$1732,7,FALSE) -> 2024003 | W24: =VLOOKUP(N24,MapPointConfig!$B$833:$H$1732,7,FALSE) -> 2024004 | X24: =VLOOKUP(O24,MapPointConfig!$B$833:$H$1732,7,FALSE) -> 2024005 | Y24: =VLOOKUP(P24,MapPointConfig!$B$833:$H$1732,7,FALSE) -> 2024006 | Z24: =VLOOKUP(Q24,MapPointConfig!$B$833:$H$1732,7,FALSE) -> 2024007 | AA24: =VLOOKUP(R24,MapPointConfig!$B$833:$H$1732,7,FALSE) -> 2024008
A25: 2025001#100 | B25: 2025002#100 | C25: 2025003#100 | D25: 2025004#100 | E25: 2025005#100 | F25: 2025006#100 | G25: 2025007#100 | H25: 2025008#100 | K25: 2025001 | L25: 2025002 | M25: 2025003 | N25: 2025004 | O25: 2025005 | P25: 2025006 | Q25: 2025007 | R25: 2025008 | T25: =VLOOKUP(K25,MapPointConfig!$B$833:$H$1732,7,FALSE) -> 2025001 | U25: =VLOOKUP(L25,MapPointConfig!$B$833:$H$1732,7,FALSE) -> 2025002 | V25: =VLOOKUP(M25,MapPointConfig!$B$833:$H$1732,7,FALSE) -> 2025003 | W25: =VLOOKUP(N25,MapPointConfig!$B$833:$H$1732,7,FALSE) -> 2025004 | X25: =VLOOKUP(O25,MapPointConfig!$B$833:$H$1732,7,FALSE) -> 2025005 | Y25: =VLOOKUP(P25,MapPointConfig!$B$833:$H$1732,7,FALSE) -> 2025006 | Z25: =VLOOKUP(Q25,MapPointConfig!$B$833:$H$1732,7,FALSE) -> 2025007 | AA25: =VLOOKUP(R25,MapPointConfig!$B$833:$H$1732,7,FALSE) -> 2025008
A26: 2026001#100 | B26: 2026002#100 | C26: 2026003#100 | D26: 2026004#100 | E26: 2026005#100 | F26: 2026006#100 | G26: 2026007#100 | H26: 2026008#100 | K26: 2026001 | L26: 2026002 | M26: 2026003 | N26: 2026004 | O26: 2026005 | P26: 2026006 | Q26: 2026007 | R26: 2026008 | T26: =VLOOKUP(K26,MapPointConfig!$B$833:$H$1732,7,FALSE) -> 2026001 | U26: =VLOOKUP(L26,MapPointConfig!$B$833:$H$1732,7,FALSE) -> 2026002 | V26: =VLOOKUP(M26,MapPointConfig!$B$833:$H$1732,7,FALSE) -> 2026003 | W26: =VLOOKUP(N26,MapPointConfig!$B$833:$H$1732,7,FALSE) -> 2026004 | X26: =VLOOKUP(O26,MapPointConfig!$B$833:$H$1732,7,FALSE) -> 2026005 | Y26: =VLOOKUP(P26,MapPointConfig!$B$833:$H$1732,7,FALSE) -> 2026006 | Z26: =VLOOKUP(Q26,MapPointConfig!$B$833:$H$1732,7,FALSE) -> 2026007 | AA26: =VLOOKUP(R26,MapPointConfig!$B$833:$H$1732,7,FALSE) -> 2026008
A27: 2027001#100 | B27: 2027002#100 | C27: 2027003#100 | D27: 2027004#100 | E27: 2027005#100 | F27: 2027006#100 | G27: 2027007#100 | H27: 2027008#100 | K27: 2027001 | L27: 2027002 | M27: 2027003 | N27: 2027004 | O27: 2027005 | P27: 2027006 | Q27: 2027007 | R27: 2027008 | T27: =VLOOKUP(K27,MapPointConfig!$B$833:$H$1732,7,FALSE) -> 2027001 | U27: =VLOOKUP(L27,MapPointConfig!$B$833:$H$1732,7,FALSE) -> 2027002 | V27: =VLOOKUP(M27,MapPointConfig!$B$833:$H$1732,7,FALSE) -> 2027003 | W27: =VLOOKUP(N27,MapPointConfig!$B$833:$H$1732,7,FALSE) -> 2027004 | X27: =VLOOKUP(O27,MapPointConfig!$B$833:$H$1732,7,FALSE) -> 2027005 | Y27: =VLOOKUP(P27,MapPointConfig!$B$833:$H$1732,7,FALSE) -> 2027006 | Z27: =VLOOKUP(Q27,MapPointConfig!$B$833:$H$1732,7,FALSE) -> 2027007 | AA27: =VLOOKUP(R27,MapPointConfig!$B$833:$H$1732,7,FALSE) -> 2027008
A28: 2028001#100 | B28: 2028002#100 | C28: 2028003#100 | D28: 2028004#100 | E28: 2028005#100 | F28: 2028006#100 | G28: 2028007#100 | H28: 2028008#100 | K28: 2028001 | L28: 2028002 | M28: 2028003 | N28: 2028004 | O28: 2028005 | P28: 2028006 | Q28: 2028007 | R28: 2028008 | T28: =VLOOKUP(K28,MapPointConfig!$B$833:$H$1732,7,FALSE) -> 2028001 | U28: =VLOOKUP(L28,MapPointConfig!$B$833:$H$1732,7,FALSE) -> 2028002 | V28: =VLOOKUP(M28,MapPointConfig!$B$833:$H$1732,7,FALSE) -> 2028003 | W28: =VLOOKUP(N28,MapPointConfig!$B$833:$H$1732,7,FALSE) -> 2028004 | X28: =VLOOKUP(O28,MapPointConfig!$B$833:$H$1732,7,FALSE) -> 2028005 | Y28: =VLOOKUP(P28,MapPointConfig!$B$833:$H$1732,7,FALSE) -> 2028006 | Z28: =VLOOKUP(Q28,MapPointConfig!$B$833:$H$1732,7,FALSE) -> 2028007 | AA28: =VLOOKUP(R28,MapPointConfig!$B$833:$H$1732,7,FALSE) -> 2028008
A29: 2029001#100 | B29: 2029002#100 | C29: 2029003#100 | D29: 2029004#100 | E29: 2029005#100 | F29: 2029006#100 | G29: 2029007#100 | H29: 2029008#100 | K29: 2029001 | L29: 2029002 | M29: 2029003 | N29: 2029004 | O29: 2029005 | P29: 2029006 | Q29: 2029007 | R29: 2029008 | T29: =VLOOKUP(K29,MapPointConfig!$B$833:$H$1732,7,FALSE) -> 2029001 | U29: =VLOOKUP(L29,MapPointConfig!$B$833:$H$1732,7,FALSE) -> 2029002 | V29: =VLOOKUP(M29,MapPointConfig!$B$833:$H$1732,7,FALSE) -> 2029003 | W29: =VLOOKUP(N29,MapPointConfig!$B$833:$H$1732,7,FALSE) -> 2029004 | X29: =VLOOKUP(O29,MapPointConfig!$B$833:$H$1732,7,FALSE) -> 2029005 | Y29: =VLOOKUP(P29,MapPointConfig!$B$833:$H$1732,7,FALSE) -> 2029006 | Z29: =VLOOKUP(Q29,MapPointConfig!$B$833:$H$1732,7,FALSE) -> 2029007 | AA29: =VLOOKUP(R29,MapPointConfig!$B$833:$H$1732,7,FALSE) -> 2029008
A30: 2030001#100 | B30: 2030002#100 | C30: 2030003#100 | D30: 2030004#100 | E30: 2030005#100 | F30: 2030006#100 | G30: 2030007#100 | H30: 2030008#100 | K30: 2030001 | L30: 2030002 | M30: 2030003 | N30: 2030004 | O30: 2030005 | P30: 2030006 | Q30: 2030007 | R30: 2030008 | T30: =VLOOKUP(K30,MapPointConfig!$B$833:$H$1732,7,FALSE) -> 2030001 | U30: =VLOOKUP(L30,MapPointConfig!$B$833:$H$1732,7,FALSE) -> 2030002 | V30: =VLOOKUP(M30,MapPointConfig!$B$833:$H$1732,7,FALSE) -> 2030003 | W30: =VLOOKUP(N30,MapPointConfig!$B$833:$H$1732,7,FALSE) -> 2030004 | X30: =VLOOKUP(O30,MapPointConfig!$B$833:$H$1732,7,FALSE) -> 2030005 | Y30: =VLOOKUP(P30,MapPointConfig!$B$833:$H$1732,7,FALSE) -> 2030006 | Z30: =VLOOKUP(Q30,MapPointConfig!$B$833:$H$1732,7,FALSE) -> 2030007 | AA30: =VLOOKUP(R30,MapPointConfig!$B$833:$H$1732,7,FALSE) -> 2030008
A31: 2031001#100 | B31: 2031002#100 | C31: 2031003#100 | D31: 2031004#100 | E31: 2031005#100 | F31: 2031006#100 | G31: 2031007#100 | H31: 2031008#100 | K31: 2031001 | L31: 2031002 | M31: 2031003 | N31: 2031004 | O31: 2031005 | P31: 2031006 | Q31: 2031007 | R31: 2031008 | T31: =VLOOKUP(K31,MapPointConfig!$B$833:$H$1732,7,FALSE) -> 2031001 | U31: =VLOOKUP(L31,MapPointConfig!$B$833:$H$1732,7,FALSE) -> 2031002 | V31: =VLOOKUP(M31,MapPointConfig!$B$833:$H$1732,7,FALSE) -> 2031003 | W31: =VLOOKUP(N31,MapPointConfig!$B$833:$H$1732,7,FALSE) -> 2031004 | X31: =VLOOKUP(O31,MapPointConfig!$B$833:$H$1732,7,FALSE) -> 2031005 | Y31: =VLOOKUP(P31,MapPointConfig!$B$833:$H$1732,7,FALSE) -> 2031006 | Z31: =VLOOKUP(Q31,MapPointConfig!$B$833:$H$1732,7,FALSE) -> 2031007 | AA31: =VLOOKUP(R31,MapPointConfig!$B$833:$H$1732,7,FALSE) -> 2031008
A32: 2032001#100 | B32: 2032002#100 | C32: 2032003#100 | D32: 2032004#100 | E32: 2032005#100 | F32: 2032006#100 | G32: 2032007#100 | H32: 2032008#100 | K32: 2032001 | L32: 2032002 | M32: 2032003 | N32: 2032004 | O32: 2032005 | P32: 2032006 | Q32: 2032007 | R32: 2032008 | T32: =VLOOKUP(K32,MapPointConfig!$B$833:$H$1732,7,FALSE) -> 2032001 | U32: =VLOOKUP(L32,MapPointConfig!$B$833:$H$1732,7,FALSE) -> 2032002 | V32: =VLOOKUP(M32,MapPointConfig!$B$833:$H$1732,7,FALSE) -> 2032003 | W32: =VLOOKUP(N32,MapPointConfig!$B$833:$H$1732,7,FALSE) -> 2032004 | X32: =VLOOKUP(O32,MapPointConfig!$B$833:$H$1732,7,FALSE) -> 2032005 | Y32: =VLOOKUP(P32,MapPointConfig!$B$833:$H$1732,7,FALSE) -> 2032006 | Z32: =VLOOKUP(Q32,MapPointConfig!$B$833:$H$1732,7,FALSE) -> 2032007 | AA32: =VLOOKUP(R32,MapPointConfig!$B$833:$H$1732,7,FALSE) -> 2032008
A33: 2033001#100 | B33: 2033002#100 | C33: 2033003#100 | D33: 2033004#100 | E33: 2033005#100 | F33: 2033006#100 | G33: 2033007#100 | H33: 2033008#100 | K33: 2033001 | L33: 2033002 | M33: 2033003 | N33: 2033004 | O33: 2033005 | P33: 2033006 | Q33: 2033007 | R33: 2033008 | T33: =VLOOKUP(K33,MapPointConfig!$B$833:$H$1732,7,FALSE) -> 2033001 | U33: =VLOOKUP(L33,MapPointConfig!$B$833:$H$1732,7,FALSE) -> 2033002 | V33: =VLOOKUP(M33,MapPointConfig!$B$833:$H$1732,7,FALSE) -> 2033003 | W33: =VLOOKUP(N33,MapPointConfig!$B$833:$H$1732,7,FALSE) -> 2033004 | X33: =VLOOKUP(O33,MapPointConfig!$B$833:$H$1732,7,FALSE) -> 2033005 | Y33: =VLOOKUP(P33,MapPointConfig!$B$833:$H$1732,7,FALSE) -> 2033006 | Z33: =VLOOKUP(Q33,MapPointConfig!$B$833:$H$1732,7,FALSE) -> 2033007 | AA33: =VLOOKUP(R33,MapPointConfig!$B$833:$H$1732,7,FALSE) -> 2033008
A34: 2034001#100 | B34: 2034002#100 | C34: 2034003#100 | D34: 2034004#100 | E34: 2034005#100 | F34: 2034006#100 | G34: 2034007#100 | H34: 2034008#100 | K34: 2034001 | L34: 2034002 | M34: 2034003 | N34: 2034004 | O34: 2034005 | P34: 2034006 | Q34: 2034007 | R34: 2034008 | T34: =VLOOKUP(K34,MapPointConfig!$B$833:$H$1732,7,FALSE) -> 2034001 | U34: =VLOOKUP(L34,MapPointConfig!$B$833:$H$1732,7,FALSE) -> 2034002 | V34: =VLOOKUP(M34,MapPointConfig!$B$833:$H$1732,7,FALSE) -> 2034003 | W34: =VLOOKUP(N34,MapPointConfig!$B$833:$H$1732,7,FALSE) -> 2034004 | X34: =VLOOKUP(O34,MapPointConfig!$B$833:$H$1732,7,FALSE) -> 2034005 | Y34: =VLOOKUP(P34,MapPointConfig!$B$833:$H$1732,7,FALSE) -> 2034006 | Z34: =VLOOKUP(Q34,MapPointConfig!$B$833:$H$1732,7,FALSE) -> 2034007 | AA34: =VLOOKUP(R34,MapPointConfig!$B$833:$H$1732,7,FALSE) -> 2034008
A35: 2035001#100 | B35: 2035002#100 | C35: 2035003#100 | D35: 2035004#100 | E35: 2035005#100 | F35: 2035006#100 | G35: 2035007#100 | H35: 2035008#100 | K35: 2035001 | L35: 2035002 | M35: 2035003 | N35: 2035004 | O35: 2035005 | P35: 2035006 | Q35: 2035007 | R35: 2035008 | T35: =VLOOKUP(K35,MapPointConfig!$B$833:$H$1732,7,FALSE) -> 2035001 | U35: =VLOOKUP(L35,MapPointConfig!$B$833:$H$1732,7,FALSE) -> 2035002 | V35: =VLOOKUP(M35,MapPointConfig!$B$833:$H$1732,7,FALSE) -> 2035003 | W35: =VLOOKUP(N35,MapPointConfig!$B$833:$H$1732,7,FALSE) -> 2035004 | X35: =VLOOKUP(O35,MapPointConfig!$B$833:$H$1732,7,FALSE) -> 2035005 | Y35: =VLOOKUP(P35,MapPointConfig!$B$833:$H$1732,7,FALSE) -> 2035006 | Z35: =VLOOKUP(Q35,MapPointConfig!$B$833:$H$1732,7,FALSE) -> 2035007 | AA35: =VLOOKUP(R35,MapPointConfig!$B$833:$H$1732,7,FALSE) -> 2035008
A36: 2036001#100 | B36: 2036002#100 | C36: 2036003#100 | D36: 2036004#100 | E36: 2036005#100 | F36: 2036006#100 | G36: 2036007#100 | H36: 2036008#100 | K36: 2036001 | L36: 2036002 | M36: 2036003 | N36: 2036004 | O36: 2036005 | P36: 2036006 | Q36: 2036007 | R36: 2036008 | T36: =VLOOKUP(K36,MapPointConfig!$B$833:$H$1732,7,FALSE) -> 2036001 | U36: =VLOOKUP(L36,MapPointConfig!$B$833:$H$1732,7,FALSE) -> 2036002 | V36: =VLOOKUP(M36,MapPointConfig!$B$833:$H$1732,7,FALSE) -> 2036003 | W36: =VLOOKUP(N36,MapPointConfig!$B$833:$H$1732,7,FALSE) -> 2036004 | X36: =VLOOKUP(O36,MapPointConfig!$B$833:$H$1732,7,FALSE) -> 2036005 | Y36: =VLOOKUP(P36,MapPointConfig!$B$833:$H$1732,7,FALSE) -> 2036006 | Z36: =VLOOKUP(Q36,MapPointConfig!$B$833:$H$1732,7,FALSE) -> 2036007 | AA36: =VLOOKUP(R36,MapPointConfig!$B$833:$H$1732,7,FALSE) -> 2036008
A37: 2037001#100 | B37: 2037002#100 | C37: 2037003#100 | D37: 2037004#100 | E37: 2037005#100 | F37: 2037006#100 | G37: 2037007#100 | H37: 2037008#100 | K37: 2037001 | L37: 2037002 | M37: 2037003 | N37: 2037004 | O37: 2037005 | P37: 2037006 | Q37: 2037007 | R37: 2037008 | T37: =VLOOKUP(K37,MapPointConfig!$B$833:$H$1732,7,FALSE) -> 2037001 | U37: =VLOOKUP(L37,MapPointConfig!$B$833:$H$1732,7,FALSE) -> 2037002 | V37: =VLOOKUP(M37,MapPointConfig!$B$833:$H$1732,7,FALSE) -> 2037003 | W37: =VLOOKUP(N37,MapPointConfig!$B$833:$H$1732,7,FALSE) -> 2037004 | X37: =VLOOKUP(O37,MapPointConfig!$B$833:$H$1732,7,FALSE) -> 2037005 | Y37: =VLOOKUP(P37,MapPointConfig!$B$833:$H$1732,7,FALSE) -> 2037006 | Z37: =VLOOKUP(Q37,MapPointConfig!$B$833:$H$1732,7,FALSE) -> 2037007 | AA37: =VLOOKUP(R37,MapPointConfig!$B$833:$H$1732,7,FALSE) -> 2037008
A38: 2038001#100 | B38: 2038002#100 | C38: 2038003#100 | D38: 2038004#100 | E38: 2038005#100 | F38: 2038006#100 | G38: 2038007#100 | H38: 2038008#100 | K38: 2038001 | L38: 2038002 | M38: 2038003 | N38: 2038004 | O38: 2038005 | P38: 2038006 | Q38: 2038007 | R38: 2038008 | T38: =VLOOKUP(K38,MapPointConfig!$B$833:$H$1732,7,FALSE) -> 2038001 | U38: =VLOOKUP(L38,MapPointConfig!$B$833:$H$1732,7,FALSE) -> 2038002 | V38: =VLOOKUP(M38,MapPointConfig!$B$833:$H$1732,7,FALSE) -> 2038003 | W38: =VLOOKUP(N38,MapPointConfig!$B$833:$H$1732,7,FALSE) -> 2038004 | X38: =VLOOKUP(O38,MapPointConfig!$B$833:$H$1732,7,FALSE) -> 2038005 | Y38: =VLOOKUP(P38,MapPointConfig!$B$833:$H$1732,7,FALSE) -> 2038006 | Z38: =VLOOKUP(Q38,MapPointConfig!$B$833:$H$1732,7,FALSE) -> 2038007 | AA38: =VLOOKUP(R38,MapPointConfig!$B$833:$H$1732,7,FALSE) -> 2038008
A39: 2039001#100 | B39: 2039002#100 | C39: 2039003#100 | D39: 2039004#100 | E39: 2039005#100 | F39: 2039006#100 | G39: 2039007#100 | H39: 2039008#100 | K39: 2039001 | L39: 2039002 | M39: 2039003 | N39: 2039004 | O39: 2039005 | P39: 2039006 | Q39: 2039007 | R39: 2039008 | T39: =VLOOKUP(K39,MapPointConfig!$B$833:$H$1732,7,FALSE) -> 2039001 | U39: =VLOOKUP(L39,MapPointConfig!$B$833:$H$1732,7,FALSE) -> 2039002 | V39: =VLOOKUP(M39,MapPointConfig!$B$833:$H$1732,7,FALSE) -> 2039003 | W39: =VLOOKUP(N39,MapPointConfig!$B$833:$H$1732,7,FALSE) -> 2039004 | X39: =VLOOKUP(O39,MapPointConfig!$B$833:$H$1732,7,FALSE) -> 2039005 | Y39: =VLOOKUP(P39,MapPointConfig!$B$833:$H$1732,7,FALSE) -> 2039006 | Z39: =VLOOKUP(Q39,MapPointConfig!$B$833:$H$1732,7,FALSE) -> 2039007 | AA39: =VLOOKUP(R39,MapPointConfig!$B$833:$H$1732,7,FALSE) -> 2039008
A40: 2040001#100 | B40: 2040002#100 | C40: 2040003#100 | D40: 2040004#100 | E40: 2040005#100 | F40: 2040006#100 | G40: 2040007#100 | H40: 2040008#100 | K40: 2040001 | L40: 2040002 | M40: 2040003 | N40: 2040004 | O40: 2040005 | P40: 2040006 | Q40: 2040007 | R40: 2040008 | T40: =VLOOKUP(K40,MapPointConfig!$B$833:$H$1732,7,FALSE) -> 2040001 | U40: =VLOOKUP(L40,MapPointConfig!$B$833:$H$1732,7,FALSE) -> 2040002 | V40: =VLOOKUP(M40,MapPointConfig!$B$833:$H$1732,7,FALSE) -> 2040003 | W40: =VLOOKUP(N40,MapPointConfig!$B$833:$H$1732,7,FALSE) -> 2040004 | X40: =VLOOKUP(O40,MapPointConfig!$B$833:$H$1732,7,FALSE) -> 2040005 | Y40: =VLOOKUP(P40,MapPointConfig!$B$833:$H$1732,7,FALSE) -> 2040006 | Z40: =VLOOKUP(Q40,MapPointConfig!$B$833:$H$1732,7,FALSE) -> 2040007 | AA40: =VLOOKUP(R40,MapPointConfig!$B$833:$H$1732,7,FALSE) -> 2040008
A41: 2041001#100 | B41: 2041002#100 | C41: 2041003#100 | D41: 2041004#100 | E41: 2041005#100 | F41: 2041006#100 | G41: 2041007#100 | H41: 2041008#100 | K41: 2041001 | L41: 2041002 | M41: 2041003 | N41: 2041004 | O41: 2041005 | P41: 2041006 | Q41: 2041007 | R41: 2041008 | T41: =VLOOKUP(K41,MapPointConfig!$B$833:$H$1732,7,FALSE) -> 2041001 | U41: =VLOOKUP(L41,MapPointConfig!$B$833:$H$1732,7,FALSE) -> 2041002 | V41: =VLOOKUP(M41,MapPointConfig!$B$833:$H$1732,7,FALSE) -> 2041003 | W41: =VLOOKUP(N41,MapPointConfig!$B$833:$H$1732,7,FALSE) -> 2041004 | X41: =VLOOKUP(O41,MapPointConfig!$B$833:$H$1732,7,FALSE) -> 2041005 | Y41: =VLOOKUP(P41,MapPointConfig!$B$833:$H$1732,7,FALSE) -> 2041006 | Z41: =VLOOKUP(Q41,MapPointConfig!$B$833:$H$1732,7,FALSE) -> 2041007 | AA41: =VLOOKUP(R41,MapPointConfig!$B$833:$H$1732,7,FALSE) -> 2041008
A42: 2042001#100 | B42: 2042002#100 | C42: 2042003#100 | D42: 2042004#100 | E42: 2042005#100 | F42: 2042006#100 | G42: 2042007#100 | H42: 2042008#100 | K42: 2042001 | L42: 2042002 | M42: 2042003 | N42: 2042004 | O42: 2042005 | P42: 2042006 | Q42: 2042007 | R42: 2042008 | T42: =VLOOKUP(K42,MapPointConfig!$B$833:$H$1732,7,FALSE) -> 2042001 | U42: =VLOOKUP(L42,MapPointConfig!$B$833:$H$1732,7,FALSE) -> 2042002 | V42: =VLOOKUP(M42,MapPointConfig!$B$833:$H$1732,7,FALSE) -> 2042003 | W42: =VLOOKUP(N42,MapPointConfig!$B$833:$H$1732,7,FALSE) -> 2042004 | X42: =VLOOKUP(O42,MapPointConfig!$B$833:$H$1732,7,FALSE) -> 2042005 | Y42: =VLOOKUP(P42,MapPointConfig!$B$833:$H$1732,7,FALSE) -> 2042006 | Z42: =VLOOKUP(Q42,MapPointConfig!$B$833:$H$1732,7,FALSE) -> 2042007 | AA42: =VLOOKUP(R42,MapPointConfig!$B$833:$H$1732,7,FALSE) -> 2042008
A43: 2043001#100 | B43: 2043002#100 | C43: 2043003#100 | D43: 2043004#100 | E43: 2043005#100 | F43: 2043006#100 | G43: 2043007#100 | H43: 2043008#100 | K43: 2043001 | L43: 2043002 | M43: 2043003 | N43: 2043004 | O43: 2043005 | P43: 2043006 | Q43: 2043007 | R43: 2043008 | T43: =VLOOKUP(K43,MapPointConfig!$B$833:$H$1732,7,FALSE) -> 2043001 | U43: =VLOOKUP(L43,MapPointConfig!$B$833:$H$1732,7,FALSE) -> 2043002 | V43: =VLOOKUP(M43,MapPointConfig!$B$833:$H$1732,7,FALSE) -> 2043003 | W43: =VLOOKUP(N43,MapPointConfig!$B$833:$H$1732,7,FALSE) -> 2043004 | X43: =VLOOKUP(O43,MapPointConfig!$B$833:$H$1732,7,FALSE) -> 2043005 | Y43: =VLOOKUP(P43,MapPointConfig!$B$833:$H$1732,7,FALSE) -> 2043006 | Z43: =VLOOKUP(Q43,MapPointConfig!$B$833:$H$1732,7,FALSE) -> 2043007 | AA43: =VLOOKUP(R43,MapPointConfig!$B$833:$H$1732,7,FALSE) -> 2043008
A44: 2044001#100 | B44: 2044002#100 | C44: 2044003#100 | D44: 2044004#100 | E44: 2044005#100 | F44: 2044006#100 | G44: 2044007#100 | H44: 2044008#100 | K44: 2044001 | L44: 2044002 | M44: 2044003 | N44: 2044004 | O44: 2044005 | P44: 2044006 | Q44: 2044007 | R44: 2044008 | T44: =VLOOKUP(K44,MapPointConfig!$B$833:$H$1732,7,FALSE) -> 2044001 | U44: =VLOOKUP(L44,MapPointConfig!$B$833:$H$1732,7,FALSE) -> 2044002 | V44: =VLOOKUP(M44,MapPointConfig!$B$833:$H$1732,7,FALSE) -> 2044003 | W44: =VLOOKUP(N44,MapPointConfig!$B$833:$H$1732,7,FALSE) -> 2044004 | X44: =VLOOKUP(O44,MapPointConfig!$B$833:$H$1732,7,FALSE) -> 2044005 | Y44: =VLOOKUP(P44,MapPointConfig!$B$833:$H$1732,7,FALSE) -> 2044006 | Z44: =VLOOKUP(Q44,MapPointConfig!$B$833:$H$1732,7,FALSE) -> 2044007 | AA44: =VLOOKUP(R44,MapPointConfig!$B$833:$H$1732,7,FALSE) -> 2044008
A45: 2045001#100 | B45: 2045002#100 | C45: 2045003#100 | D45: 2045004#100 | E45: 2045005#100 | F45: 2045006#100 | G45: 2045007#100 | H45: 2045008#100 | K45: 2045001 | L45: 2045002 | M45: 2045003 | N45: 2045004 | O45: 2045005 | P45: 2045006 | Q45: 2045007 | R45: 2045008 | T45: =VLOOKUP(K45,MapPointConfig!$B$833:$H$1732,7,FALSE) -> 2045001 | U45: =VLOOKUP(L45,MapPointConfig!$B$833:$H$1732,7,FALSE) -> 2045002 | V45: =VLOOKUP(M45,MapPointConfig!$B$833:$H$1732,7,FALSE) -> 2045003 | W45: =VLOOKUP(N45,MapPointConfig!$B$833:$H$1732,7,FALSE) -> 2045004 | X45: =VLOOKUP(O45,MapPointConfig!$B$833:$H$1732,7,FALSE) -> 2045005 | Y45: =VLOOKUP(P45,MapPointConfig!$B$833:$H$1732,7,FALSE) -> 2045006 | Z45: =VLOOKUP(Q45,MapPointConfig!$B$833:$H$1732,7,FALSE) -> 2045007 | AA45: =VLOOKUP(R45,MapPointConfig!$B$833:$H$1732,7,FALSE) -> 2045008
A46: 2046001#100 | B46: 2046002#100 | C46: 2046003#100 | D46: 2046004#100 | E46: 2046005#100 | F46: 2046006#100 | G46: 2046007#100 | H46: 2046008#100 | K46: 2046001 | L46: 2046002 | M46: 2046003 | N46: 2046004 | O46: 2046005 | P46: 2046006 | Q46: 2046007 | R46: 2046008 | T46: =VLOOKUP(K46,MapPointConfig!$B$833:$H$1732,7,FALSE) -> 2046001 | U46: =VLOOKUP(L46,MapPointConfig!$B$833:$H$1732,7,FALSE) -> 2046002 | V46: =VLOOKUP(M46,MapPointConfig!$B$833:$H$1732,7,FALSE) -> 2046003 | W46: =VLOOKUP(N46,MapPointConfig!$B$833:$H$1732,7,FALSE) -> 2046004 | X46: =VLOOKUP(O46,MapPointConfig!$B$833:$H$1732,7,FALSE) -> 2046005 | Y46: =VLOOKUP(P46,MapPointConfig!$B$833:$H$1732,7,FALSE) -> 2046006 | Z46: =VLOOKUP(Q46,MapPointConfig!$B$833:$H$1732,7,FALSE) -> 2046007 | AA46: =VLOOKUP(R46,MapPointConfig!$B$833:$H$1732,7,FALSE) -> 2046008
A47: 2047001#100 | B47: 2047002#100 | C47: 2047003#100 | D47: 2047004#100 | E47: 2047005#100 | F47: 2047006#100 | G47: 2047007#100 | H47: 2047008#100 | K47: 2047001 | L47: 2047002 | M47: 2047003 | N47: 2047004 | O47: 2047005 | P47: 2047006 | Q47: 2047007 | R47: 2047008 | T47: =VLOOKUP(K47,MapPointConfig!$B$833:$H$1732,7,FALSE) -> 2047001 | U47: =VLOOKUP(L47,MapPointConfig!$B$833:$H$1732,7,FALSE) -> 2047002 | V47: =VLOOKUP(M47,MapPointConfig!$B$833:$H$1732,7,FALSE) -> 2047003 | W47: =VLOOKUP(N47,MapPointConfig!$B$833:$H$1732,7,FALSE) -> 2047004 | X47: =VLOOKUP(O47,MapPointConfig!$B$833:$H$1732,7,FALSE) -> 2047005 | Y47: =VLOOKUP(P47,MapPointConfig!$B$833:$H$1732,7,FALSE) -> 2047006 | Z47: =VLOOKUP(Q47,MapPointConfig!$B$833:$H$1732,7,FALSE) -> 2047007 | AA47: =VLOOKUP(R47,MapPointConfig!$B$833:$H$1732,7,FALSE) -> 2047008
A48: 2048001#100 | B48: 2048002#100 | C48: 2048003#100 | D48: 2048004#100 | E48: 2048005#100 | F48: 2048006#100 | G48: 2048007#100 | H48: 2048008#100 | K48: 2048001 | L48: 2048002 | M48: 2048003 | N48: 2048004 | O48: 2048005 | P48: 2048006 | Q48: 2048007 | R48: 2048008 | T48: =VLOOKUP(K48,MapPointConfig!$B$833:$H$1732,7,FALSE) -> 2048001 | U48: =VLOOKUP(L48,MapPointConfig!$B$833:$H$1732,7,FALSE) -> 2048002 | V48: =VLOOKUP(M48,MapPointConfig!$B$833:$H$1732,7,FALSE) -> 2048003 | W48: =VLOOKUP(N48,MapPointConfig!$B$833:$H$1732,7,FALSE) -> 2048004 | X48: =VLOOKUP(O48,MapPointConfig!$B$833:$H$1732,7,FALSE) -> 2048005 | Y48: =VLOOKUP(P48,MapPointConfig!$B$833:$H$1732,7,FALSE) -> 2048006 | Z48: =VLOOKUP(Q48,MapPointConfig!$B$833:$H$1732,7,FALSE) -> 2048007 | AA48: =VLOOKUP(R48,MapPointConfig!$B$833:$H$1732,7,FALSE) -> 2048008
A49: 2049001#100 | B49: 2049002#100 | C49: 2049003#100 | D49: 2049004#100 | E49: 2049005#100 | F49: 2049006#100 | G49: 2049007#100 | H49: 2049008#100 | K49: 2049001 | L49: 2049002 | M49: 2049003 | N49: 2049004 | O49: 2049005 | P49: 2049006 | Q49: 2049007 | R49: 2049008 | T49: =VLOOKUP(K49,MapPointConfig!$B$833:$H$1732,7,FALSE) -> 2049001 | U49: =VLOOKUP(L49,MapPointConfig!$B$833:$H$1732,7,FALSE) -> 2049002 | V49: =VLOOKUP(M49,MapPointConfig!$B$833:$H$1732,7,FALSE) -> 2049003 | W49: =VLOOKUP(N49,MapPointConfig!$B$833:$H$1732,7,FALSE) -> 2049004 | X49: =VLOOKUP(O49,MapPointConfig!$B$833:$H$1732,7,FALSE) -> 2049005 | Y49: =VLOOKUP(P49,MapPointConfig!$B$833:$H$1732,7,FALSE) -> 2049006 | Z49: =VLOOKUP(Q49,MapPointConfig!$B$833:$H$1732,7,FALSE) -> 2049007 | AA49: =VLOOKUP(R49,MapPointConfig!$B$833:$H$1732,7,FALSE) -> 2049008
A50: 2050001#100 | B50: 2050002#100 | C50: 2050003#100 | D50: 2050004#100 | E50: 2050005#100 | F50: 2050006#100 | G50: 2050007#100 | H50: 2050008#100 | K50: 2050001 | L50: 2050002 | M50: 2050003 | N50: 2050004 | O50: 2050005 | P50: 2050006 | Q50: 2050007 | R50: 2050008 | T50: =VLOOKUP(K50,MapPointConfig!$B$833:$H$1732,7,FALSE) -> 2050001 | U50: =VLOOKUP(L50,MapPointConfig!$B$833:$H$1732,7,FALSE) -> 2050002 | V50: =VLOOKUP(M50,MapPointConfig!$B$833:$H$1732,7,FALSE) -> 2050003 | W50: =VLOOKUP(N50,MapPointConfig!$B$833:$H$1732,7,FALSE) -> 2050004 | X50: =VLOOKUP(O50,MapPointConfig!$B$833:$H$1732,7,FALSE) -> 2050005 | Y50: =VLOOKUP(P50,MapPointConfig!$B$833:$H$1732,7,FALSE) -> 2050006 | Z50: =VLOOKUP(Q50,MapPointConfig!$B$833:$H$1732,7,FALSE) -> 2050007 | AA50: =VLOOKUP(R50,MapPointConfig!$B$833:$H$1732,7,FALSE) -> 2050008
A51: 2051001#100 | B51: 2051002#100 | C51: 2051003#100 | D51: 2051004#100 | E51: 2051005#100 | F51: 2051006#100 | G51: 2051007#100 | H51: 2051008#100 | K51: 2051001 | L51: 2051002 | M51: 2051003 | N51: 2051004 | O51: 2051005 | P51: 2051006 | Q51: 2051007 | R51: 2051008 | T51: =VLOOKUP(K51,MapPointConfig!$B$833:$H$1732,7,FALSE) -> 2051001 | U51: =VLOOKUP(L51,MapPointConfig!$B$833:$H$1732,7,FALSE) -> 2051002 | V51: =VLOOKUP(M51,MapPointConfig!$B$833:$H$1732,7,FALSE) -> 2051003 | W51: =VLOOKUP(N51,MapPointConfig!$B$833:$H$1732,7,FALSE) -> 2051004 | X51: =VLOOKUP(O51,MapPointConfig!$B$833:$H$1732,7,FALSE) -> 2051005 | Y51: =VLOOKUP(P51,MapPointConfig!$B$833:$H$1732,7,FALSE) -> 2051006 | Z51: =VLOOKUP(Q51,MapPointConfig!$B$833:$H$1732,7,FALSE) -> 2051007 | AA51: =VLOOKUP(R51,MapPointConfig!$B$833:$H$1732,7,FALSE) -> 2051008
A52: 2052001#100 | B52: 2052002#100 | C52: 2052003#100 | D52: 2052004#100 | E52: 2052005#100 | F52: 2052006#100 | G52: 2052007#100 | H52: 2052008#100 | K52: 2052001 | L52: 2052002 | M52: 2052003 | N52: 2052004 | O52: 2052005 | P52: 2052006 | Q52: 2052007 | R52: 2052008 | T52: =VLOOKUP(K52,MapPointConfig!$B$833:$H$1732,7,FALSE) -> 2052001 | U52: =VLOOKUP(L52,MapPointConfig!$B$833:$H$1732,7,FALSE) -> 2052002 | V52: =VLOOKUP(M52,MapPointConfig!$B$833:$H$1732,7,FALSE) -> 2052003 | W52: =VLOOKUP(N52,MapPointConfig!$B$833:$H$1732,7,FALSE) -> 2052004 | X52: =VLOOKUP(O52,MapPointConfig!$B$833:$H$1732,7,FALSE) -> 2052005 | Y52: =VLOOKUP(P52,MapPointConfig!$B$833:$H$1732,7,FALSE) -> 2052006 | Z52: =VLOOKUP(Q52,MapPointConfig!$B$833:$H$1732,7,FALSE) -> 2052007 | AA52: =VLOOKUP(R52,MapPointConfig!$B$833:$H$1732,7,FALSE) -> 2052008
A53: 2053001#100 | B53: 2053002#100 | C53: 2053003#100 | D53: 2053004#100 | E53: 2053005#100 | F53: 2053006#100 | G53: 2053007#100 | H53: 2053008#100 | K53: 2053001 | L53: 2053002 | M53: 2053003 | N53: 2053004 | O53: 2053005 | P53: 2053006 | Q53: 2053007 | R53: 2053008 | T53: =VLOOKUP(K53,MapPointConfig!$B$833:$H$1732,7,FALSE) -> 2053001 | U53: =VLOOKUP(L53,MapPointConfig!$B$833:$H$1732,7,FALSE) -> 2053002 | V53: =VLOOKUP(M53,MapPointConfig!$B$833:$H$1732,7,FALSE) -> 2053003 | W53: =VLOOKUP(N53,MapPointConfig!$B$833:$H$1732,7,FALSE) -> 2053004 | X53: =VLOOKUP(O53,MapPointConfig!$B$833:$H$1732,7,FALSE) -> 2053005 | Y53: =VLOOKUP(P53,MapPointConfig!$B$833:$H$1732,7,FALSE) -> 2053006 | Z53: =VLOOKUP(Q53,MapPointConfig!$B$833:$H$1732,7,FALSE) -> 2053007 | AA53: =VLOOKUP(R53,MapPointConfig!$B$833:$H$1732,7,FALSE) -> 2053008
A54: 2054001#100 | B54: 2054002#100 | C54: 2054003#100 | D54: 2054004#100 | E54: 2054005#100 | F54: 2054006#100 | G54: 2054007#100 | H54: 2054008#100 | K54: 2054001 | L54: 2054002 | M54: 2054003 | N54: 2054004 | O54: 2054005 | P54: 2054006 | Q54: 2054007 | R54: 2054008 | T54: =VLOOKUP(K54,MapPointConfig!$B$833:$H$1732,7,FALSE) -> 2054001 | U54: =VLOOKUP(L54,MapPointConfig!$B$833:$H$1732,7,FALSE) -> 2054002 | V54: =VLOOKUP(M54,MapPointConfig!$B$833:$H$1732,7,FALSE) -> 2054003 | W54: =VLOOKUP(N54,MapPointConfig!$B$833:$H$1732,7,FALSE) -> 2054004 | X54: =VLOOKUP(O54,MapPointConfig!$B$833:$H$1732,7,FALSE) -> 2054005 | Y54: =VLOOKUP(P54,MapPointConfig!$B$833:$H$1732,7,FALSE) -> 2054006 | Z54: =VLOOKUP(Q54,MapPointConfig!$B$833:$H$1732,7,FALSE) -> 2054007 | AA54: =VLOOKUP(R54,MapPointConfig!$B$833:$H$1732,7,FALSE) -> 2054008
A55: 2055001#100 | B55: 2055002#100 | C55: 2055003#100 | D55: 2055004#100 | E55: 2055005#100 | F55: 2055006#100 | G55: 2055007#100 | H55: 2055008#100 | K55: 2055001 | L55: 2055002 | M55: 2055003 | N55: 2055004 | O55: 2055005 | P55: 2055006 | Q55: 2055007 | R55: 2055008 | T55: =VLOOKUP(K55,MapPointConfig!$B$833:$H$1732,7,FALSE) -> 2055001 | U55: =VLOOKUP(L55,MapPointConfig!$B$833:$H$1732,7,FALSE) -> 2055002 | V55: =VLOOKUP(M55,MapPointConfig!$B$833:$H$1732,7,FALSE) -> 2055003 | W55: =VLOOKUP(N55,MapPointConfig!$B$833:$H$1732,7,FALSE) -> 2055004 | X55: =VLOOKUP(O55,MapPointConfig!$B$833:$H$1732,7,FALSE) -> 2055005 | Y55: =VLOOKUP(P55,MapPointConfig!$B$833:$H$1732,7,FALSE) -> 2055006 | Z55: =VLOOKUP(Q55,MapPointConfig!$B$833:$H$1732,7,FALSE) -> 2055007 | AA55: =VLOOKUP(R55,MapPointConfig!$B$833:$H$1732,7,FALSE) -> 2055008
A56: 2056001#100 | B56: 2056002#100 | C56: 2056003#100 | D56: 2056004#100 | E56: 2056005#100 | F56: 2056006#100 | G56: 2056007#100 | H56: 2056008#100 | K56: 2056001 | L56: 2056002 | M56: 2056003 | N56: 2056004 | O56: 2056005 | P56: 2056006 | Q56: 2056007 | R56: 2056008 | T56: =VLOOKUP(K56,MapPointConfig!$B$833:$H$1732,7,FALSE) -> 2056001 | U56: =VLOOKUP(L56,MapPointConfig!$B$833:$H$1732,7,FALSE) -> 2056002 | V56: =VLOOKUP(M56,MapPointConfig!$B$833:$H$1732,7,FALSE) -> 2056003 | W56: =VLOOKUP(N56,MapPointConfig!$B$833:$H$1732,7,FALSE) -> 2056004 | X56: =VLOOKUP(O56,MapPointConfig!$B$833:$H$1732,7,FALSE) -> 2056005 | Y56: =VLOOKUP(P56,MapPointConfig!$B$833:$H$1732,7,FALSE) -> 2056006 | Z56: =VLOOKUP(Q56,MapPointConfig!$B$833:$H$1732,7,FALSE) -> 2056007 | AA56: =VLOOKUP(R56,MapPointConfig!$B$833:$H$1732,7,FALSE) -> 2056008
A57: 2057001#100 | B57: 2057002#100 | C57: 2057003#100 | D57: 2057004#100 | E57: 2057005#100 | F57: 2057006#100 | G57: 2057007#100 | H57: 2057008#100 | K57: 2057001 | L57: 2057002 | M57: 2057003 | N57: 2057004 | O57: 2057005 | P57: 2057006 | Q57: 2057007 | R57: 2057008 | T57: =VLOOKUP(K57,MapPointConfig!$B$833:$H$1732,7,FALSE) -> 2057001 | U57: =VLOOKUP(L57,MapPointConfig!$B$833:$H$1732,7,FALSE) -> 2057002 | V57: =VLOOKUP(M57,MapPointConfig!$B$833:$H$1732,7,FALSE) -> 2057003 | W57: =VLOOKUP(N57,MapPointConfig!$B$833:$H$1732,7,FALSE) -> 2057004 | X57: =VLOOKUP(O57,MapPointConfig!$B$833:$H$1732,7,FALSE) -> 2057005 | Y57: =VLOOKUP(P57,MapPointConfig!$B$833:$H$1732,7,FALSE) -> 2057006 | Z57: =VLOOKUP(Q57,MapPointConfig!$B$833:$H$1732,7,FALSE) -> 2057007 | AA57: =VLOOKUP(R57,MapPointConfig!$B$833:$H$1732,7,FALSE) -> 2057008
A58: 2058001#100 | B58: 2058002#100 | C58: 2058003#100 | D58: 2058004#100 | E58: 2058005#100 | F58: 2058006#100 | G58: 2058007#100 | H58: 2058008#100 | K58: 2058001 | L58: 2058002 | M58: 2058003 | N58: 2058004 | O58: 2058005 | P58: 2058006 | Q58: 2058007 | R58: 2058008 | T58: =VLOOKUP(K58,MapPointConfig!$B$833:$H$1732,7,FALSE) -> 2058001 | U58: =VLOOKUP(L58,MapPointConfig!$B$833:$H$1732,7,FALSE) -> 2058002 | V58: =VLOOKUP(M58,MapPointConfig!$B$833:$H$1732,7,FALSE) -> 2058003 | W58: =VLOOKUP(N58,MapPointConfig!$B$833:$H$1732,7,FALSE) -> 2058004 | X58: =VLOOKUP(O58,MapPointConfig!$B$833:$H$1732,7,FALSE) -> 2058005 | Y58: =VLOOKUP(P58,MapPointConfig!$B$833:$H$1732,7,FALSE) -> 2058006 | Z58: =VLOOKUP(Q58,MapPointConfig!$B$833:$H$1732,7,FALSE) -> 2058007 | AA58: =VLOOKUP(R58,MapPointConfig!$B$833:$H$1732,7,FALSE) -> 2058008
A59: 2059001#100 | B59: 2059002#100 | C59: 2059003#100 | D59: 2059004#100 | E59: 2059005#100 | F59: 2059006#100 | G59: 2059007#100 | H59: 2059008#100 | K59: 2059001 | L59: 2059002 | M59: 2059003 | N59: 2059004 | O59: 2059005 | P59: 2059006 | Q59: 2059007 | R59: 2059008 | T59: =VLOOKUP(K59,MapPointConfig!$B$833:$H$1732,7,FALSE) -> 2059001 | U59: =VLOOKUP(L59,MapPointConfig!$B$833:$H$1732,7,FALSE) -> 2059002 | V59: =VLOOKUP(M59,MapPointConfig!$B$833:$H$1732,7,FALSE) -> 2059003 | W59: =VLOOKUP(N59,MapPointConfig!$B$833:$H$1732,7,FALSE) -> 2059004 | X59: =VLOOKUP(O59,MapPointConfig!$B$833:$H$1732,7,FALSE) -> 2059005 | Y59: =VLOOKUP(P59,MapPointConfig!$B$833:$H$1732,7,FALSE) -> 2059006 | Z59: =VLOOKUP(Q59,MapPointConfig!$B$833:$H$1732,7,FALSE) -> 2059007 | AA59: =VLOOKUP(R59,MapPointConfig!$B$833:$H$1732,7,FALSE) -> 2059008
A60: 2060001#100 | B60: 2060002#100 | C60: 2060003#100 | D60: 2060004#100 | E60: 2060005#100 | F60: 2060006#100 | G60: 2060007#100 | H60: 2060008#100 | K60: 2060001 | L60: 2060002 | M60: 2060003 | N60: 2060004 | O60: 2060005 | P60: 2060006 | Q60: 2060007 | R60: 2060008 | T60: =VLOOKUP(K60,MapPointConfig!$B$833:$H$1732,7,FALSE) -> 2060001 | U60: =VLOOKUP(L60,MapPointConfig!$B$833:$H$1732,7,FALSE) -> 2060002 | V60: =VLOOKUP(M60,MapPointConfig!$B$833:$H$1732,7,FALSE) -> 2060003 | W60: =VLOOKUP(N60,MapPointConfig!$B$833:$H$1732,7,FALSE) -> 2060004 | X60: =VLOOKUP(O60,MapPointConfig!$B$833:$H$1732,7,FALSE) -> 2060005 | Y60: =VLOOKUP(P60,MapPointConfig!$B$833:$H$1732,7,FALSE) -> 2060006 | Z60: =VLOOKUP(Q60,MapPointConfig!$B$833:$H$1732,7,FALSE) -> 2060007 | AA60: =VLOOKUP(R60,MapPointConfig!$B$833:$H$1732,7,FALSE) -> 2060008
A61: 2061001#100 | B61: 2061002#100 | C61: 2061003#100 | D61: 2061004#100 | E61: 2061005#100 | F61: 2061006#100 | G61: 2061007#100 | H61: 2061008#100 | K61: 2061001 | L61: 2061002 | M61: 2061003 | N61: 2061004 | O61: 2061005 | P61: 2061006 | Q61: 2061007 | R61: 2061008 | T61: =VLOOKUP(K61,MapPointConfig!$B$833:$H$1732,7,FALSE) -> 2061001 | U61: =VLOOKUP(L61,MapPointConfig!$B$833:$H$1732,7,FALSE) -> 2061002 | V61: =VLOOKUP(M61,MapPointConfig!$B$833:$H$1732,7,FALSE) -> 2061003 | W61: =VLOOKUP(N61,MapPointConfig!$B$833:$H$1732,7,FALSE) -> 2061004 | X61: =VLOOKUP(O61,MapPointConfig!$B$833:$H$1732,7,FALSE) -> 2061005 | Y61: =VLOOKUP(P61,MapPointConfig!$B$833:$H$1732,7,FALSE) -> 2061006 | Z61: =VLOOKUP(Q61,MapPointConfig!$B$833:$H$1732,7,FALSE) -> 2061007 | AA61: =VLOOKUP(R61,MapPointConfig!$B$833:$H$1732,7,FALSE) -> 2061008
A62: 2062001#100 | B62: 2062002#100 | C62: 2062003#100 | D62: 2062004#100 | E62: 2062005#100 | F62: 2062006#100 | G62: 2062007#100 | H62: 2062008#100 | K62: 2062001 | L62: 2062002 | M62: 2062003 | N62: 2062004 | O62: 2062005 | P62: 2062006 | Q62: 2062007 | R62: 2062008 | T62: =VLOOKUP(K62,MapPointConfig!$B$833:$H$1732,7,FALSE) -> 2062001 | U62: =VLOOKUP(L62,MapPointConfig!$B$833:$H$1732,7,FALSE) -> 2062002 | V62: =VLOOKUP(M62,MapPointConfig!$B$833:$H$1732,7,FALSE) -> 2062003 | W62: =VLOOKUP(N62,MapPointConfig!$B$833:$H$1732,7,FALSE) -> 2062004 | X62: =VLOOKUP(O62,MapPointConfig!$B$833:$H$1732,7,FALSE) -> 2062005 | Y62: =VLOOKUP(P62,MapPointConfig!$B$833:$H$1732,7,FALSE) -> 2062006 | Z62: =VLOOKUP(Q62,MapPointConfig!$B$833:$H$1732,7,FALSE) -> 2062007 | AA62: =VLOOKUP(R62,MapPointConfig!$B$833:$H$1732,7,FALSE) -> 2062008
A63: 2063001#100 | B63: 2063002#100 | C63: 2063003#100 | D63: 2063004#100 | E63: 2063005#100 | F63: 2063006#100 | G63: 2063007#100 | H63: 2063008#100 | K63: 2063001 | L63: 2063002 | M63: 2063003 | N63: 2063004 | O63: 2063005 | P63: 2063006 | Q63: 2063007 | R63: 2063008 | T63: =VLOOKUP(K63,MapPointConfig!$B$833:$H$1732,7,FALSE) -> 2063001 | U63: =VLOOKUP(L63,MapPointConfig!$B$833:$H$1732,7,FALSE) -> 2063002 | V63: =VLOOKUP(M63,MapPointConfig!$B$833:$H$1732,7,FALSE) -> 2063003 | W63: =VLOOKUP(N63,MapPointConfig!$B$833:$H$1732,7,FALSE) -> 2063004 | X63: =VLOOKUP(O63,MapPointConfig!$B$833:$H$1732,7,FALSE) -> 2063005 | Y63: =VLOOKUP(P63,MapPointConfig!$B$833:$H$1732,7,FALSE) -> 2063006 | Z63: =VLOOKUP(Q63,MapPointConfig!$B$833:$H$1732,7,FALSE) -> 2063007 | AA63: =VLOOKUP(R63,MapPointConfig!$B$833:$H$1732,7,FALSE) -> 2063008
A64: 2064001#100 | B64: 2064002#100 | C64: 2064003#100 | D64: 2064004#100 | E64: 2064005#100 | F64: 2064006#100 | G64: 2064007#100 | H64: 2064008#100 | K64: 2064001 | L64: 2064002 | M64: 2064003 | N64: 2064004 | O64: 2064005 | P64: 2064006 | Q64: 2064007 | R64: 2064008 | T64: =VLOOKUP(K64,MapPointConfig!$B$833:$H$1732,7,FALSE) -> 2064001 | U64: =VLOOKUP(L64,MapPointConfig!$B$833:$H$1732,7,FALSE) -> 2064002 | V64: =VLOOKUP(M64,MapPointConfig!$B$833:$H$1732,7,FALSE) -> 2064003 | W64: =VLOOKUP(N64,MapPointConfig!$B$833:$H$1732,7,FALSE) -> 2064004 | X64: =VLOOKUP(O64,MapPointConfig!$B$833:$H$1732,7,FALSE) -> 2064005 | Y64: =VLOOKUP(P64,MapPointConfig!$B$833:$H$1732,7,FALSE) -> 2064006 | Z64: =VLOOKUP(Q64,MapPointConfig!$B$833:$H$1732,7,FALSE) -> 2064007 | AA64: =VLOOKUP(R64,MapPointConfig!$B$833:$H$1732,7,FALSE) -> 2064008
A65: 2065001#100 | B65: 2065002#100 | C65: 2065003#100 | D65: 2065004#100 | E65: 2065005#100 | F65: 2065006#100 | G65: 2065007#100 | H65: 2065008#100 | K65: 2065001 | L65: 2065002 | M65: 2065003 | N65: 2065004 | O65: 2065005 | P65: 2065006 | Q65: 2065007 | R65: 2065008 | T65: =VLOOKUP(K65,MapPointConfig!$B$833:$H$1732,7,FALSE) -> 2065001 | U65: =VLOOKUP(L65,MapPointConfig!$B$833:$H$1732,7,FALSE) -> 2065002 | V65: =VLOOKUP(M65,MapPointConfig!$B$833:$H$1732,7,FALSE) -> 2065003 | W65: =VLOOKUP(N65,MapPointConfig!$B$833:$H$1732,7,FALSE) -> 2065004 | X65: =VLOOKUP(O65,MapPointConfig!$B$833:$H$1732,7,FALSE) -> 2065005 | Y65: =VLOOKUP(P65,MapPointConfig!$B$833:$H$1732,7,FALSE) -> 2065006 | Z65: =VLOOKUP(Q65,MapPointConfig!$B$833:$H$1732,7,FALSE) -> 2065007 | AA65: =VLOOKUP(R65,MapPointConfig!$B$833:$H$1732,7,FALSE) -> 2065008
A66: 2066001#100 | B66: 2066002#100 | C66: 2066003#100 | D66: 2066004#100 | E66: 2066005#100 | F66: 2066006#100 | G66: 2066007#100 | H66: 2066008#100 | K66: =--LEFT(A66,FIND("#",A66,1)-1) -> 2066001 | L66: =--LEFT(B66,FIND("#",B66,1)-1) -> 2066002 | M66: =--LEFT(C66,FIND("#",C66,1)-1) -> 2066003 | N66: =--LEFT(D66,FIND("#",D66,1)-1) -> 2066004 | O66: =--LEFT(E66,FIND("#",E66,1)-1) -> 2066005 | P66: =--LEFT(F66,FIND("#",F66,1)-1) -> 2066006 | Q66: =--LEFT(G66,FIND("#",G66,1)-1) -> 2066007 | R66: =--LEFT(H66,FIND("#",H66,1)-1) -> 2066008 | T66: =VLOOKUP(K66,MapPointConfig!$B$833:$H$1732,7,FALSE) -> 2066001 | U66: =VLOOKUP(L66,MapPointConfig!$B$833:$H$1732,7,FALSE) -> 2066002 | V66: =VLOOKUP(M66,MapPointConfig!$B$833:$H$1732,7,FALSE) -> 2066003 | W66: =VLOOKUP(N66,MapPointConfig!$B$833:$H$1732,7,FALSE) -> 2066004 | X66: =VLOOKUP(O66,MapPointConfig!$B$833:$H$1732,7,FALSE) -> 2066005 | Y66: =VLOOKUP(P66,MapPointConfig!$B$833:$H$1732,7,FALSE) -> 2066006 | Z66: =VLOOKUP(Q66,MapPointConfig!$B$833:$H$1732,7,FALSE) -> 2066007 | AA66: =VLOOKUP(R66,MapPointConfig!$B$833:$H$1732,7,FALSE) -> 2066008
A67: 2067001#100 | B67: 2067002#100 | C67: 2067003#100 | D67: 2067004#100 | E67: 2067005#100 | F67: 2067006#100 | G67: 2067007#100 | H67: 2067008#100 | K67: 2067001 | L67: 2067002 | M67: 2067003 | N67: 2067004 | O67: 2067005 | P67: 2067006 | Q67: 2067007 | R67: 2067008 | T67: =VLOOKUP(K67,MapPointConfig!$B$833:$H$1732,7,FALSE) -> 2067001 | U67: =VLOOKUP(L67,MapPointConfig!$B$833:$H$1732,7,FALSE) -> 2067002 | V67: =VLOOKUP(M67,MapPointConfig!$B$833:$H$1732,7,FALSE) -> 2067003 | W67: =VLOOKUP(N67,MapPointConfig!$B$833:$H$1732,7,FALSE) -> 2067004 | X67: =VLOOKUP(O67,MapPointConfig!$B$833:$H$1732,7,FALSE) -> 2067005 | Y67: =VLOOKUP(P67,MapPointConfig!$B$833:$H$1732,7,FALSE) -> 2067006 | Z67: =VLOOKUP(Q67,MapPointConfig!$B$833:$H$1732,7,FALSE) -> 2067007 | AA67: =VLOOKUP(R67,MapPointConfig!$B$833:$H$1732,7,FALSE) -> 2067008
A68: 2068001#100 | B68: 2068002#100 | C68: 2068003#100 | D68: 2068004#100 | E68: 2068005#100 | F68: 2068006#100 | G68: 2068007#100 | H68: 2068008#100 | K68: 2068001 | L68: 2068002 | M68: 2068003 | N68: 2068004 | O68: 2068005 | P68: 2068006 | Q68: 2068007 | R68: 2068008 | T68: =VLOOKUP(K68,MapPointConfig!$B$833:$H$1732,7,FALSE) -> 2068001 | U68: =VLOOKUP(L68,MapPointConfig!$B$833:$H$1732,7,FALSE) -> 2068002 | V68: =VLOOKUP(M68,MapPointConfig!$B$833:$H$1732,7,FALSE) -> 2068003 | W68: =VLOOKUP(N68,MapPointConfig!$B$833:$H$1732,7,FALSE) -> 2068004 | X68: =VLOOKUP(O68,MapPointConfig!$B$833:$H$1732,7,FALSE) -> 2068005 | Y68: =VLOOKUP(P68,MapPointConfig!$B$833:$H$1732,7,FALSE) -> 2068006 | Z68: =VLOOKUP(Q68,MapPointConfig!$B$833:$H$1732,7,FALSE) -> 2068007 | AA68: =VLOOKUP(R68,MapPointConfig!$B$833:$H$1732,7,FALSE) -> 2068008
A69: 2069001#100 | B69: 2069002#100 | C69: 2069003#100 | D69: 2069004#100 | E69: 2069005#100 | F69: 2069006#100 | G69: 2069007#100 | H69: 2069008#100 | K69: 2069001 | L69: 2069002 | M69: 2069003 | N69: 2069004 | O69: 2069005 | P69: 2069006 | Q69: 2069007 | R69: 2069008 | T69: =VLOOKUP(K69,MapPointConfig!$B$833:$H$1732,7,FALSE) -> 2069001 | U69: =VLOOKUP(L69,MapPointConfig!$B$833:$H$1732,7,FALSE) -> 2069002 | V69: =VLOOKUP(M69,MapPointConfig!$B$833:$H$1732,7,FALSE) -> 2069003 | W69: =VLOOKUP(N69,MapPointConfig!$B$833:$H$1732,7,FALSE) -> 2069004 | X69: =VLOOKUP(O69,MapPointConfig!$B$833:$H$1732,7,FALSE) -> 2069005 | Y69: =VLOOKUP(P69,MapPointConfig!$B$833:$H$1732,7,FALSE) -> 2069006 | Z69: =VLOOKUP(Q69,MapPointConfig!$B$833:$H$1732,7,FALSE) -> 2069007 | AA69: =VLOOKUP(R69,MapPointConfig!$B$833:$H$1732,7,FALSE) -> 2069008
A70: 2070001#100 | B70: 2070002#100 | C70: 2070003#100 | D70: 2070004#100 | E70: 2070005#100 | F70: 2070006#100 | G70: 2070007#100 | H70: 2070008#100 | K70: 2070001 | L70: 2070002 | M70: 2070003 | N70: 2070004 | O70: 2070005 | P70: 2070006 | Q70: 2070007 | R70: 2070008 | T70: =VLOOKUP(K70,MapPointConfig!$B$833:$H$1732,7,FALSE) -> 2070001 | U70: =VLOOKUP(L70,MapPointConfig!$B$833:$H$1732,7,FALSE) -> 2070002 | V70: =VLOOKUP(M70,MapPointConfig!$B$833:$H$1732,7,FALSE) -> 2070003 | W70: =VLOOKUP(N70,MapPointConfig!$B$833:$H$1732,7,FALSE) -> 2070004 | X70: =VLOOKUP(O70,MapPointConfig!$B$833:$H$1732,7,FALSE) -> 2070005 | Y70: =VLOOKUP(P70,MapPointConfig!$B$833:$H$1732,7,FALSE) -> 2070006 | Z70: =VLOOKUP(Q70,MapPointConfig!$B$833:$H$1732,7,FALSE) -> 2070007 | AA70: =VLOOKUP(R70,MapPointConfig!$B$833:$H$1732,7,FALSE) -> 2070008
A71: 2071001#100 | B71: 2071002#100 | C71: 2071003#100 | D71: 2071004#100 | E71: 2071005#100 | F71: 2071006#100 | G71: 2071007#100 | H71: 2071008#100 | K71: 2071001 | L71: 2071002 | M71: 2071003 | N71: 2071004 | O71: 2071005 | P71: 2071006 | Q71: 2071007 | R71: 2071008 | T71: =VLOOKUP(K71,MapPointConfig!$B$833:$H$1732,7,FALSE) -> 2071001 | U71: =VLOOKUP(L71,MapPointConfig!$B$833:$H$1732,7,FALSE) -> 2071002 | V71: =VLOOKUP(M71,MapPointConfig!$B$833:$H$1732,7,FALSE) -> 2071003 | W71: =VLOOKUP(N71,MapPointConfig!$B$833:$H$1732,7,FALSE) -> 2071004 | X71: =VLOOKUP(O71,MapPointConfig!$B$833:$H$1732,7,FALSE) -> 2071005 | Y71: =VLOOKUP(P71,MapPointConfig!$B$833:$H$1732,7,FALSE) -> 2071006 | Z71: =VLOOKUP(Q71,MapPointConfig!$B$833:$H$1732,7,FALSE) -> 2071007 | AA71: =VLOOKUP(R71,MapPointConfig!$B$833:$H$1732,7,FALSE) -> 2071008
A72: 2072001#100 | B72: 2072002#100 | C72: 2072003#100 | D72: 2072004#100 | E72: 2072005#100 | F72: 2072006#100 | G72: 2072007#100 | H72: 2072008#100 | K72: 2072001 | L72: 2072002 | M72: 2072003 | N72: 2072004 | O72: 2072005 | P72: 2072006 | Q72: 2072007 | R72: 2072008 | T72: =VLOOKUP(K72,MapPointConfig!$B$833:$H$1732,7,FALSE) -> 2072001 | U72: =VLOOKUP(L72,MapPointConfig!$B$833:$H$1732,7,FALSE) -> 2072002 | V72: =VLOOKUP(M72,MapPointConfig!$B$833:$H$1732,7,FALSE) -> 2072003 | W72: =VLOOKUP(N72,MapPointConfig!$B$833:$H$1732,7,FALSE) -> 2072004 | X72: =VLOOKUP(O72,MapPointConfig!$B$833:$H$1732,7,FALSE) -> 2072005 | Y72: =VLOOKUP(P72,MapPointConfig!$B$833:$H$1732,7,FALSE) -> 2072006 | Z72: =VLOOKUP(Q72,MapPointConfig!$B$833:$H$1732,7,FALSE) -> 2072007 | AA72: =VLOOKUP(R72,MapPointConfig!$B$833:$H$1732,7,FALSE) -> 2072008
A73: 2073001#100 | B73: 2073002#100 | C73: 2073003#100 | D73: 2073004#100 | E73: 2073005#100 | F73: 2073006#100 | G73: 2073007#100 | H73: 2073008#100 | K73: 2073001 | L73: 2073002 | M73: 2073003 | N73: 2073004 | O73: 2073005 | P73: 2073006 | Q73: 2073007 | R73: 2073008 | T73: =VLOOKUP(K73,MapPointConfig!$B$833:$H$1732,7,FALSE) -> 2073001 | U73: =VLOOKUP(L73,MapPointConfig!$B$833:$H$1732,7,FALSE) -> 2073002 | V73: =VLOOKUP(M73,MapPointConfig!$B$833:$H$1732,7,FALSE) -> 2073003 | W73: =VLOOKUP(N73,MapPointConfig!$B$833:$H$1732,7,FALSE) -> 2073004 | X73: =VLOOKUP(O73,MapPointConfig!$B$833:$H$1732,7,FALSE) -> 2073005 | Y73: =VLOOKUP(P73,MapPointConfig!$B$833:$H$1732,7,FALSE) -> 2073006 | Z73: =VLOOKUP(Q73,MapPointConfig!$B$833:$H$1732,7,FALSE) -> 2073007 | AA73: =VLOOKUP(R73,MapPointConfig!$B$833:$H$1732,7,FALSE) -> 2073008
A74: 2074001#100 | B74: 2074002#100 | C74: 2074003#100 | D74: 2074004#100 | E74: 2074005#100 | F74: 2074006#100 | G74: 2074007#100 | H74: 2074008#100 | K74: 2074001 | L74: 2074002 | M74: 2074003 | N74: 2074004 | O74: 2074005 | P74: 2074006 | Q74: 2074007 | R74: 2074008 | T74: =VLOOKUP(K74,MapPointConfig!$B$833:$H$1732,7,FALSE) -> 2074001 | U74: =VLOOKUP(L74,MapPointConfig!$B$833:$H$1732,7,FALSE) -> 2074002 | V74: =VLOOKUP(M74,MapPointConfig!$B$833:$H$1732,7,FALSE) -> 2074003 | W74: =VLOOKUP(N74,MapPointConfig!$B$833:$H$1732,7,FALSE) -> 2074004 | X74: =VLOOKUP(O74,MapPointConfig!$B$833:$H$1732,7,FALSE) -> 2074005 | Y74: =VLOOKUP(P74,MapPointConfig!$B$833:$H$1732,7,FALSE) -> 2074006 | Z74: =VLOOKUP(Q74,MapPointConfig!$B$833:$H$1732,7,FALSE) -> 2074007 | AA74: =VLOOKUP(R74,MapPointConfig!$B$833:$H$1732,7,FALSE) -> 2074008
A75: 2075001#100 | B75: 2075002#100 | C75: 2075003#100 | D75: 2075004#100 | E75: 2075005#100 | F75: 2075006#100 | G75: 2075007#100 | H75: 2075008#100 | K75: 2075001 | L75: 2075002 | M75: 2075003 | N75: 2075004 | O75: 2075005 | P75: 2075006 | Q75: 2075007 | R75: 2075008 | T75: =VLOOKUP(K75,MapPointConfig!$B$833:$H$1732,7,FALSE) -> 2075001 | U75: =VLOOKUP(L75,MapPointConfig!$B$833:$H$1732,7,FALSE) -> 2075002 | V75: =VLOOKUP(M75,MapPointConfig!$B$833:$H$1732,7,FALSE) -> 2075003 | W75: =VLOOKUP(N75,MapPointConfig!$B$833:$H$1732,7,FALSE) -> 2075004 | X75: =VLOOKUP(O75,MapPointConfig!$B$833:$H$1732,7,FALSE) -> 2075005 | Y75: =VLOOKUP(P75,MapPointConfig!$B$833:$H$1732,7,FALSE) -> 2075006 | Z75: =VLOOKUP(Q75,MapPointConfig!$B$833:$H$1732,7,FALSE) -> 2075007 | AA75: =VLOOKUP(R75,MapPointConfig!$B$833:$H$1732,7,FALSE) -> 2075008
A76: 2076001#100 | B76: 2076002#100 | C76: 2076003#100 | D76: 2076004#100 | E76: 2076005#100 | F76: 2076006#100 | G76: 2076007#100 | H76: 2076008#100 | K76: 2076001 | L76: 2076002 | M76: 2076003 | N76: 2076004 | O76: 2076005 | P76: 2076006 | Q76: 2076007 | R76: 2076008 | T76: =VLOOKUP(K76,MapPointConfig!$B$833:$H$1732,7,FALSE) -> 2076001 | U76: =VLOOKUP(L76,MapPointConfig!$B$833:$H$1732,7,FALSE) -> 2076002 | V76: =VLOOKUP(M76,MapPointConfig!$B$833:$H$1732,7,FALSE) -> 2076003 | W76: =VLOOKUP(N76,MapPointConfig!$B$833:$H$1732,7,FALSE) -> 2076004 | X76: =VLOOKUP(O76,MapPointConfig!$B$833:$H$1732,7,FALSE) -> 2076005 | Y76: =VLOOKUP(P76,MapPointConfig!$B$833:$H$1732,7,FALSE) -> 2076006 | Z76: =VLOOKUP(Q76,MapPointConfig!$B$833:$H$1732,7,FALSE) -> 2076007 | AA76: =VLOOKUP(R76,MapPointConfig!$B$833:$H$1732,7,FALSE) -> 2076008
A77: 2077001#100 | B77: 2077002#100 | C77: 2077003#100 | D77: 2077004#100 | E77: 2077005#100 | F77: 2077006#100 | G77: 2077007#100 | H77: 2077008#100 | K77: 2077001 | L77: 2077002 | M77: 2077003 | N77: 2077004 | O77: 2077005 | P77: 2077006 | Q77: 2077007 | R77: 2077008 | T77: =VLOOKUP(K77,MapPointConfig!$B$833:$H$1732,7,FALSE) -> 2077001 | U77: =VLOOKUP(L77,MapPointConfig!$B$833:$H$1732,7,FALSE) -> 2077002 | V77: =VLOOKUP(M77,MapPointConfig!$B$833:$H$1732,7,FALSE) -> 2077003 | W77: =VLOOKUP(N77,MapPointConfig!$B$833:$H$1732,7,FALSE) -> 2077004 | X77: =VLOOKUP(O77,MapPointConfig!$B$833:$H$1732,7,FALSE) -> 2077005 | Y77: =VLOOKUP(P77,MapPointConfig!$B$833:$H$1732,7,FALSE) -> 2077006 | Z77: =VLOOKUP(Q77,MapPointConfig!$B$833:$H$1732,7,FALSE) -> 2077007 | AA77: =VLOOKUP(R77,MapPointConfig!$B$833:$H$1732,7,FALSE) -> 2077008
A78: 2078001#100 | B78: 2078002#100 | C78: 2078003#100 | D78: 2078004#100 | E78: 2078005#100 | F78: 2078006#100 | G78: 2078007#100 | H78: 2078008#100 | K78: 2078001 | L78: 2078002 | M78: 2078003 | N78: 2078004 | O78: 2078005 | P78: 2078006 | Q78: 2078007 | R78: 2078008 | T78: =VLOOKUP(K78,MapPointConfig!$B$833:$H$1732,7,FALSE) -> 2078001 | U78: =VLOOKUP(L78,MapPointConfig!$B$833:$H$1732,7,FALSE) -> 2078002 | V78: =VLOOKUP(M78,MapPointConfig!$B$833:$H$1732,7,FALSE) -> 2078003 | W78: =VLOOKUP(N78,MapPointConfig!$B$833:$H$1732,7,FALSE) -> 2078004 | X78: =VLOOKUP(O78,MapPointConfig!$B$833:$H$1732,7,FALSE) -> 2078005 | Y78: =VLOOKUP(P78,MapPointConfig!$B$833:$H$1732,7,FALSE) -> 2078006 | Z78: =VLOOKUP(Q78,MapPointConfig!$B$833:$H$1732,7,FALSE) -> 2078007 | AA78: =VLOOKUP(R78,MapPointConfig!$B$833:$H$1732,7,FALSE) -> 2078008
A79: 2079001#100 | B79: 2079002#100 | C79: 2079003#100 | D79: 2079004#100 | E79: 2079005#100 | F79: 2079006#100 | G79: 2079007#100 | H79: 2079008#100 | K79: 2079001 | L79: 2079002 | M79: 2079003 | N79: 2079004 | O79: 2079005 | P79: 2079006 | Q79: 2079007 | R79: 2079008 | T79: =VLOOKUP(K79,MapPointConfig!$B$833:$H$1732,7,FALSE) -> 2079001 | U79: =VLOOKUP(L79,MapPointConfig!$B$833:$H$1732,7,FALSE) -> 2079002 | V79: =VLOOKUP(M79,MapPointConfig!$B$833:$H$1732,7,FALSE) -> 2079003 | W79: =VLOOKUP(N79,MapPointConfig!$B$833:$H$1732,7,FALSE) -> 2079004 | X79: =VLOOKUP(O79,MapPointConfig!$B$833:$H$1732,7,FALSE) -> 2079005 | Y79: =VLOOKUP(P79,MapPointConfig!$B$833:$H$1732,7,FALSE) -> 2079006 | Z79: =VLOOKUP(Q79,MapPointConfig!$B$833:$H$1732,7,FALSE) -> 2079007 | AA79: =VLOOKUP(R79,MapPointConfig!$B$833:$H$1732,7,FALSE) -> 2079008
A80: 2080001#100 | B80: 2080002#100 | C80: 2080003#100 | D80: 2080004#100 | E80: 2080005#100 | F80: 2080006#100 | G80: 2080007#100 | H80: 2080008#100 | K80: 2080001 | L80: 2080002 | M80: 2080003 | N80: 2080004 | O80: 2080005 | P80: 2080006 | Q80: 2080007 | R80: 2080008 | T80: =VLOOKUP(K80,MapPointConfig!$B$833:$H$1732,7,FALSE) -> 2080001 | U80: =VLOOKUP(L80,MapPointConfig!$B$833:$H$1732,7,FALSE) -> 2080002 | V80: =VLOOKUP(M80,MapPointConfig!$B$833:$H$1732,7,FALSE) -> 2080003 | W80: =VLOOKUP(N80,MapPointConfig!$B$833:$H$1732,7,FALSE) -> 2080004 | X80: =VLOOKUP(O80,MapPointConfig!$B$833:$H$1732,7,FALSE) -> 2080005 | Y80: =VLOOKUP(P80,MapPointConfig!$B$833:$H$1732,7,FALSE) -> 2080006 | Z80: =VLOOKUP(Q80,MapPointConfig!$B$833:$H$1732,7,FALSE) -> 2080007 | AA80: =VLOOKUP(R80,MapPointConfig!$B$833:$H$1732,7,FALSE) -> 2080008
A81: 2081001#100 | B81: 2081002#100 | C81: 2081003#100 | D81: 2081004#100 | E81: 2081005#100 | F81: 2081006#100 | G81: 2081007#100 | H81: 2081008#100 | K81: 2081001 | L81: 2081002 | M81: 2081003 | N81: 2081004 | O81: 2081005 | P81: 2081006 | Q81: 2081007 | R81: 2081008 | T81: =VLOOKUP(K81,MapPointConfig!$B$833:$H$1732,7,FALSE) -> 2081001 | U81: =VLOOKUP(L81,MapPointConfig!$B$833:$H$1732,7,FALSE) -> 2081002 | V81: =VLOOKUP(M81,MapPointConfig!$B$833:$H$1732,7,FALSE) -> 2081003 | W81: =VLOOKUP(N81,MapPointConfig!$B$833:$H$1732,7,FALSE) -> 2081004 | X81: =VLOOKUP(O81,MapPointConfig!$B$833:$H$1732,7,FALSE) -> 2081005 | Y81: =VLOOKUP(P81,MapPointConfig!$B$833:$H$1732,7,FALSE) -> 2081006 | Z81: =VLOOKUP(Q81,MapPointConfig!$B$833:$H$1732,7,FALSE) -> 2081007 | AA81: =VLOOKUP(R81,MapPointConfig!$B$833:$H$1732,7,FALSE) -> 2081008
A82: 2082001#100 | B82: 2082002#100 | C82: 2082003#100 | D82: 2082004#100 | E82: 2082005#100 | F82: 2082006#100 | G82: 2082007#100 | H82: 2082008#100 | K82: 2082001 | L82: 2082002 | M82: 2082003 | N82: 2082004 | O82: 2082005 | P82: 2082006 | Q82: 2082007 | R82: 2082008 | T82: =VLOOKUP(K82,MapPointConfig!$B$833:$H$1732,7,FALSE) -> 2082001 | U82: =VLOOKUP(L82,MapPointConfig!$B$833:$H$1732,7,FALSE) -> 2082002 | V82: =VLOOKUP(M82,MapPointConfig!$B$833:$H$1732,7,FALSE) -> 2082003 | W82: =VLOOKUP(N82,MapPointConfig!$B$833:$H$1732,7,FALSE) -> 2082004 | X82: =VLOOKUP(O82,MapPointConfig!$B$833:$H$1732,7,FALSE) -> 2082005 | Y82: =VLOOKUP(P82,MapPointConfig!$B$833:$H$1732,7,FALSE) -> 2082006 | Z82: =VLOOKUP(Q82,MapPointConfig!$B$833:$H$1732,7,FALSE) -> 2082007 | AA82: =VLOOKUP(R82,MapPointConfig!$B$833:$H$1732,7,FALSE) -> 2082008
A83: 2083001#100 | B83: 2083002#100 | C83: 2083003#100 | D83: 2083004#100 | E83: 2083005#100 | F83: 2083006#100 | G83: 2083007#100 | H83: 2083008#100 | K83: 2083001 | L83: 2083002 | M83: 2083003 | N83: 2083004 | O83: 2083005 | P83: 2083006 | Q83: 2083007 | R83: 2083008 | T83: =VLOOKUP(K83,MapPointConfig!$B$833:$H$1732,7,FALSE) -> 2083001 | U83: =VLOOKUP(L83,MapPointConfig!$B$833:$H$1732,7,FALSE) -> 2083002 | V83: =VLOOKUP(M83,MapPointConfig!$B$833:$H$1732,7,FALSE) -> 2083003 | W83: =VLOOKUP(N83,MapPointConfig!$B$833:$H$1732,7,FALSE) -> 2083004 | X83: =VLOOKUP(O83,MapPointConfig!$B$833:$H$1732,7,FALSE) -> 2083005 | Y83: =VLOOKUP(P83,MapPointConfig!$B$833:$H$1732,7,FALSE) -> 2083006 | Z83: =VLOOKUP(Q83,MapPointConfig!$B$833:$H$1732,7,FALSE) -> 2083007 | AA83: =VLOOKUP(R83,MapPointConfig!$B$833:$H$1732,7,FALSE) -> 2083008
A84: 2084001#100 | B84: 2084002#100 | C84: 2084003#100 | D84: 2084004#100 | E84: 2084005#100 | F84: 2084006#100 | G84: 2084007#100 | H84: 2084008#100 | K84: 2084001 | L84: 2084002 | M84: 2084003 | N84: 2084004 | O84: 2084005 | P84: 2084006 | Q84: 2084007 | R84: 2084008 | T84: =VLOOKUP(K84,MapPointConfig!$B$833:$H$1732,7,FALSE) -> 2084001 | U84: =VLOOKUP(L84,MapPointConfig!$B$833:$H$1732,7,FALSE) -> 2084002 | V84: =VLOOKUP(M84,MapPointConfig!$B$833:$H$1732,7,FALSE) -> 2084003 | W84: =VLOOKUP(N84,MapPointConfig!$B$833:$H$1732,7,FALSE) -> 2084004 | X84: =VLOOKUP(O84,MapPointConfig!$B$833:$H$1732,7,FALSE) -> 2084005 | Y84: =VLOOKUP(P84,MapPointConfig!$B$833:$H$1732,7,FALSE) -> 2084006 | Z84: =VLOOKUP(Q84,MapPointConfig!$B$833:$H$1732,7,FALSE) -> 2084007 | AA84: =VLOOKUP(R84,MapPointConfig!$B$833:$H$1732,7,FALSE) -> 2084008
A85: 2085001#100 | B85: 2085002#100 | C85: 2085003#100 | D85: 2085004#100 | E85: 2085005#100 | F85: 2085006#100 | G85: 2085007#100 | H85: 2085008#100 | K85: 2085001 | L85: 2085002 | M85: 2085003 | N85: 2085004 | O85: 2085005 | P85: 2085006 | Q85: 2085007 | R85: 2085008 | T85: =VLOOKUP(K85,MapPointConfig!$B$833:$H$1732,7,FALSE) -> 2085001 | U85: =VLOOKUP(L85,MapPointConfig!$B$833:$H$1732,7,FALSE) -> 2085002 | V85: =VLOOKUP(M85,MapPointConfig!$B$833:$H$1732,7,FALSE) -> 2085003 | W85: =VLOOKUP(N85,MapPointConfig!$B$833:$H$1732,7,FALSE) -> 2085004 | X85: =VLOOKUP(O85,MapPointConfig!$B$833:$H$1732,7,FALSE) -> 2085005 | Y85: =VLOOKUP(P85,MapPointConfig!$B$833:$H$1732,7,FALSE) -> 2085006 | Z85: =VLOOKUP(Q85,MapPointConfig!$B$833:$H$1732,7,FALSE) -> 2085007 | AA85: =VLOOKUP(R85,MapPointConfig!$B$833:$H$1732,7,FALSE) -> 2085008
A86: 2086001#100 | B86: 2086002#100 | C86: 2086003#100 | D86: 2086004#100 | E86: 2086005#100 | F86: 2086006#100 | G86: 2086007#100 | H86: 2086008#100 | K86: 2086001 | L86: 2086002 | M86: 2086003 | N86: 2086004 | O86: 2086005 | P86: 2086006 | Q86: 2086007 | R86: 2086008 | T86: =VLOOKUP(K86,MapPointConfig!$B$833:$H$1732,7,FALSE) -> 2086001 | U86: =VLOOKUP(L86,MapPointConfig!$B$833:$H$1732,7,FALSE) -> 2086002 | V86: =VLOOKUP(M86,MapPointConfig!$B$833:$H$1732,7,FALSE) -> 2086003 | W86: =VLOOKUP(N86,MapPointConfig!$B$833:$H$1732,7,FALSE) -> 2086004 | X86: =VLOOKUP(O86,MapPointConfig!$B$833:$H$1732,7,FALSE) -> 2086005 | Y86: =VLOOKUP(P86,MapPointConfig!$B$833:$H$1732,7,FALSE) -> 2086006 | Z86: =VLOOKUP(Q86,MapPointConfig!$B$833:$H$1732,7,FALSE) -> 2086007 | AA86: =VLOOKUP(R86,MapPointConfig!$B$833:$H$1732,7,FALSE) -> 2086008
A87: 2087001#100 | B87: 2087002#100 | C87: 2087003#100 | D87: 2087004#100 | E87: 2087005#100 | F87: 2087006#100 | G87: 2087007#100 | H87: 2087008#100 | K87: 2087001 | L87: 2087002 | M87: 2087003 | N87: 2087004 | O87: 2087005 | P87: 2087006 | Q87: 2087007 | R87: 2087008 | T87: =VLOOKUP(K87,MapPointConfig!$B$833:$H$1732,7,FALSE) -> 2087001 | U87: =VLOOKUP(L87,MapPointConfig!$B$833:$H$1732,7,FALSE) -> 2087002 | V87: =VLOOKUP(M87,MapPointConfig!$B$833:$H$1732,7,FALSE) -> 2087003 | W87: =VLOOKUP(N87,MapPointConfig!$B$833:$H$1732,7,FALSE) -> 2087004 | X87: =VLOOKUP(O87,MapPointConfig!$B$833:$H$1732,7,FALSE) -> 2087005 | Y87: =VLOOKUP(P87,MapPointConfig!$B$833:$H$1732,7,FALSE) -> 2087006 | Z87: =VLOOKUP(Q87,MapPointConfig!$B$833:$H$1732,7,FALSE) -> 2087007 | AA87: =VLOOKUP(R87,MapPointConfig!$B$833:$H$1732,7,FALSE) -> 2087008
A88: 2088001#100 | B88: 2088002#100 | C88: 2088003#100 | D88: 2088004#100 | E88: 2088005#100 | F88: 2088006#100 | G88: 2088007#100 | H88: 2088008#100 | K88: 2088001 | L88: 2088002 | M88: 2088003 | N88: 2088004 | O88: 2088005 | P88: 2088006 | Q88: 2088007 | R88: 2088008 | T88: =VLOOKUP(K88,MapPointConfig!$B$833:$H$1732,7,FALSE) -> 2088001 | U88: =VLOOKUP(L88,MapPointConfig!$B$833:$H$1732,7,FALSE) -> 2088002 | V88: =VLOOKUP(M88,MapPointConfig!$B$833:$H$1732,7,FALSE) -> 2088003 | W88: =VLOOKUP(N88,MapPointConfig!$B$833:$H$1732,7,FALSE) -> 2088004 | X88: =VLOOKUP(O88,MapPointConfig!$B$833:$H$1732,7,FALSE) -> 2088005 | Y88: =VLOOKUP(P88,MapPointConfig!$B$833:$H$1732,7,FALSE) -> 2088006 | Z88: =VLOOKUP(Q88,MapPointConfig!$B$833:$H$1732,7,FALSE) -> 2088007 | AA88: =VLOOKUP(R88,MapPointConfig!$B$833:$H$1732,7,FALSE) -> 2088008
A89: 2089001#100 | B89: 2089002#100 | C89: 2089003#100 | D89: 2089004#100 | E89: 2089005#100 | F89: 2089006#100 | G89: 2089007#100 | H89: 2089008#100 | K89: 2089001 | L89: 2089002 | M89: 2089003 | N89: 2089004 | O89: 2089005 | P89: 2089006 | Q89: 2089007 | R89: 2089008 | T89: =VLOOKUP(K89,MapPointConfig!$B$833:$H$1732,7,FALSE) -> 2089001 | U89: =VLOOKUP(L89,MapPointConfig!$B$833:$H$1732,7,FALSE) -> 2089002 | V89: =VLOOKUP(M89,MapPointConfig!$B$833:$H$1732,7,FALSE) -> 2089003 | W89: =VLOOKUP(N89,MapPointConfig!$B$833:$H$1732,7,FALSE) -> 2089004 | X89: =VLOOKUP(O89,MapPointConfig!$B$833:$H$1732,7,FALSE) -> 2089005 | Y89: =VLOOKUP(P89,MapPointConfig!$B$833:$H$1732,7,FALSE) -> 2089006 | Z89: =VLOOKUP(Q89,MapPointConfig!$B$833:$H$1732,7,FALSE) -> 2089007 | AA89: =VLOOKUP(R89,MapPointConfig!$B$833:$H$1732,7,FALSE) -> 2089008
A90: 2090001#100 | B90: 2090002#100 | C90: 2090003#100 | D90: 2090004#100 | E90: 2090005#100 | F90: 2090006#100 | G90: 2090007#100 | H90: 2090008#100 | K90: 2090001 | L90: 2090002 | M90: 2090003 | N90: 2090004 | O90: 2090005 | P90: 2090006 | Q90: 2090007 | R90: 2090008 | T90: =VLOOKUP(K90,MapPointConfig!$B$833:$H$1732,7,FALSE) -> 2090001 | U90: =VLOOKUP(L90,MapPointConfig!$B$833:$H$1732,7,FALSE) -> 2090002 | V90: =VLOOKUP(M90,MapPointConfig!$B$833:$H$1732,7,FALSE) -> 2090003 | W90: =VLOOKUP(N90,MapPointConfig!$B$833:$H$1732,7,FALSE) -> 2090004 | X90: =VLOOKUP(O90,MapPointConfig!$B$833:$H$1732,7,FALSE) -> 2090005 | Y90: =VLOOKUP(P90,MapPointConfig!$B$833:$H$1732,7,FALSE) -> 2090006 | Z90: =VLOOKUP(Q90,MapPointConfig!$B$833:$H$1732,7,FALSE) -> 2090007 | AA90: =VLOOKUP(R90,MapPointConfig!$B$833:$H$1732,7,FALSE) -> 2090008
A91: 2091001#100 | B91: 2091002#100 | C91: 2091003#100 | D91: 2091004#100 | E91: 2091005#100 | F91: 2091006#100 | G91: 2091007#100 | H91: 2091008#100 | K91: 2091001 | L91: 2091002 | M91: 2091003 | N91: 2091004 | O91: 2091005 | P91: 2091006 | Q91: 2091007 | R91: 2091008 | T91: =VLOOKUP(K91,MapPointConfig!$B$833:$H$1732,7,FALSE) -> 2091001 | U91: =VLOOKUP(L91,MapPointConfig!$B$833:$H$1732,7,FALSE) -> 2091002 | V91: =VLOOKUP(M91,MapPointConfig!$B$833:$H$1732,7,FALSE) -> 2091003 | W91: =VLOOKUP(N91,MapPointConfig!$B$833:$H$1732,7,FALSE) -> 2091004 | X91: =VLOOKUP(O91,MapPointConfig!$B$833:$H$1732,7,FALSE) -> 2091005 | Y91: =VLOOKUP(P91,MapPointConfig!$B$833:$H$1732,7,FALSE) -> 2091006 | Z91: =VLOOKUP(Q91,MapPointConfig!$B$833:$H$1732,7,FALSE) -> 2091007 | AA91: =VLOOKUP(R91,MapPointConfig!$B$833:$H$1732,7,FALSE) -> 2091008
A92: 2092001#100 | B92: 2092002#100 | C92: 2092003#100 | D92: 2092004#100 | E92: 2092005#100 | F92: 2092006#100 | G92: 2092007#100 | H92: 2092008#100 | K92: 2092001 | L92: 2092002 | M92: 2092003 | N92: 2092004 | O92: 2092005 | P92: 2092006 | Q92: 2092007 | R92: 2092008 | T92: =VLOOKUP(K92,MapPointConfig!$B$833:$H$1732,7,FALSE) -> 2092001 | U92: =VLOOKUP(L92,MapPointConfig!$B$833:$H$1732,7,FALSE) -> 2092002 | V92: =VLOOKUP(M92,MapPointConfig!$B$833:$H$1732,7,FALSE) -> 2092003 | W92: =VLOOKUP(N92,MapPointConfig!$B$833:$H$1732,7,FALSE) -> 2092004 | X92: =VLOOKUP(O92,MapPointConfig!$B$833:$H$1732,7,FALSE) -> 2092005 | Y92: =VLOOKUP(P92,MapPointConfig!$B$833:$H$1732,7,FALSE) -> 2092006 | Z92: =VLOOKUP(Q92,MapPointConfig!$B$833:$H$1732,7,FALSE) -> 2092007 | AA92: =VLOOKUP(R92,MapPointConfig!$B$833:$H$1732,7,FALSE) -> 2092008
A93: 2093001#100 | B93: 2093002#100 | C93: 2093003#100 | D93: 2093004#100 | E93: 2093005#100 | F93: 2093006#100 | G93: 2093007#100 | H93: 2093008#100 | K93: 2093001 | L93: 2093002 | M93: 2093003 | N93: 2093004 | O93: 2093005 | P93: 2093006 | Q93: 2093007 | R93: 2093008 | T93: =VLOOKUP(K93,MapPointConfig!$B$833:$H$1732,7,FALSE) -> 2093001 | U93: =VLOOKUP(L93,MapPointConfig!$B$833:$H$1732,7,FALSE) -> 2093002 | V93: =VLOOKUP(M93,MapPointConfig!$B$833:$H$1732,7,FALSE) -> 2093003 | W93: =VLOOKUP(N93,MapPointConfig!$B$833:$H$1732,7,FALSE) -> 2093004 | X93: =VLOOKUP(O93,MapPointConfig!$B$833:$H$1732,7,FALSE) -> 2093005 | Y93: =VLOOKUP(P93,MapPointConfig!$B$833:$H$1732,7,FALSE) -> 2093006 | Z93: =VLOOKUP(Q93,MapPointConfig!$B$833:$H$1732,7,FALSE) -> 2093007 | AA93: =VLOOKUP(R93,MapPointConfig!$B$833:$H$1732,7,FALSE) -> 2093008
A94: 2094001#100 | B94: 2094002#100 | C94: 2094003#100 | D94: 2094004#100 | E94: 2094005#100 | F94: 2094006#100 | G94: 2094007#100 | H94: 2094008#100 | K94: 2094001 | L94: 2094002 | M94: 2094003 | N94: 2094004 | O94: 2094005 | P94: 2094006 | Q94: 2094007 | R94: 2094008 | T94: =VLOOKUP(K94,MapPointConfig!$B$833:$H$1732,7,FALSE) -> 2094001 | U94: =VLOOKUP(L94,MapPointConfig!$B$833:$H$1732,7,FALSE) -> 2094002 | V94: =VLOOKUP(M94,MapPointConfig!$B$833:$H$1732,7,FALSE) -> 2094003 | W94: =VLOOKUP(N94,MapPointConfig!$B$833:$H$1732,7,FALSE) -> 2094004 | X94: =VLOOKUP(O94,MapPointConfig!$B$833:$H$1732,7,FALSE) -> 2094005 | Y94: =VLOOKUP(P94,MapPointConfig!$B$833:$H$1732,7,FALSE) -> 2094006 | Z94: =VLOOKUP(Q94,MapPointConfig!$B$833:$H$1732,7,FALSE) -> 2094007 | AA94: =VLOOKUP(R94,MapPointConfig!$B$833:$H$1732,7,FALSE) -> 2094008
A95: 2095001#100 | B95: 2095002#100 | C95: 2095003#100 | D95: 2095004#100 | E95: 2095005#100 | F95: 2095006#100 | G95: 2095007#100 | H95: 2095008#100 | K95: 2095001 | L95: 2095002 | M95: 2095003 | N95: 2095004 | O95: 2095005 | P95: 2095006 | Q95: 2095007 | R95: 2095008 | T95: =VLOOKUP(K95,MapPointConfig!$B$833:$H$1732,7,FALSE) -> 2095001 | U95: =VLOOKUP(L95,MapPointConfig!$B$833:$H$1732,7,FALSE) -> 2095002 | V95: =VLOOKUP(M95,MapPointConfig!$B$833:$H$1732,7,FALSE) -> 2095003 | W95: =VLOOKUP(N95,MapPointConfig!$B$833:$H$1732,7,FALSE) -> 2095004 | X95: =VLOOKUP(O95,MapPointConfig!$B$833:$H$1732,7,FALSE) -> 2095005 | Y95: =VLOOKUP(P95,MapPointConfig!$B$833:$H$1732,7,FALSE) -> 2095006 | Z95: =VLOOKUP(Q95,MapPointConfig!$B$833:$H$1732,7,FALSE) -> 2095007 | AA95: =VLOOKUP(R95,MapPointConfig!$B$833:$H$1732,7,FALSE) -> 2095008
A96: 2096001#100 | B96: 2096002#100 | C96: 2096003#100 | D96: 2096004#100 | E96: 2096005#100 | F96: 2096006#100 | G96: 2096007#100 | H96: 2096008#100 | K96: 2096001 | L96: 2096002 | M96: 2096003 | N96: 2096004 | O96: 2096005 | P96: 2096006 | Q96: 2096007 | R96: 2096008 | T96: =VLOOKUP(K96,MapPointConfig!$B$833:$H$1732,7,FALSE) -> 2096001 | U96: =VLOOKUP(L96,MapPointConfig!$B$833:$H$1732,7,FALSE) -> 2096002 | V96: =VLOOKUP(M96,MapPointConfig!$B$833:$H$1732,7,FALSE) -> 2096003 | W96: =VLOOKUP(N96,MapPointConfig!$B$833:$H$1732,7,FALSE) -> 2096004 | X96: =VLOOKUP(O96,MapPointConfig!$B$833:$H$1732,7,FALSE) -> 2096005 | Y96: =VLOOKUP(P96,MapPointConfig!$B$833:$H$1732,7,FALSE) -> 2096006 | Z96: =VLOOKUP(Q96,MapPointConfig!$B$833:$H$1732,7,FALSE) -> 2096007 | AA96: =VLOOKUP(R96,MapPointConfig!$B$833:$H$1732,7,FALSE) -> 2096008
A97: 2097001#100 | B97: 2097002#100 | C97: 2097003#100 | D97: 2097004#100 | E97: 2097005#100 | F97: 2097006#100 | G97: 2097007#100 | H97: 2097008#100 | K97: 2097001 | L97: 2097002 | M97: 2097003 | N97: 2097004 | O97: 2097005 | P97: 2097006 | Q97: 2097007 | R97: 2097008 | T97: =VLOOKUP(K97,MapPointConfig!$B$833:$H$1732,7,FALSE) -> 2097001 | U97: =VLOOKUP(L97,MapPointConfig!$B$833:$H$1732,7,FALSE) -> 2097002 | V97: =VLOOKUP(M97,MapPointConfig!$B$833:$H$1732,7,FALSE) -> 2097003 | W97: =VLOOKUP(N97,MapPointConfig!$B$833:$H$1732,7,FALSE) -> 2097004 | X97: =VLOOKUP(O97,MapPointConfig!$B$833:$H$1732,7,FALSE) -> 2097005 | Y97: =VLOOKUP(P97,MapPointConfig!$B$833:$H$1732,7,FALSE) -> 2097006 | Z97: =VLOOKUP(Q97,MapPointConfig!$B$833:$H$1732,7,FALSE) -> 2097007 | AA97: =VLOOKUP(R97,MapPointConfig!$B$833:$H$1732,7,FALSE) -> 2097008
A98: 2098001#100 | B98: 2098002#100 | C98: 2098003#100 | D98: 2098004#100 | E98: 2098005#100 | F98: 2098006#100 | G98: 2098007#100 | H98: 2098008#100 | K98: 2098001 | L98: 2098002 | M98: 2098003 | N98: 2098004 | O98: 2098005 | P98: 2098006 | Q98: 2098007 | R98: 2098008 | T98: =VLOOKUP(K98,MapPointConfig!$B$833:$H$1732,7,FALSE) -> 2098001 | U98: =VLOOKUP(L98,MapPointConfig!$B$833:$H$1732,7,FALSE) -> 2098002 | V98: =VLOOKUP(M98,MapPointConfig!$B$833:$H$1732,7,FALSE) -> 2098003 | W98: =VLOOKUP(N98,MapPointConfig!$B$833:$H$1732,7,FALSE) -> 2098004 | X98: =VLOOKUP(O98,MapPointConfig!$B$833:$H$1732,7,FALSE) -> 2098005 | Y98: =VLOOKUP(P98,MapPointConfig!$B$833:$H$1732,7,FALSE) -> 2098006 | Z98: =VLOOKUP(Q98,MapPointConfig!$B$833:$H$1732,7,FALSE) -> 2098007 | AA98: =VLOOKUP(R98,MapPointConfig!$B$833:$H$1732,7,FALSE) -> 2098008
A99: 2099001#100 | B99: 2099002#100 | C99: 2099003#100 | D99: 2099004#100 | E99: 2099005#100 | F99: 2099006#100 | G99: 2099007#100 | H99: 2099008#100 | K99: 2099001 | L99: 2099002 | M99: 2099003 | N99: 2099004 | O99: 2099005 | P99: 2099006 | Q99: 2099007 | R99: 2099008 | T99: =VLOOKUP(K99,MapPointConfig!$B$833:$H$1732,7,FALSE) -> 2099001 | U99: =VLOOKUP(L99,MapPointConfig!$B$833:$H$1732,7,FALSE) -> 2099002 | V99: =VLOOKUP(M99,MapPointConfig!$B$833:$H$1732,7,FALSE) -> 2099003 | W99: =VLOOKUP(N99,MapPointConfig!$B$833:$H$1732,7,FALSE) -> 2099004 | X99: =VLOOKUP(O99,MapPointConfig!$B$833:$H$1732,7,FALSE) -> 2099005 | Y99: =VLOOKUP(P99,MapPointConfig!$B$833:$H$1732,7,FALSE) -> 2099006 | Z99: =VLOOKUP(Q99,MapPointConfig!$B$833:$H$1732,7,FALSE) -> 2099007 | AA99: =VLOOKUP(R99,MapPointConfig!$B$833:$H$1732,7,FALSE) -> 2099008
A100: 2100001#100 | B100: 2100002#100 | C100: 2100003#100 | D100: 2100004#100 | E100: 2100005#100 | F100: 2100006#100 | G100: 2100007#100 | H100: 2100008#100 | K100: 2100001 | L100: 2100002 | M100: 2100003 | N100: 2100004 | O100: 2100005 | P100: 2100006 | Q100: 2100007 | R100: 2100008 | T100: =VLOOKUP(K100,MapPointConfig!$B$833:$H$1732,7,FALSE) -> 2100001 | U100: =VLOOKUP(L100,MapPointConfig!$B$833:$H$1732,7,FALSE) -> 2100002 | V100: =VLOOKUP(M100,MapPointConfig!$B$833:$H$1732,7,FALSE) -> 2100003 | W100: =VLOOKUP(N100,MapPointConfig!$B$833:$H$1732,7,FALSE) -> 2100004 | X100: =VLOOKUP(O100,MapPointConfig!$B$833:$H$1732,7,FALSE) -> 2100005 | Y100: =VLOOKUP(P100,MapPointConfig!$B$833:$H$1732,7,FALSE) -> 2100006 | Z100: =VLOOKUP(Q100,MapPointConfig!$B$833:$H$1732,7,FALSE) -> 2100007 | AA100: =VLOOKUP(R100,MapPointConfig!$B$833:$H$1732,7,FALSE) -> 2100008
A101: 2101001#100 | B101: 2101002#100 | C101: 2101003#100 | D101: 2101004#100 | E101: 2101005#100 | F101: 2101006#100 | G101: 2101007#100 | H101: 2101008#100 | K101: 2101001 | L101: 2101002 | M101: 2101003 | N101: 2101004 | O101: 2101005 | P101: 2101006 | Q101: 2101007 | R101: 2101008 | T101: =VLOOKUP(K101,MapPointConfig!$B$833:$H$1732,7,FALSE) ->  | U101: =VLOOKUP(L101,MapPointConfig!$B$833:$H$1732,7,FALSE) ->  | V101: =VLOOKUP(M101,MapPointConfig!$B$833:$H$1732,7,FALSE) ->  | W101: =VLOOKUP(N101,MapPointConfig!$B$833:$H$1732,7,FALSE) ->  | X101: =VLOOKUP(O101,MapPointConfig!$B$833:$H$1732,7,FALSE) ->  | Y101: =VLOOKUP(P101,MapPointConfig!$B$833:$H$1732,7,FALSE) ->  | Z101: =VLOOKUP(Q101,MapPointConfig!$B$833:$H$1732,7,FALSE) ->  | AA101: =VLOOKUP(R101,MapPointConfig!$B$833:$H$1732,7,FALSE) -> 
A102: 2102001#100 | B102: 2102002#100 | C102: 2102003#100 | D102: 2102004#100 | E102: 2102005#100 | F102: 2102006#100 | G102: 2102007#100 | H102: 2102008#100 | K102: 2102001 | L102: 2102002 | M102: 2102003 | N102: 2102004 | O102: 2102005 | P102: 2102006 | Q102: 2102007 | R102: 2102008 | T102: =VLOOKUP(K102,MapPointConfig!$B$833:$H$1732,7,FALSE) ->  | U102: =VLOOKUP(L102,MapPointConfig!$B$833:$H$1732,7,FALSE) ->  | V102: =VLOOKUP(M102,MapPointConfig!$B$833:$H$1732,7,FALSE) ->  | W102: =VLOOKUP(N102,MapPointConfig!$B$833:$H$1732,7,FALSE) ->  | X102: =VLOOKUP(O102,MapPointConfig!$B$833:$H$1732,7,FALSE) ->  | Y102: =VLOOKUP(P102,MapPointConfig!$B$833:$H$1732,7,FALSE) ->  | Z102: =VLOOKUP(Q102,MapPointConfig!$B$833:$H$1732,7,FALSE) ->  | AA102: =VLOOKUP(R102,MapPointConfig!$B$833:$H$1732,7,FALSE) -> 
A103: 2103001#100 | B103: 2103002#100 | C103: 2103003#100 | D103: 2103004#100 | E103: 2103005#100 | F103: 2103006#100 | G103: 2103007#100 | H103: 2103008#100 | K103: 2103001 | L103: 2103002 | M103: 2103003 | N103: 2103004 | O103: 2103005 | P103: 2103006 | Q103: 2103007 | R103: 2103008 | T103: =VLOOKUP(K103,MapPointConfig!$B$833:$H$1732,7,FALSE) ->  | U103: =VLOOKUP(L103,MapPointConfig!$B$833:$H$1732,7,FALSE) ->  | V103: =VLOOKUP(M103,MapPointConfig!$B$833:$H$1732,7,FALSE) ->  | W103: =VLOOKUP(N103,MapPointConfig!$B$833:$H$1732,7,FALSE) ->  | X103: =VLOOKUP(O103,MapPointConfig!$B$833:$H$1732,7,FALSE) ->  | Y103: =VLOOKUP(P103,MapPointConfig!$B$833:$H$1732,7,FALSE) ->  | Z103: =VLOOKUP(Q103,MapPointConfig!$B$833:$H$1732,7,FALSE) ->  | AA103: =VLOOKUP(R103,MapPointConfig!$B$833:$H$1732,7,FALSE) -> 
A104: 2104001#100 | B104: 2104002#100 | C104: 2104003#100 | D104: 2104004#100 | E104: 2104005#100 | F104: 2104006#100 | G104: 2104007#100 | H104: 2104008#100 | K104: 2104001 | L104: 2104002 | M104: 2104003 | N104: 2104004 | O104: 2104005 | P104: 2104006 | Q104: 2104007 | R104: 2104008 | T104: =VLOOKUP(K104,MapPointConfig!$B$833:$H$1732,7,FALSE) ->  | U104: =VLOOKUP(L104,MapPointConfig!$B$833:$H$1732,7,FALSE) ->  | V104: =VLOOKUP(M104,MapPointConfig!$B$833:$H$1732,7,FALSE) ->  | W104: =VLOOKUP(N104,MapPointConfig!$B$833:$H$1732,7,FALSE) ->  | X104: =VLOOKUP(O104,MapPointConfig!$B$833:$H$1732,7,FALSE) ->  | Y104: =VLOOKUP(P104,MapPointConfig!$B$833:$H$1732,7,FALSE) ->  | Z104: =VLOOKUP(Q104,MapPointConfig!$B$833:$H$1732,7,FALSE) ->  | AA104: =VLOOKUP(R104,MapPointConfig!$B$833:$H$1732,7,FALSE) -> 
A105: 2105001#100 | B105: 2105002#100 | C105: 2105003#100 | D105: 2105004#100 | E105: 2105005#100 | F105: 2105006#100 | G105: 2105007#100 | H105: 2105008#100 | K105: 2105001 | L105: 2105002 | M105: 2105003 | N105: 2105004 | O105: 2105005 | P105: 2105006 | Q105: 2105007 | R105: 2105008 | T105: =VLOOKUP(K105,MapPointConfig!$B$833:$H$1732,7,FALSE) ->  | U105: =VLOOKUP(L105,MapPointConfig!$B$833:$H$1732,7,FALSE) ->  | V105: =VLOOKUP(M105,MapPointConfig!$B$833:$H$1732,7,FALSE) ->  | W105: =VLOOKUP(N105,MapPointConfig!$B$833:$H$1732,7,FALSE) ->  | X105: =VLOOKUP(O105,MapPointConfig!$B$833:$H$1732,7,FALSE) ->  | Y105: =VLOOKUP(P105,MapPointConfig!$B$833:$H$1732,7,FALSE) ->  | Z105: =VLOOKUP(Q105,MapPointConfig!$B$833:$H$1732,7,FALSE) ->  | AA105: =VLOOKUP(R105,MapPointConfig!$B$833:$H$1732,7,FALSE) -> 
A106: 2106001#100 | B106: 2106002#100 | C106: 2106003#100 | D106: 2106004#100 | E106: 2106005#100 | F106: 2106006#100 | G106: 2106007#100 | H106: 2106008#100 | K106: 2106001 | L106: 2106002 | M106: 2106003 | N106: 2106004 | O106: 2106005 | P106: 2106006 | Q106: 2106007 | R106: 2106008 | T106: =VLOOKUP(K106,MapPointConfig!$B$833:$H$1732,7,FALSE) ->  | U106: =VLOOKUP(L106,MapPointConfig!$B$833:$H$1732,7,FALSE) ->  | V106: =VLOOKUP(M106,MapPointConfig!$B$833:$H$1732,7,FALSE) ->  | W106: =VLOOKUP(N106,MapPointConfig!$B$833:$H$1732,7,FALSE) ->  | X106: =VLOOKUP(O106,MapPointConfig!$B$833:$H$1732,7,FALSE) ->  | Y106: =VLOOKUP(P106,MapPointConfig!$B$833:$H$1732,7,FALSE) ->  | Z106: =VLOOKUP(Q106,MapPointConfig!$B$833:$H$1732,7,FALSE) ->  | AA106: =VLOOKUP(R106,MapPointConfig!$B$833:$H$1732,7,FALSE) -> 
A107: 2107001#100 | B107: 2107002#100 | C107: 2107003#100 | D107: 2107004#100 | E107: 2107005#100 | F107: 2107006#100 | G107: 2107007#100 | H107: 2107008#100 | K107: 2107001 | L107: 2107002 | M107: 2107003 | N107: 2107004 | O107: 2107005 | P107: 2107006 | Q107: 2107007 | R107: 2107008 | T107: =VLOOKUP(K107,MapPointConfig!$B$833:$H$1732,7,FALSE) ->  | U107: =VLOOKUP(L107,MapPointConfig!$B$833:$H$1732,7,FALSE) ->  | V107: =VLOOKUP(M107,MapPointConfig!$B$833:$H$1732,7,FALSE) ->  | W107: =VLOOKUP(N107,MapPointConfig!$B$833:$H$1732,7,FALSE) ->  | X107: =VLOOKUP(O107,MapPointConfig!$B$833:$H$1732,7,FALSE) ->  | Y107: =VLOOKUP(P107,MapPointConfig!$B$833:$H$1732,7,FALSE) ->  | Z107: =VLOOKUP(Q107,MapPointConfig!$B$833:$H$1732,7,FALSE) ->  | AA107: =VLOOKUP(R107,MapPointConfig!$B$833:$H$1732,7,FALSE) -> 
A108: 2108001#100 | B108: 2108002#100 | C108: 2108003#100 | D108: 2108004#100 | E108: 2108005#100 | F108: 2108006#100 | G108: 2108007#100 | H108: 2108008#100 | K108: 2108001 | L108: 2108002 | M108: 2108003 | N108: 2108004 | O108: 2108005 | P108: 2108006 | Q108: 2108007 | R108: 2108008 | T108: =VLOOKUP(K108,MapPointConfig!$B$833:$H$1732,7,FALSE) ->  | U108: =VLOOKUP(L108,MapPointConfig!$B$833:$H$1732,7,FALSE) ->  | V108: =VLOOKUP(M108,MapPointConfig!$B$833:$H$1732,7,FALSE) ->  | W108: =VLOOKUP(N108,MapPointConfig!$B$833:$H$1732,7,FALSE) ->  | X108: =VLOOKUP(O108,MapPointConfig!$B$833:$H$1732,7,FALSE) ->  | Y108: =VLOOKUP(P108,MapPointConfig!$B$833:$H$1732,7,FALSE) ->  | Z108: =VLOOKUP(Q108,MapPointConfig!$B$833:$H$1732,7,FALSE) ->  | AA108: =VLOOKUP(R108,MapPointConfig!$B$833:$H$1732,7,FALSE) -> 
A109: 2109001#100 | B109: 2109002#100 | C109: 2109003#100 | D109: 2109004#100 | E109: 2109005#100 | F109: 2109006#100 | G109: 2109007#100 | H109: 2109008#100 | K109: 2109001 | L109: 2109002 | M109: 2109003 | N109: 2109004 | O109: 2109005 | P109: 2109006 | Q109: 2109007 | R109: 2109008 | T109: =VLOOKUP(K109,MapPointConfig!$B$833:$H$1732,7,FALSE) ->  | U109: =VLOOKUP(L109,MapPointConfig!$B$833:$H$1732,7,FALSE) ->  | V109: =VLOOKUP(M109,MapPointConfig!$B$833:$H$1732,7,FALSE) ->  | W109: =VLOOKUP(N109,MapPointConfig!$B$833:$H$1732,7,FALSE) ->  | X109: =VLOOKUP(O109,MapPointConfig!$B$833:$H$1732,7,FALSE) ->  | Y109: =VLOOKUP(P109,MapPointConfig!$B$833:$H$1732,7,FALSE) ->  | Z109: =VLOOKUP(Q109,MapPointConfig!$B$833:$H$1732,7,FALSE) ->  | AA109: =VLOOKUP(R109,MapPointConfig!$B$833:$H$1732,7,FALSE) -> 
A110: 2110001#100 | B110: 2110002#100 | C110: 2110003#100 | D110: 2110004#100 | E110: 2110005#100 | F110: 2110006#100 | G110: 2110007#100 | H110: 2110008#100 | K110: 2110001 | L110: 2110002 | M110: 2110003 | N110: 2110004 | O110: 2110005 | P110: 2110006 | Q110: 2110007 | R110: 2110008 | T110: =VLOOKUP(K110,MapPointConfig!$B$833:$H$1732,7,FALSE) ->  | U110: =VLOOKUP(L110,MapPointConfig!$B$833:$H$1732,7,FALSE) ->  | V110: =VLOOKUP(M110,MapPointConfig!$B$833:$H$1732,7,FALSE) ->  | W110: =VLOOKUP(N110,MapPointConfig!$B$833:$H$1732,7,FALSE) ->  | X110: =VLOOKUP(O110,MapPointConfig!$B$833:$H$1732,7,FALSE) ->  | Y110: =VLOOKUP(P110,MapPointConfig!$B$833:$H$1732,7,FALSE) ->  | Z110: =VLOOKUP(Q110,MapPointConfig!$B$833:$H$1732,7,FALSE) ->  | AA110: =VLOOKUP(R110,MapPointConfig!$B$833:$H$1732,7,FALSE) -> 
A111: 2111001#100 | B111: 2111002#100 | C111: 2111003#100 | D111: 2111004#100 | E111: 2111005#100 | F111: 2111006#100 | G111: 2111007#100 | H111: 2111008#100 | K111: 2111001 | L111: 2111002 | M111: 2111003 | N111: 2111004 | O111: 2111005 | P111: 2111006 | Q111: 2111007 | R111: 2111008 | T111: =VLOOKUP(K111,MapPointConfig!$B$833:$H$1732,7,FALSE) ->  | U111: =VLOOKUP(L111,MapPointConfig!$B$833:$H$1732,7,FALSE) ->  | V111: =VLOOKUP(M111,MapPointConfig!$B$833:$H$1732,7,FALSE) ->  | W111: =VLOOKUP(N111,MapPointConfig!$B$833:$H$1732,7,FALSE) ->  | X111: =VLOOKUP(O111,MapPointConfig!$B$833:$H$1732,7,FALSE) ->  | Y111: =VLOOKUP(P111,MapPointConfig!$B$833:$H$1732,7,FALSE) ->  | Z111: =VLOOKUP(Q111,MapPointConfig!$B$833:$H$1732,7,FALSE) ->  | AA111: =VLOOKUP(R111,MapPointConfig!$B$833:$H$1732,7,FALSE) -> 
A112: 2112001#100 | B112: 2112002#100 | C112: 2112003#100 | D112: 2112004#100 | E112: 2112005#100 | F112: 2112006#100 | G112: 2112007#100 | H112: 2112008#100 | K112: 2112001 | L112: 2112002 | M112: 2112003 | N112: 2112004 | O112: 2112005 | P112: 2112006 | Q112: 2112007 | R112: 2112008 | T112: =VLOOKUP(K112,MapPointConfig!$B$833:$H$1732,7,FALSE) ->  | U112: =VLOOKUP(L112,MapPointConfig!$B$833:$H$1732,7,FALSE) ->  | V112: =VLOOKUP(M112,MapPointConfig!$B$833:$H$1732,7,FALSE) ->  | W112: =VLOOKUP(N112,MapPointConfig!$B$833:$H$1732,7,FALSE) ->  | X112: =VLOOKUP(O112,MapPointConfig!$B$833:$H$1732,7,FALSE) ->  | Y112: =VLOOKUP(P112,MapPointConfig!$B$833:$H$1732,7,FALSE) ->  | Z112: =VLOOKUP(Q112,MapPointConfig!$B$833:$H$1732,7,FALSE) ->  | AA112: =VLOOKUP(R112,MapPointConfig!$B$833:$H$1732,7,FALSE) -> 
A113: 2113001#100 | B113: 2113002#100 | C113: 2113003#100 | D113: 2113004#100 | E113: 2113005#100 | F113: 2113006#100 | G113: 2113007#100 | H113: 2113008#100 | K113: 2113001 | L113: 2113002 | M113: 2113003 | N113: 2113004 | O113: 2113005 | P113: 2113006 | Q113: 2113007 | R113: 2113008 | T113: =VLOOKUP(K113,MapPointConfig!$B$833:$H$1732,7,FALSE) ->  | U113: =VLOOKUP(L113,MapPointConfig!$B$833:$H$1732,7,FALSE) ->  | V113: =VLOOKUP(M113,MapPointConfig!$B$833:$H$1732,7,FALSE) ->  | W113: =VLOOKUP(N113,MapPointConfig!$B$833:$H$1732,7,FALSE) ->  | X113: =VLOOKUP(O113,MapPointConfig!$B$833:$H$1732,7,FALSE) ->  | Y113: =VLOOKUP(P113,MapPointConfig!$B$833:$H$1732,7,FALSE) ->  | Z113: =VLOOKUP(Q113,MapPointConfig!$B$833:$H$1732,7,FALSE) ->  | AA113: =VLOOKUP(R113,MapPointConfig!$B$833:$H$1732,7,FALSE) -> 
A114: 2114001#100 | B114: 2114002#100 | C114: 2114003#100 | D114: 2114004#100 | E114: 2114005#100 | F114: 2114006#100 | G114: 2114007#100 | H114: 2114008#100 | K114: 2114001 | L114: 2114002 | M114: 2114003 | N114: 2114004 | O114: 2114005 | P114: 2114006 | Q114: 2114007 | R114: 2114008 | T114: =VLOOKUP(K114,MapPointConfig!$B$833:$H$1732,7,FALSE) ->  | U114: =VLOOKUP(L114,MapPointConfig!$B$833:$H$1732,7,FALSE) ->  | V114: =VLOOKUP(M114,MapPointConfig!$B$833:$H$1732,7,FALSE) ->  | W114: =VLOOKUP(N114,MapPointConfig!$B$833:$H$1732,7,FALSE) ->  | X114: =VLOOKUP(O114,MapPointConfig!$B$833:$H$1732,7,FALSE) ->  | Y114: =VLOOKUP(P114,MapPointConfig!$B$833:$H$1732,7,FALSE) ->  | Z114: =VLOOKUP(Q114,MapPointConfig!$B$833:$H$1732,7,FALSE) ->  | AA114: =VLOOKUP(R114,MapPointConfig!$B$833:$H$1732,7,FALSE) -> 
A115: 2115001#100 | B115: 2115002#100 | C115: 2115003#100 | D115: 2115004#100 | E115: 2115005#100 | F115: 2115006#100 | G115: 2115007#100 | H115: 2115008#100 | K115: 2115001 | L115: 2115002 | M115: 2115003 | N115: 2115004 | O115: 2115005 | P115: 2115006 | Q115: 2115007 | R115: 2115008 | T115: =VLOOKUP(K115,MapPointConfig!$B$833:$H$1732,7,FALSE) ->  | U115: =VLOOKUP(L115,MapPointConfig!$B$833:$H$1732,7,FALSE) ->  | V115: =VLOOKUP(M115,MapPointConfig!$B$833:$H$1732,7,FALSE) ->  | W115: =VLOOKUP(N115,MapPointConfig!$B$833:$H$1732,7,FALSE) ->  | X115: =VLOOKUP(O115,MapPointConfig!$B$833:$H$1732,7,FALSE) ->  | Y115: =VLOOKUP(P115,MapPointConfig!$B$833:$H$1732,7,FALSE) ->  | Z115: =VLOOKUP(Q115,MapPointConfig!$B$833:$H$1732,7,FALSE) ->  | AA115: =VLOOKUP(R115,MapPointConfig!$B$833:$H$1732,7,FALSE) -> 
A116: 2116001#100 | B116: 2116002#100 | C116: 2116003#100 | D116: 2116004#100 | E116: 2116005#100 | F116: 2116006#100 | G116: 2116007#100 | H116: 2116008#100 | K116: 2116001 | L116: 2116002 | M116: 2116003 | N116: 2116004 | O116: 2116005 | P116: 2116006 | Q116: 2116007 | R116: 2116008 | T116: =VLOOKUP(K116,MapPointConfig!$B$833:$H$1732,7,FALSE) ->  | U116: =VLOOKUP(L116,MapPointConfig!$B$833:$H$1732,7,FALSE) ->  | V116: =VLOOKUP(M116,MapPointConfig!$B$833:$H$1732,7,FALSE) ->  | W116: =VLOOKUP(N116,MapPointConfig!$B$833:$H$1732,7,FALSE) ->  | X116: =VLOOKUP(O116,MapPointConfig!$B$833:$H$1732,7,FALSE) ->  | Y116: =VLOOKUP(P116,MapPointConfig!$B$833:$H$1732,7,FALSE) ->  | Z116: =VLOOKUP(Q116,MapPointConfig!$B$833:$H$1732,7,FALSE) ->  | AA116: =VLOOKUP(R116,MapPointConfig!$B$833:$H$1732,7,FALSE) -> 
A117: 2117001#100 | B117: 2117002#100 | C117: 2117003#100 | D117: 2117004#100 | E117: 2117005#100 | F117: 2117006#100 | G117: 2117007#100 | H117: 2117008#100 | K117: 2117001 | L117: 2117002 | M117: 2117003 | N117: 2117004 | O117: 2117005 | P117: 2117006 | Q117: 2117007 | R117: 2117008 | T117: =VLOOKUP(K117,MapPointConfig!$B$833:$H$1732,7,FALSE) ->  | U117: =VLOOKUP(L117,MapPointConfig!$B$833:$H$1732,7,FALSE) ->  | V117: =VLOOKUP(M117,MapPointConfig!$B$833:$H$1732,7,FALSE) ->  | W117: =VLOOKUP(N117,MapPointConfig!$B$833:$H$1732,7,FALSE) ->  | X117: =VLOOKUP(O117,MapPointConfig!$B$833:$H$1732,7,FALSE) ->  | Y117: =VLOOKUP(P117,MapPointConfig!$B$833:$H$1732,7,FALSE) ->  | Z117: =VLOOKUP(Q117,MapPointConfig!$B$833:$H$1732,7,FALSE) ->  | AA117: =VLOOKUP(R117,MapPointConfig!$B$833:$H$1732,7,FALSE) -> 
A118: 2118001#100 | B118: 2118002#100 | C118: 2118003#100 | D118: 2118004#100 | E118: 2118005#100 | F118: 2118006#100 | G118: 2118007#100 | H118: 2118008#100 | K118: 2118001 | L118: 2118002 | M118: 2118003 | N118: 2118004 | O118: 2118005 | P118: 2118006 | Q118: 2118007 | R118: 2118008 | T118: =VLOOKUP(K118,MapPointConfig!$B$833:$H$1732,7,FALSE) ->  | U118: =VLOOKUP(L118,MapPointConfig!$B$833:$H$1732,7,FALSE) ->  | V118: =VLOOKUP(M118,MapPointConfig!$B$833:$H$1732,7,FALSE) ->  | W118: =VLOOKUP(N118,MapPointConfig!$B$833:$H$1732,7,FALSE) ->  | X118: =VLOOKUP(O118,MapPointConfig!$B$833:$H$1732,7,FALSE) ->  | Y118: =VLOOKUP(P118,MapPointConfig!$B$833:$H$1732,7,FALSE) ->  | Z118: =VLOOKUP(Q118,MapPointConfig!$B$833:$H$1732,7,FALSE) ->  | AA118: =VLOOKUP(R118,MapPointConfig!$B$833:$H$1732,7,FALSE) -> 
A119: 2119001#100 | B119: 2119002#100 | C119: 2119003#100 | D119: 2119004#100 | E119: 2119005#100 | F119: 2119006#100 | G119: 2119007#100 | H119: 2119008#100 | K119: 2119001 | L119: 2119002 | M119: 2119003 | N119: 2119004 | O119: 2119005 | P119: 2119006 | Q119: 2119007 | R119: 2119008 | T119: =VLOOKUP(K119,MapPointConfig!$B$833:$H$1732,7,FALSE) ->  | U119: =VLOOKUP(L119,MapPointConfig!$B$833:$H$1732,7,FALSE) ->  | V119: =VLOOKUP(M119,MapPointConfig!$B$833:$H$1732,7,FALSE) ->  | W119: =VLOOKUP(N119,MapPointConfig!$B$833:$H$1732,7,FALSE) ->  | X119: =VLOOKUP(O119,MapPointConfig!$B$833:$H$1732,7,FALSE) ->  | Y119: =VLOOKUP(P119,MapPointConfig!$B$833:$H$1732,7,FALSE) ->  | Z119: =VLOOKUP(Q119,MapPointConfig!$B$833:$H$1732,7,FALSE) ->  | AA119: =VLOOKUP(R119,MapPointConfig!$B$833:$H$1732,7,FALSE) -> 
A120: 2120001#100 | B120: 2120002#100 | C120: 2120003#100 | D120: 2120004#100 | E120: 2120005#100 | F120: 2120006#100 | G120: 2120007#100 | H120: 2120008#100 | K120: 2120001 | L120: 2120002 | M120: 2120003 | N120: 2120004 | O120: 2120005 | P120: 2120006 | Q120: 2120007 | R120: 2120008 | T120: =VLOOKUP(K120,MapPointConfig!$B$833:$H$1732,7,FALSE) ->  | U120: =VLOOKUP(L120,MapPointConfig!$B$833:$H$1732,7,FALSE) ->  | V120: =VLOOKUP(M120,MapPointConfig!$B$833:$H$1732,7,FALSE) ->  | W120: =VLOOKUP(N120,MapPointConfig!$B$833:$H$1732,7,FALSE) ->  | X120: =VLOOKUP(O120,MapPointConfig!$B$833:$H$1732,7,FALSE) ->  | Y120: =VLOOKUP(P120,MapPointConfig!$B$833:$H$1732,7,FALSE) ->  | Z120: =VLOOKUP(Q120,MapPointConfig!$B$833:$H$1732,7,FALSE) ->  | AA120: =VLOOKUP(R120,MapPointConfig!$B$833:$H$1732,7,FALSE) -> 
A121: 2121001#100 | B121: 2121002#100 | C121: 2121003#100 | D121: 2121004#100 | E121: 2121005#100 | F121: 2121006#100 | G121: 2121007#100 | H121: 2121008#100 | K121: 2121001 | L121: 2121002 | M121: 2121003 | N121: 2121004 | O121: 2121005 | P121: 2121006 | Q121: 2121007 | R121: 2121008 | T121: =VLOOKUP(K121,MapPointConfig!$B$833:$H$1732,7,FALSE) ->  | U121: =VLOOKUP(L121,MapPointConfig!$B$833:$H$1732,7,FALSE) ->  | V121: =VLOOKUP(M121,MapPointConfig!$B$833:$H$1732,7,FALSE) ->  | W121: =VLOOKUP(N121,MapPointConfig!$B$833:$H$1732,7,FALSE) ->  | X121: =VLOOKUP(O121,MapPointConfig!$B$833:$H$1732,7,FALSE) ->  | Y121: =VLOOKUP(P121,MapPointConfig!$B$833:$H$1732,7,FALSE) ->  | Z121: =VLOOKUP(Q121,MapPointConfig!$B$833:$H$1732,7,FALSE) ->  | AA121: =VLOOKUP(R121,MapPointConfig!$B$833:$H$1732,7,FALSE) -> 
A122: 2122001#100 | B122: 2122002#100 | C122: 2122003#100 | D122: 2122004#100 | E122: 2122005#100 | F122: 2122006#100 | G122: 2122007#100 | H122: 2122008#100 | K122: 2122001 | L122: 2122002 | M122: 2122003 | N122: 2122004 | O122: 2122005 | P122: 2122006 | Q122: 2122007 | R122: 2122008 | T122: =VLOOKUP(K122,MapPointConfig!$B$833:$H$1732,7,FALSE) ->  | U122: =VLOOKUP(L122,MapPointConfig!$B$833:$H$1732,7,FALSE) ->  | V122: =VLOOKUP(M122,MapPointConfig!$B$833:$H$1732,7,FALSE) ->  | W122: =VLOOKUP(N122,MapPointConfig!$B$833:$H$1732,7,FALSE) ->  | X122: =VLOOKUP(O122,MapPointConfig!$B$833:$H$1732,7,FALSE) ->  | Y122: =VLOOKUP(P122,MapPointConfig!$B$833:$H$1732,7,FALSE) ->  | Z122: =VLOOKUP(Q122,MapPointConfig!$B$833:$H$1732,7,FALSE) ->  | AA122: =VLOOKUP(R122,MapPointConfig!$B$833:$H$1732,7,FALSE) -> 
A123: 2123001#100 | B123: 2123002#100 | C123: 2123003#100 | D123: 2123004#100 | E123: 2123005#100 | F123: 2123006#100 | G123: 2123007#100 | H123: 2123008#100 | K123: 2123001 | L123: 2123002 | M123: 2123003 | N123: 2123004 | O123: 2123005 | P123: 2123006 | Q123: 2123007 | R123: 2123008 | T123: =VLOOKUP(K123,MapPointConfig!$B$833:$H$1732,7,FALSE) ->  | U123: =VLOOKUP(L123,MapPointConfig!$B$833:$H$1732,7,FALSE) ->  | V123: =VLOOKUP(M123,MapPointConfig!$B$833:$H$1732,7,FALSE) ->  | W123: =VLOOKUP(N123,MapPointConfig!$B$833:$H$1732,7,FALSE) ->  | X123: =VLOOKUP(O123,MapPointConfig!$B$833:$H$1732,7,FALSE) ->  | Y123: =VLOOKUP(P123,MapPointConfig!$B$833:$H$1732,7,FALSE) ->  | Z123: =VLOOKUP(Q123,MapPointConfig!$B$833:$H$1732,7,FALSE) ->  | AA123: =VLOOKUP(R123,MapPointConfig!$B$833:$H$1732,7,FALSE) -> 
A124: 2124001#100 | B124: 2124002#100 | C124: 2124003#100 | D124: 2124004#100 | E124: 2124005#100 | F124: 2124006#100 | G124: 2124007#100 | H124: 2124008#100 | K124: 2124001 | L124: 2124002 | M124: 2124003 | N124: 2124004 | O124: 2124005 | P124: 2124006 | Q124: 2124007 | R124: 2124008 | T124: =VLOOKUP(K124,MapPointConfig!$B$833:$H$1732,7,FALSE) ->  | U124: =VLOOKUP(L124,MapPointConfig!$B$833:$H$1732,7,FALSE) ->  | V124: =VLOOKUP(M124,MapPointConfig!$B$833:$H$1732,7,FALSE) ->  | W124: =VLOOKUP(N124,MapPointConfig!$B$833:$H$1732,7,FALSE) ->  | X124: =VLOOKUP(O124,MapPointConfig!$B$833:$H$1732,7,FALSE) ->  | Y124: =VLOOKUP(P124,MapPointConfig!$B$833:$H$1732,7,FALSE) ->  | Z124: =VLOOKUP(Q124,MapPointConfig!$B$833:$H$1732,7,FALSE) ->  | AA124: =VLOOKUP(R124,MapPointConfig!$B$833:$H$1732,7,FALSE) -> 
A125: 2125001#100 | B125: 2125002#100 | C125: 2125003#100 | D125: 2125004#100 | E125: 2125005#100 | F125: 2125006#100 | G125: 2125007#100 | H125: 2125008#100 | K125: 2125001 | L125: 2125002 | M125: 2125003 | N125: 2125004 | O125: 2125005 | P125: 2125006 | Q125: 2125007 | R125: 2125008 | T125: =VLOOKUP(K125,MapPointConfig!$B$833:$H$1732,7,FALSE) ->  | U125: =VLOOKUP(L125,MapPointConfig!$B$833:$H$1732,7,FALSE) ->  | V125: =VLOOKUP(M125,MapPointConfig!$B$833:$H$1732,7,FALSE) ->  | W125: =VLOOKUP(N125,MapPointConfig!$B$833:$H$1732,7,FALSE) ->  | X125: =VLOOKUP(O125,MapPointConfig!$B$833:$H$1732,7,FALSE) ->  | Y125: =VLOOKUP(P125,MapPointConfig!$B$833:$H$1732,7,FALSE) ->  | Z125: =VLOOKUP(Q125,MapPointConfig!$B$833:$H$1732,7,FALSE) ->  | AA125: =VLOOKUP(R125,MapPointConfig!$B$833:$H$1732,7,FALSE) -> 
A126: 2126001#100 | B126: 2126002#100 | C126: 2126003#100 | D126: 2126004#100 | E126: 2126005#100 | F126: 2126006#100 | G126: 2126007#100 | H126: 2126008#100 | K126: 2126001 | L126: 2126002 | M126: 2126003 | N126: 2126004 | O126: 2126005 | P126: 2126006 | Q126: 2126007 | R126: 2126008 | T126: =VLOOKUP(K126,MapPointConfig!$B$833:$H$1732,7,FALSE) ->  | U126: =VLOOKUP(L126,MapPointConfig!$B$833:$H$1732,7,FALSE) ->  | V126: =VLOOKUP(M126,MapPointConfig!$B$833:$H$1732,7,FALSE) ->  | W126: =VLOOKUP(N126,MapPointConfig!$B$833:$H$1732,7,FALSE) ->  | X126: =VLOOKUP(O126,MapPointConfig!$B$833:$H$1732,7,FALSE) ->  | Y126: =VLOOKUP(P126,MapPointConfig!$B$833:$H$1732,7,FALSE) ->  | Z126: =VLOOKUP(Q126,MapPointConfig!$B$833:$H$1732,7,FALSE) ->  | AA126: =VLOOKUP(R126,MapPointConfig!$B$833:$H$1732,7,FALSE) -> 
A127: 2127001#100 | B127: 2127002#100 | C127: 2127003#100 | D127: 2127004#100 | E127: 2127005#100 | F127: 2127006#100 | G127: 2127007#100 | H127: 2127008#100 | K127: 2127001 | L127: 2127002 | M127: 2127003 | N127: 2127004 | O127: 2127005 | P127: 2127006 | Q127: 2127007 | R127: 2127008 | T127: =VLOOKUP(K127,MapPointConfig!$B$833:$H$1732,7,FALSE) ->  | U127: =VLOOKUP(L127,MapPointConfig!$B$833:$H$1732,7,FALSE) ->  | V127: =VLOOKUP(M127,MapPointConfig!$B$833:$H$1732,7,FALSE) ->  | W127: =VLOOKUP(N127,MapPointConfig!$B$833:$H$1732,7,FALSE) ->  | X127: =VLOOKUP(O127,MapPointConfig!$B$833:$H$1732,7,FALSE) ->  | Y127: =VLOOKUP(P127,MapPointConfig!$B$833:$H$1732,7,FALSE) ->  | Z127: =VLOOKUP(Q127,MapPointConfig!$B$833:$H$1732,7,FALSE) ->  | AA127: =VLOOKUP(R127,MapPointConfig!$B$833:$H$1732,7,FALSE) -> 
A128: 2128001#100 | B128: 2128002#100 | C128: 2128003#100 | D128: 2128004#100 | E128: 2128005#100 | F128: 2128006#100 | G128: 2128007#100 | H128: 2128008#100 | K128: 2128001 | L128: 2128002 | M128: 2128003 | N128: 2128004 | O128: 2128005 | P128: 2128006 | Q128: 2128007 | R128: 2128008 | T128: =VLOOKUP(K128,MapPointConfig!$B$833:$H$1732,7,FALSE) ->  | U128: =VLOOKUP(L128,MapPointConfig!$B$833:$H$1732,7,FALSE) ->  | V128: =VLOOKUP(M128,MapPointConfig!$B$833:$H$1732,7,FALSE) ->  | W128: =VLOOKUP(N128,MapPointConfig!$B$833:$H$1732,7,FALSE) ->  | X128: =VLOOKUP(O128,MapPointConfig!$B$833:$H$1732,7,FALSE) ->  | Y128: =VLOOKUP(P128,MapPointConfig!$B$833:$H$1732,7,FALSE) ->  | Z128: =VLOOKUP(Q128,MapPointConfig!$B$833:$H$1732,7,FALSE) ->  | AA128: =VLOOKUP(R128,MapPointConfig!$B$833:$H$1732,7,FALSE) -> 
A129: 2129001#100 | B129: 2129002#100 | C129: 2129003#100 | D129: 2129004#100 | E129: 2129005#100 | F129: 2129006#100 | G129: 2129007#100 | H129: 2129008#100 | K129: 2129001 | L129: 2129002 | M129: 2129003 | N129: 2129004 | O129: 2129005 | P129: 2129006 | Q129: 2129007 | R129: 2129008 | T129: =VLOOKUP(K129,MapPointConfig!$B$833:$H$1732,7,FALSE) ->  | U129: =VLOOKUP(L129,MapPointConfig!$B$833:$H$1732,7,FALSE) ->  | V129: =VLOOKUP(M129,MapPointConfig!$B$833:$H$1732,7,FALSE) ->  | W129: =VLOOKUP(N129,MapPointConfig!$B$833:$H$1732,7,FALSE) ->  | X129: =VLOOKUP(O129,MapPointConfig!$B$833:$H$1732,7,FALSE) ->  | Y129: =VLOOKUP(P129,MapPointConfig!$B$833:$H$1732,7,FALSE) ->  | Z129: =VLOOKUP(Q129,MapPointConfig!$B$833:$H$1732,7,FALSE) ->  | AA129: =VLOOKUP(R129,MapPointConfig!$B$833:$H$1732,7,FALSE) -> 
A130: 2130001#100 | B130: 2130002#100 | C130: 2130003#100 | D130: 2130004#100 | E130: 2130005#100 | F130: 2130006#100 | G130: 2130007#100 | H130: 2130008#100 | K130: =--LEFT(A130,FIND("#",A130,1)-1) -> 2130001 | L130: =--LEFT(B130,FIND("#",B130,1)-1) -> 2130002 | M130: =--LEFT(C130,FIND("#",C130,1)-1) -> 2130003 | N130: =--LEFT(D130,FIND("#",D130,1)-1) -> 2130004 | O130: =--LEFT(E130,FIND("#",E130,1)-1) -> 2130005 | P130: =--LEFT(F130,FIND("#",F130,1)-1) -> 2130006 | Q130: =--LEFT(G130,FIND("#",G130,1)-1) -> 2130007 | R130: =--LEFT(H130,FIND("#",H130,1)-1) -> 2130008 | T130: =VLOOKUP(K130,MapPointConfig!$B$833:$H$1732,7,FALSE) ->  | U130: =VLOOKUP(L130,MapPointConfig!$B$833:$H$1732,7,FALSE) ->  | V130: =VLOOKUP(M130,MapPointConfig!$B$833:$H$1732,7,FALSE) ->  | W130: =VLOOKUP(N130,MapPointConfig!$B$833:$H$1732,7,FALSE) ->  | X130: =VLOOKUP(O130,MapPointConfig!$B$833:$H$1732,7,FALSE) ->  | Y130: =VLOOKUP(P130,MapPointConfig!$B$833:$H$1732,7,FALSE) ->  | Z130: =VLOOKUP(Q130,MapPointConfig!$B$833:$H$1732,7,FALSE) ->  | AA130: =VLOOKUP(R130,MapPointConfig!$B$833:$H$1732,7,FALSE) -> 
A131: 2131001#100 | B131: 2131002#100 | C131: 2131003#100 | D131: 2131004#100 | E131: 2131005#100 | F131: 2131006#100 | G131: 2131007#100 | H131: 2131008#100 | K131: 2131001 | L131: 2131002 | M131: 2131003 | N131: 2131004 | O131: 2131005 | P131: 2131006 | Q131: 2131007 | R131: 2131008 | T131: =VLOOKUP(K131,MapPointConfig!$B$833:$H$1732,7,FALSE) ->  | U131: =VLOOKUP(L131,MapPointConfig!$B$833:$H$1732,7,FALSE) ->  | V131: =VLOOKUP(M131,MapPointConfig!$B$833:$H$1732,7,FALSE) ->  | W131: =VLOOKUP(N131,MapPointConfig!$B$833:$H$1732,7,FALSE) ->  | X131: =VLOOKUP(O131,MapPointConfig!$B$833:$H$1732,7,FALSE) ->  | Y131: =VLOOKUP(P131,MapPointConfig!$B$833:$H$1732,7,FALSE) ->  | Z131: =VLOOKUP(Q131,MapPointConfig!$B$833:$H$1732,7,FALSE) ->  | AA131: =VLOOKUP(R131,MapPointConfig!$B$833:$H$1732,7,FALSE) -> 
A132: 2132001#100 | B132: 2132002#100 | C132: 2132003#100 | D132: 2132004#100 | E132: 2132005#100 | F132: 2132006#100 | G132: 2132007#100 | H132: 2132008#100 | K132: 2132001 | L132: 2132002 | M132: 2132003 | N132: 2132004 | O132: 2132005 | P132: 2132006 | Q132: 2132007 | R132: 2132008 | T132: =VLOOKUP(K132,MapPointConfig!$B$833:$H$1732,7,FALSE) ->  | U132: =VLOOKUP(L132,MapPointConfig!$B$833:$H$1732,7,FALSE) ->  | V132: =VLOOKUP(M132,MapPointConfig!$B$833:$H$1732,7,FALSE) ->  | W132: =VLOOKUP(N132,MapPointConfig!$B$833:$H$1732,7,FALSE) ->  | X132: =VLOOKUP(O132,MapPointConfig!$B$833:$H$1732,7,FALSE) ->  | Y132: =VLOOKUP(P132,MapPointConfig!$B$833:$H$1732,7,FALSE) ->  | Z132: =VLOOKUP(Q132,MapPointConfig!$B$833:$H$1732,7,FALSE) ->  | AA132: =VLOOKUP(R132,MapPointConfig!$B$833:$H$1732,7,FALSE) -> 
A133: 2133001#100 | B133: 2133002#100 | C133: 2133003#100 | D133: 2133004#100 | E133: 2133005#100 | F133: 2133006#100 | G133: 2133007#100 | H133: 2133008#100 | K133: 2133001 | L133: 2133002 | M133: 2133003 | N133: 2133004 | O133: 2133005 | P133: 2133006 | Q133: 2133007 | R133: 2133008 | T133: =VLOOKUP(K133,MapPointConfig!$B$833:$H$1732,7,FALSE) ->  | U133: =VLOOKUP(L133,MapPointConfig!$B$833:$H$1732,7,FALSE) ->  | V133: =VLOOKUP(M133,MapPointConfig!$B$833:$H$1732,7,FALSE) ->  | W133: =VLOOKUP(N133,MapPointConfig!$B$833:$H$1732,7,FALSE) ->  | X133: =VLOOKUP(O133,MapPointConfig!$B$833:$H$1732,7,FALSE) ->  | Y133: =VLOOKUP(P133,MapPointConfig!$B$833:$H$1732,7,FALSE) ->  | Z133: =VLOOKUP(Q133,MapPointConfig!$B$833:$H$1732,7,FALSE) ->  | AA133: =VLOOKUP(R133,MapPointConfig!$B$833:$H$1732,7,FALSE) -> 
A134: 2134001#100 | B134: 2134002#100 | C134: 2134003#100 | D134: 2134004#100 | E134: 2134005#100 | F134: 2134006#100 | G134: 2134007#100 | H134: 2134008#100 | K134: 2134001 | L134: 2134002 | M134: 2134003 | N134: 2134004 | O134: 2134005 | P134: 2134006 | Q134: 2134007 | R134: 2134008 | T134: =VLOOKUP(K134,MapPointConfig!$B$833:$H$1732,7,FALSE) ->  | U134: =VLOOKUP(L134,MapPointConfig!$B$833:$H$1732,7,FALSE) ->  | V134: =VLOOKUP(M134,MapPointConfig!$B$833:$H$1732,7,FALSE) ->  | W134: =VLOOKUP(N134,MapPointConfig!$B$833:$H$1732,7,FALSE) ->  | X134: =VLOOKUP(O134,MapPointConfig!$B$833:$H$1732,7,FALSE) ->  | Y134: =VLOOKUP(P134,MapPointConfig!$B$833:$H$1732,7,FALSE) ->  | Z134: =VLOOKUP(Q134,MapPointConfig!$B$833:$H$1732,7,FALSE) ->  | AA134: =VLOOKUP(R134,MapPointConfig!$B$833:$H$1732,7,FALSE) -> 
A135: 2135001#100 | B135: 2135002#100 | C135: 2135003#100 | D135: 2135004#100 | E135: 2135005#100 | F135: 2135006#100 | G135: 2135007#100 | H135: 2135008#100 | K135: 2135001 | L135: 2135002 | M135: 2135003 | N135: 2135004 | O135: 2135005 | P135: 2135006 | Q135: 2135007 | R135: 2135008 | T135: =VLOOKUP(K135,MapPointConfig!$B$833:$H$1732,7,FALSE) ->  | U135: =VLOOKUP(L135,MapPointConfig!$B$833:$H$1732,7,FALSE) ->  | V135: =VLOOKUP(M135,MapPointConfig!$B$833:$H$1732,7,FALSE) ->  | W135: =VLOOKUP(N135,MapPointConfig!$B$833:$H$1732,7,FALSE) ->  | X135: =VLOOKUP(O135,MapPointConfig!$B$833:$H$1732,7,FALSE) ->  | Y135: =VLOOKUP(P135,MapPointConfig!$B$833:$H$1732,7,FALSE) ->  | Z135: =VLOOKUP(Q135,MapPointConfig!$B$833:$H$1732,7,FALSE) ->  | AA135: =VLOOKUP(R135,MapPointConfig!$B$833:$H$1732,7,FALSE) -> 
A136: 2136001#100 | B136: 2136002#100 | C136: 2136003#100 | D136: 2136004#100 | E136: 2136005#100 | F136: 2136006#100 | G136: 2136007#100 | H136: 2136008#100 | K136: 2136001 | L136: 2136002 | M136: 2136003 | N136: 2136004 | O136: 2136005 | P136: 2136006 | Q136: 2136007 | R136: 2136008 | T136: =VLOOKUP(K136,MapPointConfig!$B$833:$H$1732,7,FALSE) ->  | U136: =VLOOKUP(L136,MapPointConfig!$B$833:$H$1732,7,FALSE) ->  | V136: =VLOOKUP(M136,MapPointConfig!$B$833:$H$1732,7,FALSE) ->  | W136: =VLOOKUP(N136,MapPointConfig!$B$833:$H$1732,7,FALSE) ->  | X136: =VLOOKUP(O136,MapPointConfig!$B$833:$H$1732,7,FALSE) ->  | Y136: =VLOOKUP(P136,MapPointConfig!$B$833:$H$1732,7,FALSE) ->  | Z136: =VLOOKUP(Q136,MapPointConfig!$B$833:$H$1732,7,FALSE) ->  | AA136: =VLOOKUP(R136,MapPointConfig!$B$833:$H$1732,7,FALSE) -> 
A137: 2137001#100 | B137: 2137002#100 | C137: 2137003#100 | D137: 2137004#100 | E137: 2137005#100 | F137: 2137006#100 | G137: 2137007#100 | H137: 2137008#100 | K137: 2137001 | L137: 2137002 | M137: 2137003 | N137: 2137004 | O137: 2137005 | P137: 2137006 | Q137: 2137007 | R137: 2137008 | T137: =VLOOKUP(K137,MapPointConfig!$B$833:$H$1732,7,FALSE) ->  | U137: =VLOOKUP(L137,MapPointConfig!$B$833:$H$1732,7,FALSE) ->  | V137: =VLOOKUP(M137,MapPointConfig!$B$833:$H$1732,7,FALSE) ->  | W137: =VLOOKUP(N137,MapPointConfig!$B$833:$H$1732,7,FALSE) ->  | X137: =VLOOKUP(O137,MapPointConfig!$B$833:$H$1732,7,FALSE) ->  | Y137: =VLOOKUP(P137,MapPointConfig!$B$833:$H$1732,7,FALSE) ->  | Z137: =VLOOKUP(Q137,MapPointConfig!$B$833:$H$1732,7,FALSE) ->  | AA137: =VLOOKUP(R137,MapPointConfig!$B$833:$H$1732,7,FALSE) -> 
A138: 2138001#100 | B138: 2138002#100 | C138: 2138003#100 | D138: 2138004#100 | E138: 2138005#100 | F138: 2138006#100 | G138: 2138007#100 | H138: 2138008#100 | K138: 2138001 | L138: 2138002 | M138: 2138003 | N138: 2138004 | O138: 2138005 | P138: 2138006 | Q138: 2138007 | R138: 2138008 | T138: =VLOOKUP(K138,MapPointConfig!$B$833:$H$1732,7,FALSE) ->  | U138: =VLOOKUP(L138,MapPointConfig!$B$833:$H$1732,7,FALSE) ->  | V138: =VLOOKUP(M138,MapPointConfig!$B$833:$H$1732,7,FALSE) ->  | W138: =VLOOKUP(N138,MapPointConfig!$B$833:$H$1732,7,FALSE) ->  | X138: =VLOOKUP(O138,MapPointConfig!$B$833:$H$1732,7,FALSE) ->  | Y138: =VLOOKUP(P138,MapPointConfig!$B$833:$H$1732,7,FALSE) ->  | Z138: =VLOOKUP(Q138,MapPointConfig!$B$833:$H$1732,7,FALSE) ->  | AA138: =VLOOKUP(R138,MapPointConfig!$B$833:$H$1732,7,FALSE) -> 
A139: 2139001#100 | B139: 2139002#100 | C139: 2139003#100 | D139: 2139004#100 | E139: 2139005#100 | F139: 2139006#100 | G139: 2139007#100 | H139: 2139008#100 | K139: 2139001 | L139: 2139002 | M139: 2139003 | N139: 2139004 | O139: 2139005 | P139: 2139006 | Q139: 2139007 | R139: 2139008 | T139: =VLOOKUP(K139,MapPointConfig!$B$833:$H$1732,7,FALSE) ->  | U139: =VLOOKUP(L139,MapPointConfig!$B$833:$H$1732,7,FALSE) ->  | V139: =VLOOKUP(M139,MapPointConfig!$B$833:$H$1732,7,FALSE) ->  | W139: =VLOOKUP(N139,MapPointConfig!$B$833:$H$1732,7,FALSE) ->  | X139: =VLOOKUP(O139,MapPointConfig!$B$833:$H$1732,7,FALSE) ->  | Y139: =VLOOKUP(P139,MapPointConfig!$B$833:$H$1732,7,FALSE) ->  | Z139: =VLOOKUP(Q139,MapPointConfig!$B$833:$H$1732,7,FALSE) ->  | AA139: =VLOOKUP(R139,MapPointConfig!$B$833:$H$1732,7,FALSE) -> 
A140: 2140001#100 | B140: 2140002#100 | C140: 2140003#100 | D140: 2140004#100 | E140: 2140005#100 | F140: 2140006#100 | G140: 2140007#100 | H140: 2140008#100 | K140: 2140001 | L140: 2140002 | M140: 2140003 | N140: 2140004 | O140: 2140005 | P140: 2140006 | Q140: 2140007 | R140: 2140008 | T140: =VLOOKUP(K140,MapPointConfig!$B$833:$H$1732,7,FALSE) ->  | U140: =VLOOKUP(L140,MapPointConfig!$B$833:$H$1732,7,FALSE) ->  | V140: =VLOOKUP(M140,MapPointConfig!$B$833:$H$1732,7,FALSE) ->  | W140: =VLOOKUP(N140,MapPointConfig!$B$833:$H$1732,7,FALSE) ->  | X140: =VLOOKUP(O140,MapPointConfig!$B$833:$H$1732,7,FALSE) ->  | Y140: =VLOOKUP(P140,MapPointConfig!$B$833:$H$1732,7,FALSE) ->  | Z140: =VLOOKUP(Q140,MapPointConfig!$B$833:$H$1732,7,FALSE) ->  | AA140: =VLOOKUP(R140,MapPointConfig!$B$833:$H$1732,7,FALSE) -> 
A141: 2141001#100 | B141: 2141002#100 | C141: 2141003#100 | D141: 2141004#100 | E141: 2141005#100 | F141: 2141006#100 | G141: 2141007#100 | H141: 2141008#100 | K141: 2141001 | L141: 2141002 | M141: 2141003 | N141: 2141004 | O141: 2141005 | P141: 2141006 | Q141: 2141007 | R141: 2141008 | T141: =VLOOKUP(K141,MapPointConfig!$B$833:$H$1732,7,FALSE) ->  | U141: =VLOOKUP(L141,MapPointConfig!$B$833:$H$1732,7,FALSE) ->  | V141: =VLOOKUP(M141,MapPointConfig!$B$833:$H$1732,7,FALSE) ->  | W141: =VLOOKUP(N141,MapPointConfig!$B$833:$H$1732,7,FALSE) ->  | X141: =VLOOKUP(O141,MapPointConfig!$B$833:$H$1732,7,FALSE) ->  | Y141: =VLOOKUP(P141,MapPointConfig!$B$833:$H$1732,7,FALSE) ->  | Z141: =VLOOKUP(Q141,MapPointConfig!$B$833:$H$1732,7,FALSE) ->  | AA141: =VLOOKUP(R141,MapPointConfig!$B$833:$H$1732,7,FALSE) -> 
A142: 2142001#100 | B142: 2142002#100 | C142: 2142003#100 | D142: 2142004#100 | E142: 2142005#100 | F142: 2142006#100 | G142: 2142007#100 | H142: 2142008#100 | K142: 2142001 | L142: 2142002 | M142: 2142003 | N142: 2142004 | O142: 2142005 | P142: 2142006 | Q142: 2142007 | R142: 2142008 | T142: =VLOOKUP(K142,MapPointConfig!$B$833:$H$1732,7,FALSE) ->  | U142: =VLOOKUP(L142,MapPointConfig!$B$833:$H$1732,7,FALSE) ->  | V142: =VLOOKUP(M142,MapPointConfig!$B$833:$H$1732,7,FALSE) ->  | W142: =VLOOKUP(N142,MapPointConfig!$B$833:$H$1732,7,FALSE) ->  | X142: =VLOOKUP(O142,MapPointConfig!$B$833:$H$1732,7,FALSE) ->  | Y142: =VLOOKUP(P142,MapPointConfig!$B$833:$H$1732,7,FALSE) ->  | Z142: =VLOOKUP(Q142,MapPointConfig!$B$833:$H$1732,7,FALSE) ->  | AA142: =VLOOKUP(R142,MapPointConfig!$B$833:$H$1732,7,FALSE) -> 
A143: 2143001#100 | B143: 2143002#100 | C143: 2143003#100 | D143: 2143004#100 | E143: 2143005#100 | F143: 2143006#100 | G143: 2143007#100 | H143: 2143008#100 | K143: 2143001 | L143: 2143002 | M143: 2143003 | N143: 2143004 | O143: 2143005 | P143: 2143006 | Q143: 2143007 | R143: 2143008 | T143: =VLOOKUP(K143,MapPointConfig!$B$833:$H$1732,7,FALSE) ->  | U143: =VLOOKUP(L143,MapPointConfig!$B$833:$H$1732,7,FALSE) ->  | V143: =VLOOKUP(M143,MapPointConfig!$B$833:$H$1732,7,FALSE) ->  | W143: =VLOOKUP(N143,MapPointConfig!$B$833:$H$1732,7,FALSE) ->  | X143: =VLOOKUP(O143,MapPointConfig!$B$833:$H$1732,7,FALSE) ->  | Y143: =VLOOKUP(P143,MapPointConfig!$B$833:$H$1732,7,FALSE) ->  | Z143: =VLOOKUP(Q143,MapPointConfig!$B$833:$H$1732,7,FALSE) ->  | AA143: =VLOOKUP(R143,MapPointConfig!$B$833:$H$1732,7,FALSE) -> 
A144: 2144001#100 | B144: 2144002#100 | C144: 2144003#100 | D144: 2144004#100 | E144: 2144005#100 | F144: 2144006#100 | G144: 2144007#100 | H144: 2144008#100 | K144: 2144001 | L144: 2144002 | M144: 2144003 | N144: 2144004 | O144: 2144005 | P144: 2144006 | Q144: 2144007 | R144: 2144008 | T144: =VLOOKUP(K144,MapPointConfig!$B$833:$H$1732,7,FALSE) ->  | U144: =VLOOKUP(L144,MapPointConfig!$B$833:$H$1732,7,FALSE) ->  | V144: =VLOOKUP(M144,MapPointConfig!$B$833:$H$1732,7,FALSE) ->  | W144: =VLOOKUP(N144,MapPointConfig!$B$833:$H$1732,7,FALSE) ->  | X144: =VLOOKUP(O144,MapPointConfig!$B$833:$H$1732,7,FALSE) ->  | Y144: =VLOOKUP(P144,MapPointConfig!$B$833:$H$1732,7,FALSE) ->  | Z144: =VLOOKUP(Q144,MapPointConfig!$B$833:$H$1732,7,FALSE) ->  | AA144: =VLOOKUP(R144,MapPointConfig!$B$833:$H$1732,7,FALSE) -> 
A145: 2145001#100 | B145: 2145002#100 | C145: 2145003#100 | D145: 2145004#100 | E145: 2145005#100 | F145: 2145006#100 | G145: 2145007#100 | H145: 2145008#100 | K145: 2145001 | L145: 2145002 | M145: 2145003 | N145: 2145004 | O145: 2145005 | P145: 2145006 | Q145: 2145007 | R145: 2145008 | T145: =VLOOKUP(K145,MapPointConfig!$B$833:$H$1732,7,FALSE) ->  | U145: =VLOOKUP(L145,MapPointConfig!$B$833:$H$1732,7,FALSE) ->  | V145: =VLOOKUP(M145,MapPointConfig!$B$833:$H$1732,7,FALSE) ->  | W145: =VLOOKUP(N145,MapPointConfig!$B$833:$H$1732,7,FALSE) ->  | X145: =VLOOKUP(O145,MapPointConfig!$B$833:$H$1732,7,FALSE) ->  | Y145: =VLOOKUP(P145,MapPointConfig!$B$833:$H$1732,7,FALSE) ->  | Z145: =VLOOKUP(Q145,MapPointConfig!$B$833:$H$1732,7,FALSE) ->  | AA145: =VLOOKUP(R145,MapPointConfig!$B$833:$H$1732,7,FALSE) -> 
A146: 2146001#100 | B146: 2146002#100 | C146: 2146003#100 | D146: 2146004#100 | E146: 2146005#100 | F146: 2146006#100 | G146: 2146007#100 | H146: 2146008#100 | K146: 2146001 | L146: 2146002 | M146: 2146003 | N146: 2146004 | O146: 2146005 | P146: 2146006 | Q146: 2146007 | R146: 2146008 | T146: =VLOOKUP(K146,MapPointConfig!$B$833:$H$1732,7,FALSE) ->  | U146: =VLOOKUP(L146,MapPointConfig!$B$833:$H$1732,7,FALSE) ->  | V146: =VLOOKUP(M146,MapPointConfig!$B$833:$H$1732,7,FALSE) ->  | W146: =VLOOKUP(N146,MapPointConfig!$B$833:$H$1732,7,FALSE) ->  | X146: =VLOOKUP(O146,MapPointConfig!$B$833:$H$1732,7,FALSE) ->  | Y146: =VLOOKUP(P146,MapPointConfig!$B$833:$H$1732,7,FALSE) ->  | Z146: =VLOOKUP(Q146,MapPointConfig!$B$833:$H$1732,7,FALSE) ->  | AA146: =VLOOKUP(R146,MapPointConfig!$B$833:$H$1732,7,FALSE) -> 
A147: 2147001#100 | B147: 2147002#100 | C147: 2147003#100 | D147: 2147004#100 | E147: 2147005#100 | F147: 2147006#100 | G147: 2147007#100 | H147: 2147008#100 | K147: 2147001 | L147: 2147002 | M147: 2147003 | N147: 2147004 | O147: 2147005 | P147: 2147006 | Q147: 2147007 | R147: 2147008 | T147: =VLOOKUP(K147,MapPointConfig!$B$833:$H$1732,7,FALSE) ->  | U147: =VLOOKUP(L147,MapPointConfig!$B$833:$H$1732,7,FALSE) ->  | V147: =VLOOKUP(M147,MapPointConfig!$B$833:$H$1732,7,FALSE) ->  | W147: =VLOOKUP(N147,MapPointConfig!$B$833:$H$1732,7,FALSE) ->  | X147: =VLOOKUP(O147,MapPointConfig!$B$833:$H$1732,7,FALSE) ->  | Y147: =VLOOKUP(P147,MapPointConfig!$B$833:$H$1732,7,FALSE) ->  | Z147: =VLOOKUP(Q147,MapPointConfig!$B$833:$H$1732,7,FALSE) ->  | AA147: =VLOOKUP(R147,MapPointConfig!$B$833:$H$1732,7,FALSE) -> 
A148: 2148001#100 | B148: 2148002#100 | C148: 2148003#100 | D148: 2148004#100 | E148: 2148005#100 | F148: 2148006#100 | G148: 2148007#100 | H148: 2148008#100 | K148: 2148001 | L148: 2148002 | M148: 2148003 | N148: 2148004 | O148: 2148005 | P148: 2148006 | Q148: 2148007 | R148: 2148008 | T148: =VLOOKUP(K148,MapPointConfig!$B$833:$H$1732,7,FALSE) ->  | U148: =VLOOKUP(L148,MapPointConfig!$B$833:$H$1732,7,FALSE) ->  | V148: =VLOOKUP(M148,MapPointConfig!$B$833:$H$1732,7,FALSE) ->  | W148: =VLOOKUP(N148,MapPointConfig!$B$833:$H$1732,7,FALSE) ->  | X148: =VLOOKUP(O148,MapPointConfig!$B$833:$H$1732,7,FALSE) ->  | Y148: =VLOOKUP(P148,MapPointConfig!$B$833:$H$1732,7,FALSE) ->  | Z148: =VLOOKUP(Q148,MapPointConfig!$B$833:$H$1732,7,FALSE) ->  | AA148: =VLOOKUP(R148,MapPointConfig!$B$833:$H$1732,7,FALSE) -> 
A149: 2149001#100 | B149: 2149002#100 | C149: 2149003#100 | D149: 2149004#100 | E149: 2149005#100 | F149: 2149006#100 | G149: 2149007#100 | H149: 2149008#100 | K149: 2149001 | L149: 2149002 | M149: 2149003 | N149: 2149004 | O149: 2149005 | P149: 2149006 | Q149: 2149007 | R149: 2149008 | T149: =VLOOKUP(K149,MapPointConfig!$B$833:$H$1732,7,FALSE) ->  | U149: =VLOOKUP(L149,MapPointConfig!$B$833:$H$1732,7,FALSE) ->  | V149: =VLOOKUP(M149,MapPointConfig!$B$833:$H$1732,7,FALSE) ->  | W149: =VLOOKUP(N149,MapPointConfig!$B$833:$H$1732,7,FALSE) ->  | X149: =VLOOKUP(O149,MapPointConfig!$B$833:$H$1732,7,FALSE) ->  | Y149: =VLOOKUP(P149,MapPointConfig!$B$833:$H$1732,7,FALSE) ->  | Z149: =VLOOKUP(Q149,MapPointConfig!$B$833:$H$1732,7,FALSE) ->  | AA149: =VLOOKUP(R149,MapPointConfig!$B$833:$H$1732,7,FALSE) -> 
A150: 2150001#100 | B150: 2150002#100 | C150: 2150003#100 | D150: 2150004#100 | E150: 2150005#100 | F150: 2150006#100 | G150: 2150007#100 | H150: 2150008#100 | K150: 2150001 | L150: 2150002 | M150: 2150003 | N150: 2150004 | O150: 2150005 | P150: 2150006 | Q150: 2150007 | R150: 2150008 | T150: =VLOOKUP(K150,MapPointConfig!$B$833:$H$1732,7,FALSE) ->  | U150: =VLOOKUP(L150,MapPointConfig!$B$833:$H$1732,7,FALSE) ->  | V150: =VLOOKUP(M150,MapPointConfig!$B$833:$H$1732,7,FALSE) ->  | W150: =VLOOKUP(N150,MapPointConfig!$B$833:$H$1732,7,FALSE) ->  | X150: =VLOOKUP(O150,MapPointConfig!$B$833:$H$1732,7,FALSE) ->  | Y150: =VLOOKUP(P150,MapPointConfig!$B$833:$H$1732,7,FALSE) ->  | Z150: =VLOOKUP(Q150,MapPointConfig!$B$833:$H$1732,7,FALSE) ->  | AA150: =VLOOKUP(R150,MapPointConfig!$B$833:$H$1732,7,FALSE) -> 
A151: 2151001#100 | B151: 2151002#100 | C151: 2151003#100 | D151: 2151004#100 | E151: 2151005#100 | F151: 2151006#100 | G151: 2151007#100 | H151: 2151008#100 | K151: 2151001 | L151: 2151002 | M151: 2151003 | N151: 2151004 | O151: 2151005 | P151: 2151006 | Q151: 2151007 | R151: 2151008 | T151: =VLOOKUP(K151,MapPointConfig!$B$833:$H$1732,7,FALSE) ->  | U151: =VLOOKUP(L151,MapPointConfig!$B$833:$H$1732,7,FALSE) ->  | V151: =VLOOKUP(M151,MapPointConfig!$B$833:$H$1732,7,FALSE) ->  | W151: =VLOOKUP(N151,MapPointConfig!$B$833:$H$1732,7,FALSE) ->  | X151: =VLOOKUP(O151,MapPointConfig!$B$833:$H$1732,7,FALSE) ->  | Y151: =VLOOKUP(P151,MapPointConfig!$B$833:$H$1732,7,FALSE) ->  | Z151: =VLOOKUP(Q151,MapPointConfig!$B$833:$H$1732,7,FALSE) ->  | AA151: =VLOOKUP(R151,MapPointConfig!$B$833:$H$1732,7,FALSE) -> 
A152: 2152001#100 | B152: 2152002#100 | C152: 2152003#100 | D152: 2152004#100 | E152: 2152005#100 | F152: 2152006#100 | G152: 2152007#100 | H152: 2152008#100 | K152: 2152001 | L152: 2152002 | M152: 2152003 | N152: 2152004 | O152: 2152005 | P152: 2152006 | Q152: 2152007 | R152: 2152008 | T152: =VLOOKUP(K152,MapPointConfig!$B$833:$H$1732,7,FALSE) ->  | U152: =VLOOKUP(L152,MapPointConfig!$B$833:$H$1732,7,FALSE) ->  | V152: =VLOOKUP(M152,MapPointConfig!$B$833:$H$1732,7,FALSE) ->  | W152: =VLOOKUP(N152,MapPointConfig!$B$833:$H$1732,7,FALSE) ->  | X152: =VLOOKUP(O152,MapPointConfig!$B$833:$H$1732,7,FALSE) ->  | Y152: =VLOOKUP(P152,MapPointConfig!$B$833:$H$1732,7,FALSE) ->  | Z152: =VLOOKUP(Q152,MapPointConfig!$B$833:$H$1732,7,FALSE) ->  | AA152: =VLOOKUP(R152,MapPointConfig!$B$833:$H$1732,7,FALSE) -> 
A153: 2153001#100 | B153: 2153002#100 | C153: 2153003#100 | D153: 2153004#100 | E153: 2153005#100 | F153: 2153006#100 | G153: 2153007#100 | H153: 2153008#100 | K153: 2153001 | L153: 2153002 | M153: 2153003 | N153: 2153004 | O153: 2153005 | P153: 2153006 | Q153: 2153007 | R153: 2153008 | T153: =VLOOKUP(K153,MapPointConfig!$B$833:$H$1732,7,FALSE) ->  | U153: =VLOOKUP(L153,MapPointConfig!$B$833:$H$1732,7,FALSE) ->  | V153: =VLOOKUP(M153,MapPointConfig!$B$833:$H$1732,7,FALSE) ->  | W153: =VLOOKUP(N153,MapPointConfig!$B$833:$H$1732,7,FALSE) ->  | X153: =VLOOKUP(O153,MapPointConfig!$B$833:$H$1732,7,FALSE) ->  | Y153: =VLOOKUP(P153,MapPointConfig!$B$833:$H$1732,7,FALSE) ->  | Z153: =VLOOKUP(Q153,MapPointConfig!$B$833:$H$1732,7,FALSE) ->  | AA153: =VLOOKUP(R153,MapPointConfig!$B$833:$H$1732,7,FALSE) -> 
A154: 2154001#100 | B154: 2154002#100 | C154: 2154003#100 | D154: 2154004#100 | E154: 2154005#100 | F154: 2154006#100 | G154: 2154007#100 | H154: 2154008#100 | K154: 2154001 | L154: 2154002 | M154: 2154003 | N154: 2154004 | O154: 2154005 | P154: 2154006 | Q154: 2154007 | R154: 2154008 | T154: =VLOOKUP(K154,MapPointConfig!$B$833:$H$1732,7,FALSE) ->  | U154: =VLOOKUP(L154,MapPointConfig!$B$833:$H$1732,7,FALSE) ->  | V154: =VLOOKUP(M154,MapPointConfig!$B$833:$H$1732,7,FALSE) ->  | W154: =VLOOKUP(N154,MapPointConfig!$B$833:$H$1732,7,FALSE) ->  | X154: =VLOOKUP(O154,MapPointConfig!$B$833:$H$1732,7,FALSE) ->  | Y154: =VLOOKUP(P154,MapPointConfig!$B$833:$H$1732,7,FALSE) ->  | Z154: =VLOOKUP(Q154,MapPointConfig!$B$833:$H$1732,7,FALSE) ->  | AA154: =VLOOKUP(R154,MapPointConfig!$B$833:$H$1732,7,FALSE) -> 
A155: 2155001#100 | B155: 2155002#100 | C155: 2155003#100 | D155: 2155004#100 | E155: 2155005#100 | F155: 2155006#100 | G155: 2155007#100 | H155: 2155008#100 | K155: 2155001 | L155: 2155002 | M155: 2155003 | N155: 2155004 | O155: 2155005 | P155: 2155006 | Q155: 2155007 | R155: 2155008 | T155: =VLOOKUP(K155,MapPointConfig!$B$833:$H$1732,7,FALSE) ->  | U155: =VLOOKUP(L155,MapPointConfig!$B$833:$H$1732,7,FALSE) ->  | V155: =VLOOKUP(M155,MapPointConfig!$B$833:$H$1732,7,FALSE) ->  | W155: =VLOOKUP(N155,MapPointConfig!$B$833:$H$1732,7,FALSE) ->  | X155: =VLOOKUP(O155,MapPointConfig!$B$833:$H$1732,7,FALSE) ->  | Y155: =VLOOKUP(P155,MapPointConfig!$B$833:$H$1732,7,FALSE) ->  | Z155: =VLOOKUP(Q155,MapPointConfig!$B$833:$H$1732,7,FALSE) ->  | AA155: =VLOOKUP(R155,MapPointConfig!$B$833:$H$1732,7,FALSE) -> 
A156: 2156001#100 | B156: 2156002#100 | C156: 2156003#100 | D156: 2156004#100 | E156: 2156005#100 | F156: 2156006#100 | G156: 2156007#100 | H156: 2156008#100 | K156: 2156001 | L156: 2156002 | M156: 2156003 | N156: 2156004 | O156: 2156005 | P156: 2156006 | Q156: 2156007 | R156: 2156008 | T156: =VLOOKUP(K156,MapPointConfig!$B$833:$H$1732,7,FALSE) ->  | U156: =VLOOKUP(L156,MapPointConfig!$B$833:$H$1732,7,FALSE) ->  | V156: =VLOOKUP(M156,MapPointConfig!$B$833:$H$1732,7,FALSE) ->  | W156: =VLOOKUP(N156,MapPointConfig!$B$833:$H$1732,7,FALSE) ->  | X156: =VLOOKUP(O156,MapPointConfig!$B$833:$H$1732,7,FALSE) ->  | Y156: =VLOOKUP(P156,MapPointConfig!$B$833:$H$1732,7,FALSE) ->  | Z156: =VLOOKUP(Q156,MapPointConfig!$B$833:$H$1732,7,FALSE) ->  | AA156: =VLOOKUP(R156,MapPointConfig!$B$833:$H$1732,7,FALSE) -> 
A157: 2157001#100 | B157: 2157002#100 | C157: 2157003#100 | D157: 2157004#100 | E157: 2157005#100 | F157: 2157006#100 | G157: 2157007#100 | H157: 2157008#100 | K157: 2157001 | L157: 2157002 | M157: 2157003 | N157: 2157004 | O157: 2157005 | P157: 2157006 | Q157: 2157007 | R157: 2157008 | T157: =VLOOKUP(K157,MapPointConfig!$B$833:$H$1732,7,FALSE) ->  | U157: =VLOOKUP(L157,MapPointConfig!$B$833:$H$1732,7,FALSE) ->  | V157: =VLOOKUP(M157,MapPointConfig!$B$833:$H$1732,7,FALSE) ->  | W157: =VLOOKUP(N157,MapPointConfig!$B$833:$H$1732,7,FALSE) ->  | X157: =VLOOKUP(O157,MapPointConfig!$B$833:$H$1732,7,FALSE) ->  | Y157: =VLOOKUP(P157,MapPointConfig!$B$833:$H$1732,7,FALSE) ->  | Z157: =VLOOKUP(Q157,MapPointConfig!$B$833:$H$1732,7,FALSE) ->  | AA157: =VLOOKUP(R157,MapPointConfig!$B$833:$H$1732,7,FALSE) -> 
A158: 2158001#100 | B158: 2158002#100 | C158: 2158003#100 | D158: 2158004#100 | E158: 2158005#100 | F158: 2158006#100 | G158: 2158007#100 | H158: 2158008#100 | K158: 2158001 | L158: 2158002 | M158: 2158003 | N158: 2158004 | O158: 2158005 | P158: 2158006 | Q158: 2158007 | R158: 2158008 | T158: =VLOOKUP(K158,MapPointConfig!$B$833:$H$1732,7,FALSE) ->  | U158: =VLOOKUP(L158,MapPointConfig!$B$833:$H$1732,7,FALSE) ->  | V158: =VLOOKUP(M158,MapPointConfig!$B$833:$H$1732,7,FALSE) ->  | W158: =VLOOKUP(N158,MapPointConfig!$B$833:$H$1732,7,FALSE) ->  | X158: =VLOOKUP(O158,MapPointConfig!$B$833:$H$1732,7,FALSE) ->  | Y158: =VLOOKUP(P158,MapPointConfig!$B$833:$H$1732,7,FALSE) ->  | Z158: =VLOOKUP(Q158,MapPointConfig!$B$833:$H$1732,7,FALSE) ->  | AA158: =VLOOKUP(R158,MapPointConfig!$B$833:$H$1732,7,FALSE) -> 
A159: 2159001#100 | B159: 2159002#100 | C159: 2159003#100 | D159: 2159004#100 | E159: 2159005#100 | F159: 2159006#100 | G159: 2159007#100 | H159: 2159008#100 | K159: 2159001 | L159: 2159002 | M159: 2159003 | N159: 2159004 | O159: 2159005 | P159: 2159006 | Q159: 2159007 | R159: 2159008 | T159: =VLOOKUP(K159,MapPointConfig!$B$833:$H$1732,7,FALSE) ->  | U159: =VLOOKUP(L159,MapPointConfig!$B$833:$H$1732,7,FALSE) ->  | V159: =VLOOKUP(M159,MapPointConfig!$B$833:$H$1732,7,FALSE) ->  | W159: =VLOOKUP(N159,MapPointConfig!$B$833:$H$1732,7,FALSE) ->  | X159: =VLOOKUP(O159,MapPointConfig!$B$833:$H$1732,7,FALSE) ->  | Y159: =VLOOKUP(P159,MapPointConfig!$B$833:$H$1732,7,FALSE) ->  | Z159: =VLOOKUP(Q159,MapPointConfig!$B$833:$H$1732,7,FALSE) ->  | AA159: =VLOOKUP(R159,MapPointConfig!$B$833:$H$1732,7,FALSE) -> 
A160: 2160001#100 | B160: 2160002#100 | C160: 2160003#100 | D160: 2160004#100 | E160: 2160005#100 | F160: 2160006#100 | G160: 2160007#100 | H160: 2160008#100 | K160: 2160001 | L160: 2160002 | M160: 2160003 | N160: 2160004 | O160: 2160005 | P160: 2160006 | Q160: 2160007 | R160: 2160008 | T160: =VLOOKUP(K160,MapPointConfig!$B$833:$H$1732,7,FALSE) ->  | U160: =VLOOKUP(L160,MapPointConfig!$B$833:$H$1732,7,FALSE) ->  | V160: =VLOOKUP(M160,MapPointConfig!$B$833:$H$1732,7,FALSE) ->  | W160: =VLOOKUP(N160,MapPointConfig!$B$833:$H$1732,7,FALSE) ->  | X160: =VLOOKUP(O160,MapPointConfig!$B$833:$H$1732,7,FALSE) ->  | Y160: =VLOOKUP(P160,MapPointConfig!$B$833:$H$1732,7,FALSE) ->  | Z160: =VLOOKUP(Q160,MapPointConfig!$B$833:$H$1732,7,FALSE) ->  | AA160: =VLOOKUP(R160,MapPointConfig!$B$833:$H$1732,7,FALSE) -> 
A161: 2161001#100 | B161: 2161002#100 | C161: 2161003#100 | D161: 2161004#100 | E161: 2161005#100 | F161: 2161006#100 | G161: 2161007#100 | H161: 2161008#100 | K161: 2161001 | L161: 2161002 | M161: 2161003 | N161: 2161004 | O161: 2161005 | P161: 2161006 | Q161: 2161007 | R161: 2161008 | T161: =VLOOKUP(K161,MapPointConfig!$B$833:$H$1732,7,FALSE) ->  | U161: =VLOOKUP(L161,MapPointConfig!$B$833:$H$1732,7,FALSE) ->  | V161: =VLOOKUP(M161,MapPointConfig!$B$833:$H$1732,7,FALSE) ->  | W161: =VLOOKUP(N161,MapPointConfig!$B$833:$H$1732,7,FALSE) ->  | X161: =VLOOKUP(O161,MapPointConfig!$B$833:$H$1732,7,FALSE) ->  | Y161: =VLOOKUP(P161,MapPointConfig!$B$833:$H$1732,7,FALSE) ->  | Z161: =VLOOKUP(Q161,MapPointConfig!$B$833:$H$1732,7,FALSE) ->  | AA161: =VLOOKUP(R161,MapPointConfig!$B$833:$H$1732,7,FALSE) -> 
A162: 2162001#100 | B162: 2162002#100 | C162: 2162003#100 | D162: 2162004#100 | E162: 2162005#100 | F162: 2162006#100 | G162: 2162007#100 | H162: 2162008#100 | K162: 2162001 | L162: 2162002 | M162: 2162003 | N162: 2162004 | O162: 2162005 | P162: 2162006 | Q162: 2162007 | R162: 2162008 | T162: =VLOOKUP(K162,MapPointConfig!$B$833:$H$1732,7,FALSE) ->  | U162: =VLOOKUP(L162,MapPointConfig!$B$833:$H$1732,7,FALSE) ->  | V162: =VLOOKUP(M162,MapPointConfig!$B$833:$H$1732,7,FALSE) ->  | W162: =VLOOKUP(N162,MapPointConfig!$B$833:$H$1732,7,FALSE) ->  | X162: =VLOOKUP(O162,MapPointConfig!$B$833:$H$1732,7,FALSE) ->  | Y162: =VLOOKUP(P162,MapPointConfig!$B$833:$H$1732,7,FALSE) ->  | Z162: =VLOOKUP(Q162,MapPointConfig!$B$833:$H$1732,7,FALSE) ->  | AA162: =VLOOKUP(R162,MapPointConfig!$B$833:$H$1732,7,FALSE) -> 
A163: 2163001#100 | B163: 2163002#100 | C163: 2163003#100 | D163: 2163004#100 | E163: 2163005#100 | F163: 2163006#100 | G163: 2163007#100 | H163: 2163008#100 | K163: 2163001 | L163: 2163002 | M163: 2163003 | N163: 2163004 | O163: 2163005 | P163: 2163006 | Q163: 2163007 | R163: 2163008 | T163: =VLOOKUP(K163,MapPointConfig!$B$833:$H$1732,7,FALSE) ->  | U163: =VLOOKUP(L163,MapPointConfig!$B$833:$H$1732,7,FALSE) ->  | V163: =VLOOKUP(M163,MapPointConfig!$B$833:$H$1732,7,FALSE) ->  | W163: =VLOOKUP(N163,MapPointConfig!$B$833:$H$1732,7,FALSE) ->  | X163: =VLOOKUP(O163,MapPointConfig!$B$833:$H$1732,7,FALSE) ->  | Y163: =VLOOKUP(P163,MapPointConfig!$B$833:$H$1732,7,FALSE) ->  | Z163: =VLOOKUP(Q163,MapPointConfig!$B$833:$H$1732,7,FALSE) ->  | AA163: =VLOOKUP(R163,MapPointConfig!$B$833:$H$1732,7,FALSE) -> 
A164: 2164001#100 | B164: 2164002#100 | C164: 2164003#100 | D164: 2164004#100 | E164: 2164005#100 | F164: 2164006#100 | G164: 2164007#100 | H164: 2164008#100 | K164: 2164001 | L164: 2164002 | M164: 2164003 | N164: 2164004 | O164: 2164005 | P164: 2164006 | Q164: 2164007 | R164: 2164008 | T164: =VLOOKUP(K164,MapPointConfig!$B$833:$H$1732,7,FALSE) ->  | U164: =VLOOKUP(L164,MapPointConfig!$B$833:$H$1732,7,FALSE) ->  | V164: =VLOOKUP(M164,MapPointConfig!$B$833:$H$1732,7,FALSE) ->  | W164: =VLOOKUP(N164,MapPointConfig!$B$833:$H$1732,7,FALSE) ->  | X164: =VLOOKUP(O164,MapPointConfig!$B$833:$H$1732,7,FALSE) ->  | Y164: =VLOOKUP(P164,MapPointConfig!$B$833:$H$1732,7,FALSE) ->  | Z164: =VLOOKUP(Q164,MapPointConfig!$B$833:$H$1732,7,FALSE) ->  | AA164: =VLOOKUP(R164,MapPointConfig!$B$833:$H$1732,7,FALSE) -> 
A165: 2165001#100 | B165: 2165002#100 | C165: 2165003#100 | D165: 2165004#100 | E165: 2165005#100 | F165: 2165006#100 | G165: 2165007#100 | H165: 2165008#100 | K165: 2165001 | L165: 2165002 | M165: 2165003 | N165: 2165004 | O165: 2165005 | P165: 2165006 | Q165: 2165007 | R165: 2165008 | T165: =VLOOKUP(K165,MapPointConfig!$B$833:$H$1732,7,FALSE) ->  | U165: =VLOOKUP(L165,MapPointConfig!$B$833:$H$1732,7,FALSE) ->  | V165: =VLOOKUP(M165,MapPointConfig!$B$833:$H$1732,7,FALSE) ->  | W165: =VLOOKUP(N165,MapPointConfig!$B$833:$H$1732,7,FALSE) ->  | X165: =VLOOKUP(O165,MapPointConfig!$B$833:$H$1732,7,FALSE) ->  | Y165: =VLOOKUP(P165,MapPointConfig!$B$833:$H$1732,7,FALSE) ->  | Z165: =VLOOKUP(Q165,MapPointConfig!$B$833:$H$1732,7,FALSE) ->  | AA165: =VLOOKUP(R165,MapPointConfig!$B$833:$H$1732,7,FALSE) -> 
A166: 2166001#100 | B166: 2166002#100 | C166: 2166003#100 | D166: 2166004#100 | E166: 2166005#100 | F166: 2166006#100 | G166: 2166007#100 | H166: 2166008#100 | K166: 2166001 | L166: 2166002 | M166: 2166003 | N166: 2166004 | O166: 2166005 | P166: 2166006 | Q166: 2166007 | R166: 2166008 | T166: =VLOOKUP(K166,MapPointConfig!$B$833:$H$1732,7,FALSE) ->  | U166: =VLOOKUP(L166,MapPointConfig!$B$833:$H$1732,7,FALSE) ->  | V166: =VLOOKUP(M166,MapPointConfig!$B$833:$H$1732,7,FALSE) ->  | W166: =VLOOKUP(N166,MapPointConfig!$B$833:$H$1732,7,FALSE) ->  | X166: =VLOOKUP(O166,MapPointConfig!$B$833:$H$1732,7,FALSE) ->  | Y166: =VLOOKUP(P166,MapPointConfig!$B$833:$H$1732,7,FALSE) ->  | Z166: =VLOOKUP(Q166,MapPointConfig!$B$833:$H$1732,7,FALSE) ->  | AA166: =VLOOKUP(R166,MapPointConfig!$B$833:$H$1732,7,FALSE) -> 
A167: 2167001#100 | B167: 2167002#100 | C167: 2167003#100 | D167: 2167004#100 | E167: 2167005#100 | F167: 2167006#100 | G167: 2167007#100 | H167: 2167008#100 | K167: 2167001 | L167: 2167002 | M167: 2167003 | N167: 2167004 | O167: 2167005 | P167: 2167006 | Q167: 2167007 | R167: 2167008 | T167: =VLOOKUP(K167,MapPointConfig!$B$833:$H$1732,7,FALSE) ->  | U167: =VLOOKUP(L167,MapPointConfig!$B$833:$H$1732,7,FALSE) ->  | V167: =VLOOKUP(M167,MapPointConfig!$B$833:$H$1732,7,FALSE) ->  | W167: =VLOOKUP(N167,MapPointConfig!$B$833:$H$1732,7,FALSE) ->  | X167: =VLOOKUP(O167,MapPointConfig!$B$833:$H$1732,7,FALSE) ->  | Y167: =VLOOKUP(P167,MapPointConfig!$B$833:$H$1732,7,FALSE) ->  | Z167: =VLOOKUP(Q167,MapPointConfig!$B$833:$H$1732,7,FALSE) ->  | AA167: =VLOOKUP(R167,MapPointConfig!$B$833:$H$1732,7,FALSE) -> 
A168: 2168001#100 | B168: 2168002#100 | C168: 2168003#100 | D168: 2168004#100 | E168: 2168005#100 | F168: 2168006#100 | G168: 2168007#100 | H168: 2168008#100 | K168: 2168001 | L168: 2168002 | M168: 2168003 | N168: 2168004 | O168: 2168005 | P168: 2168006 | Q168: 2168007 | R168: 2168008 | T168: =VLOOKUP(K168,MapPointConfig!$B$833:$H$1732,7,FALSE) ->  | U168: =VLOOKUP(L168,MapPointConfig!$B$833:$H$1732,7,FALSE) ->  | V168: =VLOOKUP(M168,MapPointConfig!$B$833:$H$1732,7,FALSE) ->  | W168: =VLOOKUP(N168,MapPointConfig!$B$833:$H$1732,7,FALSE) ->  | X168: =VLOOKUP(O168,MapPointConfig!$B$833:$H$1732,7,FALSE) ->  | Y168: =VLOOKUP(P168,MapPointConfig!$B$833:$H$1732,7,FALSE) ->  | Z168: =VLOOKUP(Q168,MapPointConfig!$B$833:$H$1732,7,FALSE) ->  | AA168: =VLOOKUP(R168,MapPointConfig!$B$833:$H$1732,7,FALSE) -> 
A169: 2169001#100 | B169: 2169002#100 | C169: 2169003#100 | D169: 2169004#100 | E169: 2169005#100 | F169: 2169006#100 | G169: 2169007#100 | H169: 2169008#100 | K169: 2169001 | L169: 2169002 | M169: 2169003 | N169: 2169004 | O169: 2169005 | P169: 2169006 | Q169: 2169007 | R169: 2169008 | T169: =VLOOKUP(K169,MapPointConfig!$B$833:$H$1732,7,FALSE) ->  | U169: =VLOOKUP(L169,MapPointConfig!$B$833:$H$1732,7,FALSE) ->  | V169: =VLOOKUP(M169,MapPointConfig!$B$833:$H$1732,7,FALSE) ->  | W169: =VLOOKUP(N169,MapPointConfig!$B$833:$H$1732,7,FALSE) ->  | X169: =VLOOKUP(O169,MapPointConfig!$B$833:$H$1732,7,FALSE) ->  | Y169: =VLOOKUP(P169,MapPointConfig!$B$833:$H$1732,7,FALSE) ->  | Z169: =VLOOKUP(Q169,MapPointConfig!$B$833:$H$1732,7,FALSE) ->  | AA169: =VLOOKUP(R169,MapPointConfig!$B$833:$H$1732,7,FALSE) -> 
A170: 2170001#100 | B170: 2170002#100 | C170: 2170003#100 | D170: 2170004#100 | E170: 2170005#100 | F170: 2170006#100 | G170: 2170007#100 | H170: 2170008#100 | K170: 2170001 | L170: 2170002 | M170: 2170003 | N170: 2170004 | O170: 2170005 | P170: 2170006 | Q170: 2170007 | R170: 2170008 | T170: =VLOOKUP(K170,MapPointConfig!$B$833:$H$1732,7,FALSE) ->  | U170: =VLOOKUP(L170,MapPointConfig!$B$833:$H$1732,7,FALSE) ->  | V170: =VLOOKUP(M170,MapPointConfig!$B$833:$H$1732,7,FALSE) ->  | W170: =VLOOKUP(N170,MapPointConfig!$B$833:$H$1732,7,FALSE) ->  | X170: =VLOOKUP(O170,MapPointConfig!$B$833:$H$1732,7,FALSE) ->  | Y170: =VLOOKUP(P170,MapPointConfig!$B$833:$H$1732,7,FALSE) ->  | Z170: =VLOOKUP(Q170,MapPointConfig!$B$833:$H$1732,7,FALSE) ->  | AA170: =VLOOKUP(R170,MapPointConfig!$B$833:$H$1732,7,FALSE) -> 
A171: 2171001#100 | B171: 2171002#100 | C171: 2171003#100 | D171: 2171004#100 | E171: 2171005#100 | F171: 2171006#100 | G171: 2171007#100 | H171: 2171008#100 | K171: 2171001 | L171: 2171002 | M171: 2171003 | N171: 2171004 | O171: 2171005 | P171: 2171006 | Q171: 2171007 | R171: 2171008 | T171: =VLOOKUP(K171,MapPointConfig!$B$833:$H$1732,7,FALSE) ->  | U171: =VLOOKUP(L171,MapPointConfig!$B$833:$H$1732,7,FALSE) ->  | V171: =VLOOKUP(M171,MapPointConfig!$B$833:$H$1732,7,FALSE) ->  | W171: =VLOOKUP(N171,MapPointConfig!$B$833:$H$1732,7,FALSE) ->  | X171: =VLOOKUP(O171,MapPointConfig!$B$833:$H$1732,7,FALSE) ->  | Y171: =VLOOKUP(P171,MapPointConfig!$B$833:$H$1732,7,FALSE) ->  | Z171: =VLOOKUP(Q171,MapPointConfig!$B$833:$H$1732,7,FALSE) ->  | AA171: =VLOOKUP(R171,MapPointConfig!$B$833:$H$1732,7,FALSE) -> 
A172: 2172001#100 | B172: 2172002#100 | C172: 2172003#100 | D172: 2172004#100 | E172: 2172005#100 | F172: 2172006#100 | G172: 2172007#100 | H172: 2172008#100 | K172: 2172001 | L172: 2172002 | M172: 2172003 | N172: 2172004 | O172: 2172005 | P172: 2172006 | Q172: 2172007 | R172: 2172008 | T172: =VLOOKUP(K172,MapPointConfig!$B$833:$H$1732,7,FALSE) ->  | U172: =VLOOKUP(L172,MapPointConfig!$B$833:$H$1732,7,FALSE) ->  | V172: =VLOOKUP(M172,MapPointConfig!$B$833:$H$1732,7,FALSE) ->  | W172: =VLOOKUP(N172,MapPointConfig!$B$833:$H$1732,7,FALSE) ->  | X172: =VLOOKUP(O172,MapPointConfig!$B$833:$H$1732,7,FALSE) ->  | Y172: =VLOOKUP(P172,MapPointConfig!$B$833:$H$1732,7,FALSE) ->  | Z172: =VLOOKUP(Q172,MapPointConfig!$B$833:$H$1732,7,FALSE) ->  | AA172: =VLOOKUP(R172,MapPointConfig!$B$833:$H$1732,7,FALSE) -> 
A173: 2173001#100 | B173: 2173002#100 | C173: 2173003#100 | D173: 2173004#100 | E173: 2173005#100 | F173: 2173006#100 | G173: 2173007#100 | H173: 2173008#100 | K173: 2173001 | L173: 2173002 | M173: 2173003 | N173: 2173004 | O173: 2173005 | P173: 2173006 | Q173: 2173007 | R173: 2173008 | T173: =VLOOKUP(K173,MapPointConfig!$B$833:$H$1732,7,FALSE) ->  | U173: =VLOOKUP(L173,MapPointConfig!$B$833:$H$1732,7,FALSE) ->  | V173: =VLOOKUP(M173,MapPointConfig!$B$833:$H$1732,7,FALSE) ->  | W173: =VLOOKUP(N173,MapPointConfig!$B$833:$H$1732,7,FALSE) ->  | X173: =VLOOKUP(O173,MapPointConfig!$B$833:$H$1732,7,FALSE) ->  | Y173: =VLOOKUP(P173,MapPointConfig!$B$833:$H$1732,7,FALSE) ->  | Z173: =VLOOKUP(Q173,MapPointConfig!$B$833:$H$1732,7,FALSE) ->  | AA173: =VLOOKUP(R173,MapPointConfig!$B$833:$H$1732,7,FALSE) -> 
A174: 2174001#100 | B174: 2174002#100 | C174: 2174003#100 | D174: 2174004#100 | E174: 2174005#100 | F174: 2174006#100 | G174: 2174007#100 | H174: 2174008#100 | K174: 2174001 | L174: 2174002 | M174: 2174003 | N174: 2174004 | O174: 2174005 | P174: 2174006 | Q174: 2174007 | R174: 2174008 | T174: =VLOOKUP(K174,MapPointConfig!$B$833:$H$1732,7,FALSE) ->  | U174: =VLOOKUP(L174,MapPointConfig!$B$833:$H$1732,7,FALSE) ->  | V174: =VLOOKUP(M174,MapPointConfig!$B$833:$H$1732,7,FALSE) ->  | W174: =VLOOKUP(N174,MapPointConfig!$B$833:$H$1732,7,FALSE) ->  | X174: =VLOOKUP(O174,MapPointConfig!$B$833:$H$1732,7,FALSE) ->  | Y174: =VLOOKUP(P174,MapPointConfig!$B$833:$H$1732,7,FALSE) ->  | Z174: =VLOOKUP(Q174,MapPointConfig!$B$833:$H$1732,7,FALSE) ->  | AA174: =VLOOKUP(R174,MapPointConfig!$B$833:$H$1732,7,FALSE) -> 
A175: 2175001#100 | B175: 2175002#100 | C175: 2175003#100 | D175: 2175004#100 | E175: 2175005#100 | F175: 2175006#100 | G175: 2175007#100 | H175: 2175008#100 | K175: 2175001 | L175: 2175002 | M175: 2175003 | N175: 2175004 | O175: 2175005 | P175: 2175006 | Q175: 2175007 | R175: 2175008 | T175: =VLOOKUP(K175,MapPointConfig!$B$833:$H$1732,7,FALSE) ->  | U175: =VLOOKUP(L175,MapPointConfig!$B$833:$H$1732,7,FALSE) ->  | V175: =VLOOKUP(M175,MapPointConfig!$B$833:$H$1732,7,FALSE) ->  | W175: =VLOOKUP(N175,MapPointConfig!$B$833:$H$1732,7,FALSE) ->  | X175: =VLOOKUP(O175,MapPointConfig!$B$833:$H$1732,7,FALSE) ->  | Y175: =VLOOKUP(P175,MapPointConfig!$B$833:$H$1732,7,FALSE) ->  | Z175: =VLOOKUP(Q175,MapPointConfig!$B$833:$H$1732,7,FALSE) ->  | AA175: =VLOOKUP(R175,MapPointConfig!$B$833:$H$1732,7,FALSE) -> 
A176: 2176001#100 | B176: 2176002#100 | C176: 2176003#100 | D176: 2176004#100 | E176: 2176005#100 | F176: 2176006#100 | G176: 2176007#100 | H176: 2176008#100 | K176: 2176001 | L176: 2176002 | M176: 2176003 | N176: 2176004 | O176: 2176005 | P176: 2176006 | Q176: 2176007 | R176: 2176008 | T176: =VLOOKUP(K176,MapPointConfig!$B$833:$H$1732,7,FALSE) ->  | U176: =VLOOKUP(L176,MapPointConfig!$B$833:$H$1732,7,FALSE) ->  | V176: =VLOOKUP(M176,MapPointConfig!$B$833:$H$1732,7,FALSE) ->  | W176: =VLOOKUP(N176,MapPointConfig!$B$833:$H$1732,7,FALSE) ->  | X176: =VLOOKUP(O176,MapPointConfig!$B$833:$H$1732,7,FALSE) ->  | Y176: =VLOOKUP(P176,MapPointConfig!$B$833:$H$1732,7,FALSE) ->  | Z176: =VLOOKUP(Q176,MapPointConfig!$B$833:$H$1732,7,FALSE) ->  | AA176: =VLOOKUP(R176,MapPointConfig!$B$833:$H$1732,7,FALSE) -> 
A177: 2177001#100 | B177: 2177002#100 | C177: 2177003#100 | D177: 2177004#100 | E177: 2177005#100 | F177: 2177006#100 | G177: 2177007#100 | H177: 2177008#100 | K177: 2177001 | L177: 2177002 | M177: 2177003 | N177: 2177004 | O177: 2177005 | P177: 2177006 | Q177: 2177007 | R177: 2177008 | T177: =VLOOKUP(K177,MapPointConfig!$B$833:$H$1732,7,FALSE) ->  | U177: =VLOOKUP(L177,MapPointConfig!$B$833:$H$1732,7,FALSE) ->  | V177: =VLOOKUP(M177,MapPointConfig!$B$833:$H$1732,7,FALSE) ->  | W177: =VLOOKUP(N177,MapPointConfig!$B$833:$H$1732,7,FALSE) ->  | X177: =VLOOKUP(O177,MapPointConfig!$B$833:$H$1732,7,FALSE) ->  | Y177: =VLOOKUP(P177,MapPointConfig!$B$833:$H$1732,7,FALSE) ->  | Z177: =VLOOKUP(Q177,MapPointConfig!$B$833:$H$1732,7,FALSE) ->  | AA177: =VLOOKUP(R177,MapPointConfig!$B$833:$H$1732,7,FALSE) -> 
A178: 2178001#100 | B178: 2178002#100 | C178: 2178003#100 | D178: 2178004#100 | E178: 2178005#100 | F178: 2178006#100 | G178: 2178007#100 | H178: 2178008#100 | K178: 2178001 | L178: 2178002 | M178: 2178003 | N178: 2178004 | O178: 2178005 | P178: 2178006 | Q178: 2178007 | R178: 2178008 | T178: =VLOOKUP(K178,MapPointConfig!$B$833:$H$1732,7,FALSE) ->  | U178: =VLOOKUP(L178,MapPointConfig!$B$833:$H$1732,7,FALSE) ->  | V178: =VLOOKUP(M178,MapPointConfig!$B$833:$H$1732,7,FALSE) ->  | W178: =VLOOKUP(N178,MapPointConfig!$B$833:$H$1732,7,FALSE) ->  | X178: =VLOOKUP(O178,MapPointConfig!$B$833:$H$1732,7,FALSE) ->  | Y178: =VLOOKUP(P178,MapPointConfig!$B$833:$H$1732,7,FALSE) ->  | Z178: =VLOOKUP(Q178,MapPointConfig!$B$833:$H$1732,7,FALSE) ->  | AA178: =VLOOKUP(R178,MapPointConfig!$B$833:$H$1732,7,FALSE) -> 
A179: 2179001#100 | B179: 2179002#100 | C179: 2179003#100 | D179: 2179004#100 | E179: 2179005#100 | F179: 2179006#100 | G179: 2179007#100 | H179: 2179008#100 | K179: 2179001 | L179: 2179002 | M179: 2179003 | N179: 2179004 | O179: 2179005 | P179: 2179006 | Q179: 2179007 | R179: 2179008 | T179: =VLOOKUP(K179,MapPointConfig!$B$833:$H$1732,7,FALSE) ->  | U179: =VLOOKUP(L179,MapPointConfig!$B$833:$H$1732,7,FALSE) ->  | V179: =VLOOKUP(M179,MapPointConfig!$B$833:$H$1732,7,FALSE) ->  | W179: =VLOOKUP(N179,MapPointConfig!$B$833:$H$1732,7,FALSE) ->  | X179: =VLOOKUP(O179,MapPointConfig!$B$833:$H$1732,7,FALSE) ->  | Y179: =VLOOKUP(P179,MapPointConfig!$B$833:$H$1732,7,FALSE) ->  | Z179: =VLOOKUP(Q179,MapPointConfig!$B$833:$H$1732,7,FALSE) ->  | AA179: =VLOOKUP(R179,MapPointConfig!$B$833:$H$1732,7,FALSE) -> 
A180: 2180001#100 | B180: 2180002#100 | C180: 2180003#100 | D180: 2180004#100 | E180: 2180005#100 | F180: 2180006#100 | G180: 2180007#100 | H180: 2180008#100 | K180: 2180001 | L180: 2180002 | M180: 2180003 | N180: 2180004 | O180: 2180005 | P180: 2180006 | Q180: 2180007 | R180: 2180008 | T180: =VLOOKUP(K180,MapPointConfig!$B$833:$H$1732,7,FALSE) ->  | U180: =VLOOKUP(L180,MapPointConfig!$B$833:$H$1732,7,FALSE) ->  | V180: =VLOOKUP(M180,MapPointConfig!$B$833:$H$1732,7,FALSE) ->  | W180: =VLOOKUP(N180,MapPointConfig!$B$833:$H$1732,7,FALSE) ->  | X180: =VLOOKUP(O180,MapPointConfig!$B$833:$H$1732,7,FALSE) ->  | Y180: =VLOOKUP(P180,MapPointConfig!$B$833:$H$1732,7,FALSE) ->  | Z180: =VLOOKUP(Q180,MapPointConfig!$B$833:$H$1732,7,FALSE) ->  | AA180: =VLOOKUP(R180,MapPointConfig!$B$833:$H$1732,7,FALSE) -> 
A181: 2181001#100 | B181: 2181002#100 | C181: 2181003#100 | D181: 2181004#100 | E181: 2181005#100 | F181: 2181006#100 | G181: 2181007#100 | H181: 2181008#100 | K181: 2181001 | L181: 2181002 | M181: 2181003 | N181: 2181004 | O181: 2181005 | P181: 2181006 | Q181: 2181007 | R181: 2181008 | T181: =VLOOKUP(K181,MapPointConfig!$B$833:$H$1732,7,FALSE) ->  | U181: =VLOOKUP(L181,MapPointConfig!$B$833:$H$1732,7,FALSE) ->  | V181: =VLOOKUP(M181,MapPointConfig!$B$833:$H$1732,7,FALSE) ->  | W181: =VLOOKUP(N181,MapPointConfig!$B$833:$H$1732,7,FALSE) ->  | X181: =VLOOKUP(O181,MapPointConfig!$B$833:$H$1732,7,FALSE) ->  | Y181: =VLOOKUP(P181,MapPointConfig!$B$833:$H$1732,7,FALSE) ->  | Z181: =VLOOKUP(Q181,MapPointConfig!$B$833:$H$1732,7,FALSE) ->  | AA181: =VLOOKUP(R181,MapPointConfig!$B$833:$H$1732,7,FALSE) -> 
A182: 2182001#100 | B182: 2182002#100 | C182: 2182003#100 | D182: 2182004#100 | E182: 2182005#100 | F182: 2182006#100 | G182: 2182007#100 | H182: 2182008#100 | K182: 2182001 | L182: 2182002 | M182: 2182003 | N182: 2182004 | O182: 2182005 | P182: 2182006 | Q182: 2182007 | R182: 2182008 | T182: =VLOOKUP(K182,MapPointConfig!$B$833:$H$1732,7,FALSE) ->  | U182: =VLOOKUP(L182,MapPointConfig!$B$833:$H$1732,7,FALSE) ->  | V182: =VLOOKUP(M182,MapPointConfig!$B$833:$H$1732,7,FALSE) ->  | W182: =VLOOKUP(N182,MapPointConfig!$B$833:$H$1732,7,FALSE) ->  | X182: =VLOOKUP(O182,MapPointConfig!$B$833:$H$1732,7,FALSE) ->  | Y182: =VLOOKUP(P182,MapPointConfig!$B$833:$H$1732,7,FALSE) ->  | Z182: =VLOOKUP(Q182,MapPointConfig!$B$833:$H$1732,7,FALSE) ->  | AA182: =VLOOKUP(R182,MapPointConfig!$B$833:$H$1732,7,FALSE) -> 
A183: 2183001#100 | B183: 2183002#100 | C183: 2183003#100 | D183: 2183004#100 | E183: 2183005#100 | F183: 2183006#100 | G183: 2183007#100 | H183: 2183008#100 | K183: 2183001 | L183: 2183002 | M183: 2183003 | N183: 2183004 | O183: 2183005 | P183: 2183006 | Q183: 2183007 | R183: 2183008 | T183: =VLOOKUP(K183,MapPointConfig!$B$833:$H$1732,7,FALSE) ->  | U183: =VLOOKUP(L183,MapPointConfig!$B$833:$H$1732,7,FALSE) ->  | V183: =VLOOKUP(M183,MapPointConfig!$B$833:$H$1732,7,FALSE) ->  | W183: =VLOOKUP(N183,MapPointConfig!$B$833:$H$1732,7,FALSE) ->  | X183: =VLOOKUP(O183,MapPointConfig!$B$833:$H$1732,7,FALSE) ->  | Y183: =VLOOKUP(P183,MapPointConfig!$B$833:$H$1732,7,FALSE) ->  | Z183: =VLOOKUP(Q183,MapPointConfig!$B$833:$H$1732,7,FALSE) ->  | AA183: =VLOOKUP(R183,MapPointConfig!$B$833:$H$1732,7,FALSE) -> 
A184: 2184001#100 | B184: 2184002#100 | C184: 2184003#100 | D184: 2184004#100 | E184: 2184005#100 | F184: 2184006#100 | G184: 2184007#100 | H184: 2184008#100 | K184: 2184001 | L184: 2184002 | M184: 2184003 | N184: 2184004 | O184: 2184005 | P184: 2184006 | Q184: 2184007 | R184: 2184008 | T184: =VLOOKUP(K184,MapPointConfig!$B$833:$H$1732,7,FALSE) ->  | U184: =VLOOKUP(L184,MapPointConfig!$B$833:$H$1732,7,FALSE) ->  | V184: =VLOOKUP(M184,MapPointConfig!$B$833:$H$1732,7,FALSE) ->  | W184: =VLOOKUP(N184,MapPointConfig!$B$833:$H$1732,7,FALSE) ->  | X184: =VLOOKUP(O184,MapPointConfig!$B$833:$H$1732,7,FALSE) ->  | Y184: =VLOOKUP(P184,MapPointConfig!$B$833:$H$1732,7,FALSE) ->  | Z184: =VLOOKUP(Q184,MapPointConfig!$B$833:$H$1732,7,FALSE) ->  | AA184: =VLOOKUP(R184,MapPointConfig!$B$833:$H$1732,7,FALSE) -> 
A185: 2185001#100 | B185: 2185002#100 | C185: 2185003#100 | D185: 2185004#100 | E185: 2185005#100 | F185: 2185006#100 | G185: 2185007#100 | H185: 2185008#100 | K185: 2185001 | L185: 2185002 | M185: 2185003 | N185: 2185004 | O185: 2185005 | P185: 2185006 | Q185: 2185007 | R185: 2185008 | T185: =VLOOKUP(K185,MapPointConfig!$B$833:$H$1732,7,FALSE) ->  | U185: =VLOOKUP(L185,MapPointConfig!$B$833:$H$1732,7,FALSE) ->  | V185: =VLOOKUP(M185,MapPointConfig!$B$833:$H$1732,7,FALSE) ->  | W185: =VLOOKUP(N185,MapPointConfig!$B$833:$H$1732,7,FALSE) ->  | X185: =VLOOKUP(O185,MapPointConfig!$B$833:$H$1732,7,FALSE) ->  | Y185: =VLOOKUP(P185,MapPointConfig!$B$833:$H$1732,7,FALSE) ->  | Z185: =VLOOKUP(Q185,MapPointConfig!$B$833:$H$1732,7,FALSE) ->  | AA185: =VLOOKUP(R185,MapPointConfig!$B$833:$H$1732,7,FALSE) -> 
A186: 2186001#100 | B186: 2186002#100 | C186: 2186003#100 | D186: 2186004#100 | E186: 2186005#100 | F186: 2186006#100 | G186: 2186007#100 | H186: 2186008#100 | K186: 2186001 | L186: 2186002 | M186: 2186003 | N186: 2186004 | O186: 2186005 | P186: 2186006 | Q186: 2186007 | R186: 2186008 | T186: =VLOOKUP(K186,MapPointConfig!$B$833:$H$1732,7,FALSE) ->  | U186: =VLOOKUP(L186,MapPointConfig!$B$833:$H$1732,7,FALSE) ->  | V186: =VLOOKUP(M186,MapPointConfig!$B$833:$H$1732,7,FALSE) ->  | W186: =VLOOKUP(N186,MapPointConfig!$B$833:$H$1732,7,FALSE) ->  | X186: =VLOOKUP(O186,MapPointConfig!$B$833:$H$1732,7,FALSE) ->  | Y186: =VLOOKUP(P186,MapPointConfig!$B$833:$H$1732,7,FALSE) ->  | Z186: =VLOOKUP(Q186,MapPointConfig!$B$833:$H$1732,7,FALSE) ->  | AA186: =VLOOKUP(R186,MapPointConfig!$B$833:$H$1732,7,FALSE) -> 
A187: 2187001#100 | B187: 2187002#100 | C187: 2187003#100 | D187: 2187004#100 | E187: 2187005#100 | F187: 2187006#100 | G187: 2187007#100 | H187: 2187008#100 | K187: 2187001 | L187: 2187002 | M187: 2187003 | N187: 2187004 | O187: 2187005 | P187: 2187006 | Q187: 2187007 | R187: 2187008 | T187: =VLOOKUP(K187,MapPointConfig!$B$833:$H$1732,7,FALSE) ->  | U187: =VLOOKUP(L187,MapPointConfig!$B$833:$H$1732,7,FALSE) ->  | V187: =VLOOKUP(M187,MapPointConfig!$B$833:$H$1732,7,FALSE) ->  | W187: =VLOOKUP(N187,MapPointConfig!$B$833:$H$1732,7,FALSE) ->  | X187: =VLOOKUP(O187,MapPointConfig!$B$833:$H$1732,7,FALSE) ->  | Y187: =VLOOKUP(P187,MapPointConfig!$B$833:$H$1732,7,FALSE) ->  | Z187: =VLOOKUP(Q187,MapPointConfig!$B$833:$H$1732,7,FALSE) ->  | AA187: =VLOOKUP(R187,MapPointConfig!$B$833:$H$1732,7,FALSE) -> 
A188: 2188001#100 | B188: 2188002#100 | C188: 2188003#100 | D188: 2188004#100 | E188: 2188005#100 | F188: 2188006#100 | G188: 2188007#100 | H188: 2188008#100 | K188: 2188001 | L188: 2188002 | M188: 2188003 | N188: 2188004 | O188: 2188005 | P188: 2188006 | Q188: 2188007 | R188: 2188008 | T188: =VLOOKUP(K188,MapPointConfig!$B$833:$H$1732,7,FALSE) ->  | U188: =VLOOKUP(L188,MapPointConfig!$B$833:$H$1732,7,FALSE) ->  | V188: =VLOOKUP(M188,MapPointConfig!$B$833:$H$1732,7,FALSE) ->  | W188: =VLOOKUP(N188,MapPointConfig!$B$833:$H$1732,7,FALSE) ->  | X188: =VLOOKUP(O188,MapPointConfig!$B$833:$H$1732,7,FALSE) ->  | Y188: =VLOOKUP(P188,MapPointConfig!$B$833:$H$1732,7,FALSE) ->  | Z188: =VLOOKUP(Q188,MapPointConfig!$B$833:$H$1732,7,FALSE) ->  | AA188: =VLOOKUP(R188,MapPointConfig!$B$833:$H$1732,7,FALSE) -> 
A189: 2189001#100 | B189: 2189002#100 | C189: 2189003#100 | D189: 2189004#100 | E189: 2189005#100 | F189: 2189006#100 | G189: 2189007#100 | H189: 2189008#100 | K189: 2189001 | L189: 2189002 | M189: 2189003 | N189: 2189004 | O189: 2189005 | P189: 2189006 | Q189: 2189007 | R189: 2189008 | T189: =VLOOKUP(K189,MapPointConfig!$B$833:$H$1732,7,FALSE) ->  | U189: =VLOOKUP(L189,MapPointConfig!$B$833:$H$1732,7,FALSE) ->  | V189: =VLOOKUP(M189,MapPointConfig!$B$833:$H$1732,7,FALSE) ->  | W189: =VLOOKUP(N189,MapPointConfig!$B$833:$H$1732,7,FALSE) ->  | X189: =VLOOKUP(O189,MapPointConfig!$B$833:$H$1732,7,FALSE) ->  | Y189: =VLOOKUP(P189,MapPointConfig!$B$833:$H$1732,7,FALSE) ->  | Z189: =VLOOKUP(Q189,MapPointConfig!$B$833:$H$1732,7,FALSE) ->  | AA189: =VLOOKUP(R189,MapPointConfig!$B$833:$H$1732,7,FALSE) -> 
A190: 2190001#100 | B190: 2190002#100 | C190: 2190003#100 | D190: 2190004#100 | E190: 2190005#100 | F190: 2190006#100 | G190: 2190007#100 | H190: 2190008#100 | K190: 2190001 | L190: 2190002 | M190: 2190003 | N190: 2190004 | O190: 2190005 | P190: 2190006 | Q190: 2190007 | R190: 2190008 | T190: =VLOOKUP(K190,MapPointConfig!$B$833:$H$1732,7,FALSE) ->  | U190: =VLOOKUP(L190,MapPointConfig!$B$833:$H$1732,7,FALSE) ->  | V190: =VLOOKUP(M190,MapPointConfig!$B$833:$H$1732,7,FALSE) ->  | W190: =VLOOKUP(N190,MapPointConfig!$B$833:$H$1732,7,FALSE) ->  | X190: =VLOOKUP(O190,MapPointConfig!$B$833:$H$1732,7,FALSE) ->  | Y190: =VLOOKUP(P190,MapPointConfig!$B$833:$H$1732,7,FALSE) ->  | Z190: =VLOOKUP(Q190,MapPointConfig!$B$833:$H$1732,7,FALSE) ->  | AA190: =VLOOKUP(R190,MapPointConfig!$B$833:$H$1732,7,FALSE) -> 
A191: 2191001#100 | B191: 2191002#100 | C191: 2191003#100 | D191: 2191004#100 | E191: 2191005#100 | F191: 2191006#100 | G191: 2191007#100 | H191: 2191008#100 | K191: 2191001 | L191: 2191002 | M191: 2191003 | N191: 2191004 | O191: 2191005 | P191: 2191006 | Q191: 2191007 | R191: 2191008 | T191: =VLOOKUP(K191,MapPointConfig!$B$833:$H$1732,7,FALSE) ->  | U191: =VLOOKUP(L191,MapPointConfig!$B$833:$H$1732,7,FALSE) ->  | V191: =VLOOKUP(M191,MapPointConfig!$B$833:$H$1732,7,FALSE) ->  | W191: =VLOOKUP(N191,MapPointConfig!$B$833:$H$1732,7,FALSE) ->  | X191: =VLOOKUP(O191,MapPointConfig!$B$833:$H$1732,7,FALSE) ->  | Y191: =VLOOKUP(P191,MapPointConfig!$B$833:$H$1732,7,FALSE) ->  | Z191: =VLOOKUP(Q191,MapPointConfig!$B$833:$H$1732,7,FALSE) ->  | AA191: =VLOOKUP(R191,MapPointConfig!$B$833:$H$1732,7,FALSE) -> 
A192: 2192001#100 | B192: 2192002#100 | C192: 2192003#100 | D192: 2192004#100 | E192: 2192005#100 | F192: 2192006#100 | G192: 2192007#100 | H192: 2192008#100 | K192: 2192001 | L192: 2192002 | M192: 2192003 | N192: 2192004 | O192: 2192005 | P192: 2192006 | Q192: 2192007 | R192: 2192008 | T192: =VLOOKUP(K192,MapPointConfig!$B$833:$H$1732,7,FALSE) ->  | U192: =VLOOKUP(L192,MapPointConfig!$B$833:$H$1732,7,FALSE) ->  | V192: =VLOOKUP(M192,MapPointConfig!$B$833:$H$1732,7,FALSE) ->  | W192: =VLOOKUP(N192,MapPointConfig!$B$833:$H$1732,7,FALSE) ->  | X192: =VLOOKUP(O192,MapPointConfig!$B$833:$H$1732,7,FALSE) ->  | Y192: =VLOOKUP(P192,MapPointConfig!$B$833:$H$1732,7,FALSE) ->  | Z192: =VLOOKUP(Q192,MapPointConfig!$B$833:$H$1732,7,FALSE) ->  | AA192: =VLOOKUP(R192,MapPointConfig!$B$833:$H$1732,7,FALSE) -> 
A193: 2193001#100 | B193: 2193002#100 | C193: 2193003#100 | D193: 2193004#100 | E193: 2193005#100 | F193: 2193006#100 | G193: 2193007#100 | H193: 2193008#100 | K193: 2193001 | L193: 2193002 | M193: 2193003 | N193: 2193004 | O193: 2193005 | P193: 2193006 | Q193: 2193007 | R193: 2193008 | T193: =VLOOKUP(K193,MapPointConfig!$B$833:$H$1732,7,FALSE) ->  | U193: =VLOOKUP(L193,MapPointConfig!$B$833:$H$1732,7,FALSE) ->  | V193: =VLOOKUP(M193,MapPointConfig!$B$833:$H$1732,7,FALSE) ->  | W193: =VLOOKUP(N193,MapPointConfig!$B$833:$H$1732,7,FALSE) ->  | X193: =VLOOKUP(O193,MapPointConfig!$B$833:$H$1732,7,FALSE) ->  | Y193: =VLOOKUP(P193,MapPointConfig!$B$833:$H$1732,7,FALSE) ->  | Z193: =VLOOKUP(Q193,MapPointConfig!$B$833:$H$1732,7,FALSE) ->  | AA193: =VLOOKUP(R193,MapPointConfig!$B$833:$H$1732,7,FALSE) -> 
A194: 2194001#100 | B194: 2194002#100 | C194: 2194003#100 | D194: 2194004#100 | E194: 2194005#100 | F194: 2194006#100 | G194: 2194007#100 | H194: 2194008#100 | K194: =--LEFT(A194,FIND("#",A194,1)-1) -> 2194001 | L194: =--LEFT(B194,FIND("#",B194,1)-1) -> 2194002 | M194: =--LEFT(C194,FIND("#",C194,1)-1) -> 2194003 | N194: =--LEFT(D194,FIND("#",D194,1)-1) -> 2194004 | O194: =--LEFT(E194,FIND("#",E194,1)-1) -> 2194005 | P194: =--LEFT(F194,FIND("#",F194,1)-1) -> 2194006 | Q194: =--LEFT(G194,FIND("#",G194,1)-1) -> 2194007 | R194: =--LEFT(H194,FIND("#",H194,1)-1) -> 2194008 | T194: =VLOOKUP(K194,MapPointConfig!$B$833:$H$1732,7,FALSE) ->  | U194: =VLOOKUP(L194,MapPointConfig!$B$833:$H$1732,7,FALSE) ->  | V194: =VLOOKUP(M194,MapPointConfig!$B$833:$H$1732,7,FALSE) ->  | W194: =VLOOKUP(N194,MapPointConfig!$B$833:$H$1732,7,FALSE) ->  | X194: =VLOOKUP(O194,MapPointConfig!$B$833:$H$1732,7,FALSE) ->  | Y194: =VLOOKUP(P194,MapPointConfig!$B$833:$H$1732,7,FALSE) ->  | Z194: =VLOOKUP(Q194,MapPointConfig!$B$833:$H$1732,7,FALSE) ->  | AA194: =VLOOKUP(R194,MapPointConfig!$B$833:$H$1732,7,FALSE) -> 
A195: 2195001#100 | B195: 2195002#100 | C195: 2195003#100 | D195: 2195004#100 | E195: 2195005#100 | F195: 2195006#100 | G195: 2195007#100 | H195: 2195008#100 | K195: 2195001 | L195: 2195002 | M195: 2195003 | N195: 2195004 | O195: 2195005 | P195: 2195006 | Q195: 2195007 | R195: 2195008 | T195: =VLOOKUP(K195,MapPointConfig!$B$833:$H$1732,7,FALSE) ->  | U195: =VLOOKUP(L195,MapPointConfig!$B$833:$H$1732,7,FALSE) ->  | V195: =VLOOKUP(M195,MapPointConfig!$B$833:$H$1732,7,FALSE) ->  | W195: =VLOOKUP(N195,MapPointConfig!$B$833:$H$1732,7,FALSE) ->  | X195: =VLOOKUP(O195,MapPointConfig!$B$833:$H$1732,7,FALSE) ->  | Y195: =VLOOKUP(P195,MapPointConfig!$B$833:$H$1732,7,FALSE) ->  | Z195: =VLOOKUP(Q195,MapPointConfig!$B$833:$H$1732,7,FALSE) ->  | AA195: =VLOOKUP(R195,MapPointConfig!$B$833:$H$1732,7,FALSE) -> 
A196: 2196001#100 | B196: 2196002#100 | C196: 2196003#100 | D196: 2196004#100 | E196: 2196005#100 | F196: 2196006#100 | G196: 2196007#100 | H196: 2196008#100 | K196: 2196001 | L196: 2196002 | M196: 2196003 | N196: 2196004 | O196: 2196005 | P196: 2196006 | Q196: 2196007 | R196: 2196008 | T196: =VLOOKUP(K196,MapPointConfig!$B$833:$H$1732,7,FALSE) ->  | U196: =VLOOKUP(L196,MapPointConfig!$B$833:$H$1732,7,FALSE) ->  | V196: =VLOOKUP(M196,MapPointConfig!$B$833:$H$1732,7,FALSE) ->  | W196: =VLOOKUP(N196,MapPointConfig!$B$833:$H$1732,7,FALSE) ->  | X196: =VLOOKUP(O196,MapPointConfig!$B$833:$H$1732,7,FALSE) ->  | Y196: =VLOOKUP(P196,MapPointConfig!$B$833:$H$1732,7,FALSE) ->  | Z196: =VLOOKUP(Q196,MapPointConfig!$B$833:$H$1732,7,FALSE) ->  | AA196: =VLOOKUP(R196,MapPointConfig!$B$833:$H$1732,7,FALSE) -> 
A197: 2197001#100 | B197: 2197002#100 | C197: 2197003#100 | D197: 2197004#100 | E197: 2197005#100 | F197: 2197006#100 | G197: 2197007#100 | H197: 2197008#100 | K197: 2197001 | L197: 2197002 | M197: 2197003 | N197: 2197004 | O197: 2197005 | P197: 2197006 | Q197: 2197007 | R197: 2197008 | T197: =VLOOKUP(K197,MapPointConfig!$B$833:$H$1732,7,FALSE) ->  | U197: =VLOOKUP(L197,MapPointConfig!$B$833:$H$1732,7,FALSE) ->  | V197: =VLOOKUP(M197,MapPointConfig!$B$833:$H$1732,7,FALSE) ->  | W197: =VLOOKUP(N197,MapPointConfig!$B$833:$H$1732,7,FALSE) ->  | X197: =VLOOKUP(O197,MapPointConfig!$B$833:$H$1732,7,FALSE) ->  | Y197: =VLOOKUP(P197,MapPointConfig!$B$833:$H$1732,7,FALSE) ->  | Z197: =VLOOKUP(Q197,MapPointConfig!$B$833:$H$1732,7,FALSE) ->  | AA197: =VLOOKUP(R197,MapPointConfig!$B$833:$H$1732,7,FALSE) -> 
A198: 2198001#100 | B198: 2198002#100 | C198: 2198003#100 | D198: 2198004#100 | E198: 2198005#100 | F198: 2198006#100 | G198: 2198007#100 | H198: 2198008#100 | K198: 2198001 | L198: 2198002 | M198: 2198003 | N198: 2198004 | O198: 2198005 | P198: 2198006 | Q198: 2198007 | R198: 2198008 | T198: =VLOOKUP(K198,MapPointConfig!$B$833:$H$1732,7,FALSE) ->  | U198: =VLOOKUP(L198,MapPointConfig!$B$833:$H$1732,7,FALSE) ->  | V198: =VLOOKUP(M198,MapPointConfig!$B$833:$H$1732,7,FALSE) ->  | W198: =VLOOKUP(N198,MapPointConfig!$B$833:$H$1732,7,FALSE) ->  | X198: =VLOOKUP(O198,MapPointConfig!$B$833:$H$1732,7,FALSE) ->  | Y198: =VLOOKUP(P198,MapPointConfig!$B$833:$H$1732,7,FALSE) ->  | Z198: =VLOOKUP(Q198,MapPointConfig!$B$833:$H$1732,7,FALSE) ->  | AA198: =VLOOKUP(R198,MapPointConfig!$B$833:$H$1732,7,FALSE) -> 
A199: 2199001#100 | B199: 2199002#100 | C199: 2199003#100 | D199: 2199004#100 | E199: 2199005#100 | F199: 2199006#100 | G199: 2199007#100 | H199: 2199008#100 | K199: 2199001 | L199: 2199002 | M199: 2199003 | N199: 2199004 | O199: 2199005 | P199: 2199006 | Q199: 2199007 | R199: 2199008 | T199: =VLOOKUP(K199,MapPointConfig!$B$833:$H$1732,7,FALSE) ->  | U199: =VLOOKUP(L199,MapPointConfig!$B$833:$H$1732,7,FALSE) ->  | V199: =VLOOKUP(M199,MapPointConfig!$B$833:$H$1732,7,FALSE) ->  | W199: =VLOOKUP(N199,MapPointConfig!$B$833:$H$1732,7,FALSE) ->  | X199: =VLOOKUP(O199,MapPointConfig!$B$833:$H$1732,7,FALSE) ->  | Y199: =VLOOKUP(P199,MapPointConfig!$B$833:$H$1732,7,FALSE) ->  | Z199: =VLOOKUP(Q199,MapPointConfig!$B$833:$H$1732,7,FALSE) ->  | AA199: =VLOOKUP(R199,MapPointConfig!$B$833:$H$1732,7,FALSE) -> 
A200: 2200001#100 | B200: 2200002#100 | C200: 2200003#100 | D200: 2200004#100 | E200: 2200005#100 | F200: 2200006#100 | G200: 2200007#100 | H200: 2200008#100 | K200: 2200001 | L200: 2200002 | M200: 2200003 | N200: 2200004 | O200: 2200005 | P200: 2200006 | Q200: 2200007 | R200: 2200008 | T200: =VLOOKUP(K200,MapPointConfig!$B$833:$H$1732,7,FALSE) ->  | U200: =VLOOKUP(L200,MapPointConfig!$B$833:$H$1732,7,FALSE) ->  | V200: =VLOOKUP(M200,MapPointConfig!$B$833:$H$1732,7,FALSE) ->  | W200: =VLOOKUP(N200,MapPointConfig!$B$833:$H$1732,7,FALSE) ->  | X200: =VLOOKUP(O200,MapPointConfig!$B$833:$H$1732,7,FALSE) ->  | Y200: =VLOOKUP(P200,MapPointConfig!$B$833:$H$1732,7,FALSE) ->  | Z200: =VLOOKUP(Q200,MapPointConfig!$B$833:$H$1732,7,FALSE) ->  | AA200: =VLOOKUP(R200,MapPointConfig!$B$833:$H$1732,7,FALSE) -> 

Sheet Sheet2
A2: 1 | B2: 怪
A3: 2 | B3: 精英怪
A4: 3 | B4: 回血buff
A5: 4 | B5: 试炼福利怪
A6: 5 | B6: 暂未使用
A7: 6 | B7: 开视野点
A8: 7 | B8: npc
A9: 8 | B9: 金宝箱
A10: 9 | B10: 传送门
A11: 10 | B11: 史诗怪
A12: 11 | B12: 任务道具
A13: 12 | B13: 云游商人
A14: 13 | B14: 暂未使用
A15: 14 | B15: 攻击buff
A16: 15 | B16: 防御buff
A17: 16 | B17: 特殊buff
A18: 17 | B18: 通缉怪
A19: 18 | B19: 转盘游戏
A20: 19 | B20: 挖矿游戏
A21: 20 | B21: 彼岸花
A22: 21 | B22: buff采集
A23: 22 | B23: 丹药葫芦
A24: 23 | B24: 传送门1
A25: 24 | B25: 传送门2

Sheet 事件点刷新规则
A1: 编号 | B1: 名称 | C1: 描述
A2: 1 | B2: 每日刷新 | C2: 被销毁的事件点，到达第二天系统刷新时间后，再次进图时会重新生成该时间点。没有被销毁的事件点按探索刷新规则刷新。
A3: 2 | B3: 探索刷新 | C3: 不论事件点是否被销毁，再次进图时会重新生成该id的事件点
A4: 3 | B4: 一次性 | C4: 事件点不会重新生成。没有被销毁的事件点会保存当前进度。
A6: =A1+1000 ->  | B6: =B1 -> 名称 | C6: ="试炼"&IF(INT(MID(A6,2,3))<10,MID(A6,4,1),IF(INT(MID(A6,2,3))<100,MID(A6,3,2),MID(A6,2,3)))&"层"&IF(INT(RIGHT(A6,1))=0,"boss","普通怪"&RIGHT(A6,1)) ->  | D6: =D1 -> 0 | E6: 2 | F6: 1 | G6: =A6 -> 
